Workbook

Sheet 0 Úvod
C4: Úvod
C5: Toto je jednoduchý finanční model, který doplňuje stávající výsledky analýz CBA obsažených ve studiích proveditelnosti a ekonomických hodnoceních českých železničních infrastrukturních projektů. Model je založen na analýze výnosů a je plně v souladu se současnou metodikou Evropské komise o CBA. Připravil DG REGIO/F.2, SUDOP PRAHA a.s. Aktualizoval SUDOP PRAHA a.s. 2016, verze 01-2017 (schválena CK MD 21. 2. 2017)
C15: Základní informace
C17: Zdroj dat: | D17: Modernizace trati …
C19: Cenová úroveň (CÚ) | D19: 2016 | F19: Začátek stavebních prací | G19: 2016 | I19: Doba hodnocení | J19: 30 | M19: Směnný kurz (CZK/EUR) | N19: 25.66
C21: Diskontní sazba | D21: 0.04 | F21: Začátek provozu | G21: 2018 | M21: DPH | N21: 0.21
C25: Hodnocené scénáře
B26: BEZ PROJEKTU
B31: S PROJEKTEM
C38: Seznam tabulek
C40: List / tabulka | E40: Celk. investiční náklady | F40: Zůstatková hodnota | G40: Provozní náklady | H40: Tržby | I40: Fin. analýza (FRR_C) | J40: Kontrola dotací | K40: Mezera ve financování | L40: Finanční struktura | M40: Udržitelnost | N40: FRR_K
C41: V konstantních cenách* | E41: 1.1. | F41: 2.1., 2.2 | G41: 3.1., 3.2., 3.3 | H41: 4.1., 4.2., 4.3 | I41: 5.1. | J41: 6.1., 6.2., 6.3 | K41: 7.1., 7.2 | L41: 8.1. | M41: 9.1. | N41: 10.1.
C42: V běžných cenách** | E42: 1.2. | K42: 7.3. | L42: 8.2.
C44: * v případě "stavebního souboru" (např. tranzitní železniční koridor) - všechny tabulky se vztahují na celý projekt
C45: ** tabulky pro projektovou žádost
C49: Míra inflace
C51: rok | D51: 2006 | E51: 2007 | F51: 2008 | G51: 2009 | H51: 2010 | I51: 2011 | J51: 2012 | K51: 2013 | L51: 2014 | M51: 2015 | N51: 2016 | O51: ***
C52: inflace | D52: 0.025 | E52: 0.028 | F52: 0.063 | G52: 0.01 | H52: 0.015 | I52: 0.019 | J52: 0.033 | K52: 0.014 | L52: 0.004 | M52: 0.003 | N52: 0.01
D53: 1 | E53: 1 | F53: 1 | G53: 1 | H53: 1 | I53: 1 | J53: 1 | K53: =J53*(1+K52) -> 1.014 | L53: =K53*(1+L52) -> 1.018056 | M53: =L53*(1+M52) -> 1.021110168 | N53: =M53*(1+N52) -> 1.03132127
C54: zdroj: Prováděcí pokyny pro hodnocení efektivnosti investic železničních staveb (č. 26/2013-910-IZD/3), MD 2013 - příloha A.2; ČNB (Zpráva o inflaci I/2016)
C56: Index cen stavebních prací
C58: rok | D58: 2006 | E58: 2007 | F58: 2008 | G58: 2009 | H58: 2010 | I58: 2011 | J58: 2012 | K58: 2013 | L58: 2014 | M58: 2015 | N58: 2016
C59: inflace | D59: 0.029 | E59: 0.041 | F59: 0.045 | G59: 0.012 | H59: -0.002 | I59: -0.005 | J59: -0.007 | K59: -0.011 | L59: 0.005 | M59: 0 | N59: 0
D60: 1 | E60: 1 | F60: 1 | G60: 1 | H60: 1 | I60: 1 | J60: 1 | K60: 1 | L60: =K60*(1+L59) -> 1.005 | M60: =L60*(1+M59) -> 1.005 | N60: =M60*(1+N59) -> 1.005
C61: zdroj: aktuálně platné opatření SFDI (č.j. 3029/SFDI/320079/8567/2015); ČSÚ
C63: *** pro další roky platí v souladu s Prováděcími pokyny hodnota 2,00%
C65: HDP na hlavu
C67: rok | D67: 2005 | E67: 2006 | F67: 2007 | G67: 2008 | H67: 2009 | I67: 2010 | J67: 2011 | K67: 2012 | L67: 2013 | M67: 2014 | N67: 2015
C68: HDP na hlavu | D68: 0.062 | E68: 0.065 | F68: 0.05 | G68: 0.017 | H68: -0.054 | I68: 0.02 | J68: 0.022 | K68: -0.01 | L68: -0.005 | M68: 0.018 | N68: 0.047
C70: rok | D70: 2016 | E70: 2017 | F70: 2018 | G70: 2019 | H70: 2020 | I70: 2030 | J70: 2050
C71: HDP na hlavu | D71: 0.028 | E71: 0.029 | F71: 0.03 | G71: 0.03 | H71: 0.02 | I71: 0.01 | J71: 0.01
C73: zdroj: Prováděcí pokyny pro hodnocení efektivnosti investic železničních staveb (č. 26/2013-910-IZD/3), MD 2013 - příloha A.2; ČSÚ; ČNB (Zpráva o inflaci I/2016)
C77: Růst reálných mezd
C79: rok | D79: 2012 | E79: 2013 | F79: 2014 | G79: 2015 | H79: 2016 | I79: 2017 | J79: 2018 | K79: 2019 | L79: 2020 | M79: 2030 | N79: 2050
C80: růst mezd | D80: -0.008 | E80: -0.015 | F80: 0.019 | G80: 0.028 | H80: 0.03 | I80: 0.025 | J80: 0.03 | K80: 0.03 | L80: 0.025 | M80: 0.02 | N80: 0.02
D81: 1 | E81: =D81*(1+E80*'3 Provozní náklady'!$D$71) -> 0.985 | F81: =E81*(1+F80*'3 Provozní náklady'!$D$71) -> 1.003715 | G81: =F81*(1+G80*'3 Provozní náklady'!$D$71) -> 1.03181902 | H81: =G81*(1+H80*'3 Provozní náklady'!$D$71) -> 1.062773591 | I81: =H81*(1+I80*'3 Provozní náklady'!$D$71) -> 1.08934293 | J81: =I81*(1+J80*'3 Provozní náklady'!$D$71) -> 1.122023218 | K81: =J81*(1+K80*'3 Provozní náklady'!$D$71) -> 1.155683915 | L81: =K81*(1+L80*'3 Provozní náklady'!$D$71) -> 1.184576013 | M81: =L81*(1+M80*'3 Provozní náklady'!$D$71)^(M79-L79) -> 1.44399155 | N81: =M81*(1+N80*'3 Provozní náklady'!$D$71)^(N79-M79) -> 2.145695483
C82: zdroj: do r. 2016 vč. ČNB (Zpráva o inflaci I/2016); od r. 2017 vč. Prováděcí pokyny pro hodnocení efektivnosti investic železničních staveb (č. 26/2013-910-IZD/3), MD 2013 - příloha A.2
C87: Vyplnit pouze žlutě podbarvené buňky!

Sheet 1 Celkové investiční náklady
B2: 1.1. | C2: Celkové investiční náklady (CZK) * | G2: V roce
B3: a | C3: (konstantní ceny) | F3: Celk. projekt. náklady | G3: ='0 Úvod'!G19 -> 2016 | H3: =G3+1 -> 2017 | I3: =H3+1 -> 2018 | J3: 2019 | K3: 2020 | L3: 2021 | M3: 2022 | N3: 2023 | O3: 2024 | P3: 2025 | Q3: 2026 | R3: 2027 | S3: 2028 | T3: 2029 | U3: 2030
C4: ='0 Úvod'!D19 -> 2016
C5: Přípravná a projektová dokumentace | F5: =SUM(G5:U5,G20:U20) -> 0
C6: Zábory a nákupy pozemků | F6: =SUM(G6:U6,G21:U21) -> 0
C7: Stavby a konstrukce (stavební náklady) | F7: 0
C8: Stroje a zařízení | F8: 0
C9: Technická asistence, propagace | F9: 0
C10: Technický dozor | F10: 0
C11: Celkové investiční náklady bez rezervy (konstantní ceny) | F11: 0 | G11: =SUM(G5:G10) -> 0 | H11: 0 | I11: 0 | J11: 0 | K11: 0 | L11: 0 | M11: 0 | N11: 0 | O11: 0 | P11: 0 | Q11: 0 | R11: 0 | S11: 0 | T11: 0 | U11: 0
C12: Rezerva | F12: 0
C13: Celkové investiční náklady včetně rezervy (konstantní ceny) | F13: 0 | G13: =SUM(G11:G12) -> 0 | H13: =SUM(H11:H12) -> 0 | I13: =SUM(I11:I12) -> 0 | J13: 0 | K13: 0 | L13: 0 | M13: 0 | N13: 0 | O13: 0 | P13: 0 | Q13: 0 | R13: 0 | S13: 0 | T13: 0 | U13: =SUM(U11:U12) -> 0
C14: ='0 Úvod'!$N$21*1000 -> 210 | F14: 0 | G14: =G13*$C14/1000 -> 0 | H14: =H13*$C14/1000 -> 0 | I14: =I13*$C14/1000 -> 0 | J14: 0 | K14: 0 | L14: 0 | M14: 0 | N14: 0 | O14: 0 | P14: 0 | Q14: 0 | R14: 0 | S14: 0 | T14: 0 | U14: =U13*$C14/1000 -> 0
C15: Celkové investiční náklady včetně DPH (konstantní ceny) | F15: 0 | G15: =G14+G13 -> 0 | H15: =H14+H13 -> 0 | I15: =I14+I13 -> 0 | J15: 0 | K15: 0 | L15: 0 | M15: 0 | N15: 0 | O15: 0 | P15: 0 | Q15: 0 | R15: 0 | S15: 0 | T15: 0 | U15: =U14+U13 -> 0
B17: 1.1. | C17: Celkové investiční náklady (CZK) *
B18: b | C18: (konstantní ceny) | G18: =U3+1 -> 2031 | H18: =G18+1 -> 2032 | I18: =H18+1 -> 2033 | J18: 2034 | K18: 2035 | L18: 2036 | M18: 2037 | N18: 2038 | O18: 2039 | P18: 2040 | Q18: 2041 | R18: 2042 | S18: 2043 | T18: 2044 | U18: 2045
C19: ='0 Úvod'!D19 -> 2016
C20: =C5 -> Přípravná a projektová dokumentace
C21: Zábory a nákupy pozemků
C22: Stavby a konstrukce (stavební náklady)
C23: Stroje a zařízení
C24: Technická asistence, propagace
C25: Technický dozor
C26: Celkové investiční náklady bez rezervy (konstantní ceny) | G26: =SUM(G20:G25) -> 0 | H26: 0 | I26: 0 | J26: 0 | K26: 0 | L26: 0 | M26: 0 | N26: 0 | O26: 0 | P26: 0 | Q26: 0 | R26: 0 | S26: 0 | T26: 0 | U26: 0
C27: Rezerva
C28: Celkové investiční náklady včetně rezervy (konstantní ceny) | G28: =SUM(G26:G27) -> 0 | H28: 0 | I28: 0 | J28: 0 | K28: 0 | L28: 0 | M28: 0 | N28: 0 | O28: 0 | P28: 0 | Q28: 0 | R28: 0 | S28: 0 | T28: 0 | U28: 0
C29: ='0 Úvod'!$N$21*1000 -> 210 | G29: =G28*$C29/1000 -> 0 | H29: =H28*$C29/1000 -> 0 | I29: =I28*$C29/1000 -> 0 | J29: 0 | K29: 0 | L29: 0 | M29: 0 | N29: 0 | O29: 0 | P29: 0 | Q29: 0 | R29: 0 | S29: 0 | T29: 0 | U29: =U28*$C29/1000 -> 0
C30: Celkové investiční náklady včetně DPH (konstantní ceny) | G30: =G29+G28 -> 0 | H30: 0 | I30: 0 | J30: 0 | K30: 0 | L30: 0 | M30: 0 | N30: 0 | O30: 0 | P30: 0 | Q30: 0 | R30: 0 | S30: 0 | T30: 0 | U30: 0
B33: 1.2. | C33: Celkové investiční náklady (CZK)
B34: a | C34: (běžné ceny) | D34: Nezpůsobilé náklady | E34: Způsobilé náklady | F34: Celk. projekt. náklady | G34: =G3 -> 2016 | H34: =G34+1 -> 2017 | I34: =H34+1 -> 2018 | J34: 2019 | K34: 2020 | L34: 2021 | M34: 2022 | N34: 2023 | O34: 2024 | P34: 2025 | Q34: 2026 | R34: 2027 | S34: 2028 | T34: 2029 | U34: 2030
C35: Způsobilost nákladů **
C36: Poplatky za plány/stavební projekt | D36: =F36-E36 -> 0 | F36: =SUM(G36:U36,G52:U52) -> 0
C37: Nákup pozemků | D37: 0 | F37: =SUM(G37:U37,G53:U53) -> 0
C38: Výstavba | D38: 0 | F38: 0
C39: Prostory a strojní zařízení nebo vybavení | D39: 0 | F39: 0
C40: Nepředvídané události | D40: 0 | F40: 0
C41: Úprava ceny (v příslušném případě) | D41: 0 | F41: 0
C42: Propagace | D42: 0 | F42: 0
C43: Dozor v průběhu provádění výstavby | D43: 0 | F43: 0
C44: Technická pomoc | D44: 0 | F44: 0
C45: Celkové investiční náklady (běžné ceny) | D45: =SUM(D36:D44) -> 0 | E45: =SUM(E36:E44) -> 0 | F45: 0 | G45: =SUM(G36:G44) -> 0 | H45: 0 | I45: 0 | J45: 0 | K45: 0 | L45: 0 | M45: 0 | N45: 0 | O45: 0 | P45: 0 | Q45: 0 | R45: 0 | S45: 0 | T45: 0 | U45: 0
C46: ='0 Úvod'!$N$21*1000 -> 210 | D46: =D45*$C46/1000 -> 0 | E46: =E45*$C46/1000 -> 0 | F46: 0 | G46: =G45*$C46/1000 -> 0 | H46: =H45*$C46/1000 -> 0 | I46: =I45*$C46/1000 -> 0 | J46: 0 | K46: 0 | L46: 0 | M46: 0 | N46: 0 | O46: 0 | P46: 0 | Q46: 0 | R46: 0 | S46: 0 | T46: 0 | U46: =U45*$C46/1000 -> 0
C47: Celkové investiční náklady vč. DPH (běžné ceny) | D47: =SUM(D45:D46) -> 0 | E47: =SUM(E45:E46) -> 0 | F47: 0 | G47: =G46+G45 -> 0 | H47: 0 | I47: 0 | J47: 0 | K47: 0 | L47: 0 | M47: 0 | N47: 0 | O47: 0 | P47: 0 | Q47: 0 | R47: 0 | S47: 0 | T47: 0 | U47: 0
B49: 1.2. | C49: Celkové investiční náklady (CZK)
B50: b | C50: (běžné ceny) | G50: =U34+1 -> 2031 | H50: =G50+1 -> 2032 | I50: =H50+1 -> 2033 | J50: 2034 | K50: 2035 | L50: 2036 | M50: 2037 | N50: 2038 | O50: 2039 | P50: 2040 | Q50: 2041 | R50: 2042 | S50: 2043 | T50: 2044 | U50: 2045
C51: Způsobilost nákladů **
C52: Poplatky za plány/stavební projekt
C53: Nákup pozemků
C54: Výstavba
C55: Prostory a strojní zařízení nebo vybavení
C56: Nepředvídané události
C57: Úprava ceny (v příslušném případě)
C58: Propagace
C59: Dozor v průběhu provádění výstavby
C60: Technická pomoc
C61: Celkové investiční náklady (běžné ceny) | G61: =SUM(G52:G60) -> 0 | H61: 0 | I61: 0 | J61: 0 | K61: 0 | L61: 0 | M61: 0 | N61: 0 | O61: 0 | P61: 0 | Q61: 0 | R61: 0 | S61: 0 | T61: 0 | U61: 0
C62: ='0 Úvod'!$N$21*1000 -> 210 | G62: =G61*$C62/1000 -> 0 | H62: =H61*$C62/1000 -> 0 | I62: =I61*$C62/1000 -> 0 | J62: 0 | K62: 0 | L62: 0 | M62: 0 | N62: 0 | O62: 0 | P62: 0 | Q62: 0 | R62: 0 | S62: 0 | T62: 0 | U62: =U61*$C62/1000 -> 0
C63: Celkové investiční náklady vč. DPH (běžné ceny) | G63: =G62+G61 -> 0 | H63: 0 | I63: 0 | J63: 0 | K63: 0 | L63: 0 | M63: 0 | N63: 0 | O63: 0 | P63: 0 | Q63: 0 | R63: 0 | S63: 0 | T63: 0 | U63: 0
B66: Komentáře
B68: * v případě "souboru staveb" (např. tranzitní železniční koridor) - celkové náklady se vztahují na celý projekt
B69: ** jednotlivé položky odpovídají definici dle prováděcího Nařízení komise (EU) 2015/207 přílohy II, části C.1

Sheet 2 Zůstatková hodnota
B2: 2.1. | C2: Životnost investice (roky) | D2: Náklady (CZK) | E2: Vážení | G2: 2.3. | H2: Výpočet zůstatkové hodnoty
C3: Zabezpečovací zařízení | E3: =D3*D20 -> 0 | H3: Celková životnost investice | I3: =$E$16 -> 
C4: Sdělovací zařízení | E4: =D4*D21 -> 0 | H4: Délka provozní fáze hodnotícího období | I4: ='0 Úvod'!$J$19-('0 Úvod'!$G$21-'0 Úvod'!$G$19) -> 28
C5: Silnoproudé rozvody a zařízení | E5: 0 | H5: Životnost investice po skončení hodnotícího období | I5: =IF((I3-I4)<0,0,I3-I4) -> 
C6: Železniční svršek | E6: 0 | H6: Průměrný nákladový peněžní tok (nediskontovaný) | I6: =SUM('5 Finanční analýza (FRR_C)'!E13:S13,'5 Finanční analýza (FRR_C)'!E25:S25)/('0 Úvod'!J19-('0 Úvod'!$G$21-'0 Úvod'!G19)) -> 0
C7: Železniční spodek | E7: 0 | H7: ZŮSTATKOVÁ HODNOTA | I7: =IF((I6*(1/(1+'0 Úvod'!D21))*(((1/(1+'0 Úvod'!D21))^I5-1)/((1/(1+'0 Úvod'!D21))-1)))<0,0,I6*(1/(1+'0 Úvod'!D21))*(((1/(1+'0 Úvod'!D21))^I5-1)/((1/(1+'0 Úvod'!D21))-1))) -> 
C8: Mosty, propustky, zdi | E8: 0
C9: Tunely | E9: 0
C10: Komunikace a zpevněné plochy | E10: 0
C11: Trakce | E11: 0
C12: Inženýrské sítě (trubní vedení, kabelovody) | E12: 0
C13: Pozemní stavby, nástupiště a přístřešky | E13: 0
C14: Objekty ochrany životního prostředí | E14: 0
C15: CELKEM | D15: =SUM(D3:D14) -> 0 | E15: =SUM(E3:E14) -> 0
B16: Celková životnost investice (roky) | E16: =ROUND(E15/D15,0) -> 
B19: 2.2. | C19: Životnost jednotlivých prvků | D19: roky | G19: 2.4. | H19: Diskont. zůstatková hodnota investic pro FA | I19: =I7*(1/(1+'0 Úvod'!D21)^('0 Úvod'!J19-1)) -> 
C20: Zabezpečovací zařízení | D20: =100/5 -> 20 | H20: Diskontovaná zůstatková hodnota investic v EUR | I20: =I19/'0 Úvod'!N19 -> 
C21: Sdělovací zařízení | D21: 20
C22: Silnoproudé rozvody a zařízení | D22: 20
C23: Železniční svršek | D23: 30
C24: Železniční spodek | D24: 60
C25: Mosty, propustky, zdi | D25: 75
C26: Tunely | D26: 90
C27: Komunikace a zpevněné plochy | D27: 20
C28: Trakce | D28: 30
C29: Inženýrské sítě (trubní vedení, kabelovody) | D29: 20
C30: Pozemní stavby, nástupiště a přístřešky | D30: 40
C31: Objekty ochrany životního prostředí | D31: 30

Sheet 3 Provozní náklady
B2: 3.1. | C2: Celkové provozní náklady (CZK) | E2: ='1 Celkové investiční náklady'!G3 -> 2016 | F2: =E2+1 -> 2017 | G2: 2018 | H2: 2019 | I2: 2020 | J2: 2021 | K2: 2022 | L2: 2023 | M2: 2024 | N2: 2025 | O2: 2026 | P2: 2027 | Q2: 2028 | R2: 2029 | S2: 2030
B3: a | C3: Scénář s projektem | D3: Celkem
C4: Náklady na údržbu a provoz infrastruktury | D4: =SUM(E4:S4,E11:S11) -> 0
C5: Periodické provozní náklady / opravy | D5: =SUM(E5:S5,E12:S12) -> 0
C6: Náklady na řízení provozu | D6: 0 | E6: =IF(E2<=('0 Úvod'!$G$19+'0 Úvod'!$J$19-1),SUMPRODUCT(E72:E84,E106:E118)+E120,0) -> 0 | F6: =IF(F2<=('0 Úvod'!$G$19+'0 Úvod'!$J$19-1),SUMPRODUCT(F72:F84,F106:F118)+F120,0) -> 0 | G6: =IF(G2<=('0 Úvod'!$G$19+'0 Úvod'!$J$19-1),SUMPRODUCT(G72:G84,G106:G118)+G120,0) -> 0 | H6: =IF(H2<=('0 Úvod'!$G$19+'0 Úvod'!$J$19-1),SUMPRODUCT(H72:H84,H106:H118)+H120,0) -> 0 | I6: =IF(I2<=('0 Úvod'!$G$19+'0 Úvod'!$J$19-1),SUMPRODUCT(I72:I84,I106:I118)+I120,0) -> 0 | J6: =IF(J2<=('0 Úvod'!$G$19+'0 Úvod'!$J$19-1),SUMPRODUCT(J72:J84,J106:J118)+J120,0) -> 0 | K6: =IF(K2<=('0 Úvod'!$G$19+'0 Úvod'!$J$19-1),SUMPRODUCT(K72:K84,K106:K118)+K120,0) -> 0 | L6: =IF(L2<=('0 Úvod'!$G$19+'0 Úvod'!$J$19-1),SUMPRODUCT(L72:L84,L106:L118)+L120,0) -> 0 | M6: =IF(M2<=('0 Úvod'!$G$19+'0 Úvod'!$J$19-1),SUMPRODUCT(M72:M84,M106:M118)+M120,0) -> 0 | N6: =IF(N2<=('0 Úvod'!$G$19+'0 Úvod'!$J$19-1),SUMPRODUCT(N72:N84,N106:N118)+N120,0) -> 0 | O6: =IF(O2<=('0 Úvod'!$G$19+'0 Úvod'!$J$19-1),SUMPRODUCT(O72:O84,O106:O118)+O120,0) -> 0 | P6: =IF(P2<=('0 Úvod'!$G$19+'0 Úvod'!$J$19-1),SUMPRODUCT(P72:P84,P106:P118)+P120,0) -> 0 | Q6: =IF(Q2<=('0 Úvod'!$G$19+'0 Úvod'!$J$19-1),SUMPRODUCT(Q72:Q84,Q106:Q118)+Q120,0) -> 0 | R6: =IF(R2<=('0 Úvod'!$G$19+'0 Úvod'!$J$19-1),SUMPRODUCT(R72:R84,R106:R118)+R120,0) -> 0 | S6: =IF(S2<=('0 Úvod'!$G$19+'0 Úvod'!$J$19-1),SUMPRODUCT(S72:S84,S106:S118)+S120,0) -> 0
C7: Celkové provozní náklady | D7: 0 | E7: =SUM(E4:E6) -> 0 | F7: =SUM(F4:F6) -> 0 | G7: 0 | H7: 0 | I7: 0 | J7: 0 | K7: 0 | L7: 0 | M7: 0 | N7: 0 | O7: 0 | P7: 0 | Q7: 0 | R7: 0 | S7: 0
B9: 3.1. | C9: Celkové provozní náklady (CZK) | E9: =S2+1 -> 2031 | F9: =E9+1 -> 2032 | G9: 2033 | H9: 2034 | I9: 2035 | J9: 2036 | K9: 2037 | L9: 2038 | M9: 2039 | N9: 2040 | O9: 2041 | P9: 2042 | Q9: 2043 | R9: 2044 | S9: 2045
B10: b | C10: Scenář s projektem
C11: =C4 -> Náklady na údržbu a provoz infrastruktury
C12: =C5 -> Periodické provozní náklady / opravy
C13: =C6 -> Náklady na řízení provozu | E13: =IF(E9<=('0 Úvod'!$G$19+'0 Úvod'!$J$19-1),SUMPRODUCT(E89:E101,E124:E136)+E138,0) -> 0 | F13: =IF(F9<=('0 Úvod'!$G$19+'0 Úvod'!$J$19-1),SUMPRODUCT(F89:F101,F124:F136)+F138,0) -> 0 | G13: =IF(G9<=('0 Úvod'!$G$19+'0 Úvod'!$J$19-1),SUMPRODUCT(G89:G101,G124:G136)+G138,0) -> 0 | H13: =IF(H9<=('0 Úvod'!$G$19+'0 Úvod'!$J$19-1),SUMPRODUCT(H89:H101,H124:H136)+H138,0) -> 0 | I13: =IF(I9<=('0 Úvod'!$G$19+'0 Úvod'!$J$19-1),SUMPRODUCT(I89:I101,I124:I136)+I138,0) -> 0 | J13: =IF(J9<=('0 Úvod'!$G$19+'0 Úvod'!$J$19-1),SUMPRODUCT(J89:J101,J124:J136)+J138,0) -> 0 | K13: =IF(K9<=('0 Úvod'!$G$19+'0 Úvod'!$J$19-1),SUMPRODUCT(K89:K101,K124:K136)+K138,0) -> 0 | L13: =IF(L9<=('0 Úvod'!$G$19+'0 Úvod'!$J$19-1),SUMPRODUCT(L89:L101,L124:L136)+L138,0) -> 0 | M13: =IF(M9<=('0 Úvod'!$G$19+'0 Úvod'!$J$19-1),SUMPRODUCT(M89:M101,M124:M136)+M138,0) -> 0 | N13: =IF(N9<=('0 Úvod'!$G$19+'0 Úvod'!$J$19-1),SUMPRODUCT(N89:N101,N124:N136)+N138,0) -> 0 | O13: =IF(O9<=('0 Úvod'!$G$19+'0 Úvod'!$J$19-1),SUMPRODUCT(O89:O101,O124:O136)+O138,0) -> 0 | P13: =IF(P9<=('0 Úvod'!$G$19+'0 Úvod'!$J$19-1),SUMPRODUCT(P89:P101,P124:P136)+P138,0) -> 0 | Q13: =IF(Q9<=('0 Úvod'!$G$19+'0 Úvod'!$J$19-1),SUMPRODUCT(Q89:Q101,Q124:Q136)+Q138,0) -> 0 | R13: =IF(R9<=('0 Úvod'!$G$19+'0 Úvod'!$J$19-1),SUMPRODUCT(R89:R101,R124:R136)+R138,0) -> 0 | S13: =IF(S9<=('0 Úvod'!$G$19+'0 Úvod'!$J$19-1),SUMPRODUCT(S89:S101,S124:S136)+S138,0) -> 0
C14: =C7 -> Celkové provozní náklady | E14: =SUM(E11:E13) -> 0 | F14: 0 | G14: 0 | H14: 0 | I14: 0 | J14: 0 | K14: 0 | L14: 0 | M14: 0 | N14: 0 | O14: 0 | P14: 0 | Q14: 0 | R14: 0 | S14: 0
B17: 3.2. | C17: Celkové provozní náklady (CZK) | E17: =E2 -> 2016 | F17: =E17+1 -> 2017 | G17: 2018 | H17: 2019 | I17: 2020 | J17: 2021 | K17: 2022 | L17: 2023 | M17: 2024 | N17: 2025 | O17: 2026 | P17: 2027 | Q17: 2028 | R17: 2029 | S17: 2030
B18: a | C18: Scénář bez projektu | D18: Celkem
C19: Náklady na údržbu a provoz infrastruktury | D19: =SUM(E19:S19,E26:S26) -> 0
C20: Periodické provozní náklady / opravy | D20: =SUM(E20:S20,E27:S27) -> 0
C21: Náklady na řízení provozu | D21: 0 | E21: =IF(E17<=('0 Úvod'!$G$19+'0 Úvod'!$J$19-1),SUMPRODUCT(E72:E84,E142:E154)+E156,0) -> 0 | F21: =IF(F17<=('0 Úvod'!$G$19+'0 Úvod'!$J$19-1),SUMPRODUCT(F72:F84,F142:F154)+F156,0) -> 0 | G21: =IF(G17<=('0 Úvod'!$G$19+'0 Úvod'!$J$19-1),SUMPRODUCT(G72:G84,G142:G154)+G156,0) -> 0 | H21: =IF(H17<=('0 Úvod'!$G$19+'0 Úvod'!$J$19-1),SUMPRODUCT(H72:H84,H142:H154)+H156,0) -> 0 | I21: =IF(I17<=('0 Úvod'!$G$19+'0 Úvod'!$J$19-1),SUMPRODUCT(I72:I84,I142:I154)+I156,0) -> 0 | J21: =IF(J17<=('0 Úvod'!$G$19+'0 Úvod'!$J$19-1),SUMPRODUCT(J72:J84,J142:J154)+J156,0) -> 0 | K21: =IF(K17<=('0 Úvod'!$G$19+'0 Úvod'!$J$19-1),SUMPRODUCT(K72:K84,K142:K154)+K156,0) -> 0 | L21: =IF(L17<=('0 Úvod'!$G$19+'0 Úvod'!$J$19-1),SUMPRODUCT(L72:L84,L142:L154)+L156,0) -> 0 | M21: =IF(M17<=('0 Úvod'!$G$19+'0 Úvod'!$J$19-1),SUMPRODUCT(M72:M84,M142:M154)+M156,0) -> 0 | N21: =IF(N17<=('0 Úvod'!$G$19+'0 Úvod'!$J$19-1),SUMPRODUCT(N72:N84,N142:N154)+N156,0) -> 0 | O21: =IF(O17<=('0 Úvod'!$G$19+'0 Úvod'!$J$19-1),SUMPRODUCT(O72:O84,O142:O154)+O156,0) -> 0 | P21: =IF(P17<=('0 Úvod'!$G$19+'0 Úvod'!$J$19-1),SUMPRODUCT(P72:P84,P142:P154)+P156,0) -> 0 | Q21: =IF(Q17<=('0 Úvod'!$G$19+'0 Úvod'!$J$19-1),SUMPRODUCT(Q72:Q84,Q142:Q154)+Q156,0) -> 0 | R21: =IF(R17<=('0 Úvod'!$G$19+'0 Úvod'!$J$19-1),SUMPRODUCT(R72:R84,R142:R154)+R156,0) -> 0 | S21: =IF(S17<=('0 Úvod'!$G$19+'0 Úvod'!$J$19-1),SUMPRODUCT(S72:S84,S142:S154)+S156,0) -> 0
C22: Celkové provozní náklady | D22: 0 | E22: =SUM(E19:E21) -> 0 | F22: 0 | G22: 0 | H22: 0 | I22: 0 | J22: 0 | K22: 0 | L22: 0 | M22: 0 | N22: 0 | O22: 0 | P22: 0 | Q22: 0 | R22: 0 | S22: 0
B24: 3.2. | C24: Celkové provozní náklady (CZK) | E24: =S17+1 -> 2031 | F24: =E24+1 -> 2032 | G24: 2033 | H24: 2034 | I24: 2035 | J24: 2036 | K24: 2037 | L24: 2038 | M24: 2039 | N24: 2040 | O24: 2041 | P24: 2042 | Q24: 2043 | R24: 2044 | S24: 2045
B25: b | C25: Scénář bez projektu | E25: =S18+1 -> 1
C26: =C19 -> Náklady na údržbu a provoz infrastruktury
C27: =C20 -> Periodické provozní náklady / opravy
C28: =C21 -> Náklady na řízení provozu | E28: =IF(E24<=('0 Úvod'!$G$19+'0 Úvod'!$J$19-1),SUMPRODUCT(E89:E101,E160:E172)+E174,0) -> 0 | F28: =IF(F24<=('0 Úvod'!$G$19+'0 Úvod'!$J$19-1),SUMPRODUCT(F89:F101,F160:F172)+F174,0) -> 0 | G28: =IF(G24<=('0 Úvod'!$G$19+'0 Úvod'!$J$19-1),SUMPRODUCT(G89:G101,G160:G172)+G174,0) -> 0 | H28: =IF(H24<=('0 Úvod'!$G$19+'0 Úvod'!$J$19-1),SUMPRODUCT(H89:H101,H160:H172)+H174,0) -> 0 | I28: =IF(I24<=('0 Úvod'!$G$19+'0 Úvod'!$J$19-1),SUMPRODUCT(I89:I101,I160:I172)+I174,0) -> 0 | J28: =IF(J24<=('0 Úvod'!$G$19+'0 Úvod'!$J$19-1),SUMPRODUCT(J89:J101,J160:J172)+J174,0) -> 0 | K28: =IF(K24<=('0 Úvod'!$G$19+'0 Úvod'!$J$19-1),SUMPRODUCT(K89:K101,K160:K172)+K174,0) -> 0 | L28: =IF(L24<=('0 Úvod'!$G$19+'0 Úvod'!$J$19-1),SUMPRODUCT(L89:L101,L160:L172)+L174,0) -> 0 | M28: =IF(M24<=('0 Úvod'!$G$19+'0 Úvod'!$J$19-1),SUMPRODUCT(M89:M101,M160:M172)+M174,0) -> 0 | N28: =IF(N24<=('0 Úvod'!$G$19+'0 Úvod'!$J$19-1),SUMPRODUCT(N89:N101,N160:N172)+N174,0) -> 0 | O28: =IF(O24<=('0 Úvod'!$G$19+'0 Úvod'!$J$19-1),SUMPRODUCT(O89:O101,O160:O172)+O174,0) -> 0 | P28: =IF(P24<=('0 Úvod'!$G$19+'0 Úvod'!$J$19-1),SUMPRODUCT(P89:P101,P160:P172)+P174,0) -> 0 | Q28: =IF(Q24<=('0 Úvod'!$G$19+'0 Úvod'!$J$19-1),SUMPRODUCT(Q89:Q101,Q160:Q172)+Q174,0) -> 0 | R28: =IF(R24<=('0 Úvod'!$G$19+'0 Úvod'!$J$19-1),SUMPRODUCT(R89:R101,R160:R172)+R174,0) -> 0 | S28: =IF(S24<=('0 Úvod'!$G$19+'0 Úvod'!$J$19-1),SUMPRODUCT(S89:S101,S160:S172)+S174,0) -> 0
C29: =C22 -> Celkové provozní náklady | E29: =SUM(E26:E28) -> 0 | F29: 0 | G29: 0 | H29: 0 | I29: 0 | J29: 0 | K29: 0 | L29: 0 | M29: 0 | N29: 0 | O29: 0 | P29: 0 | Q29: 0 | R29: 0 | S29: 0
B32: 3.3. | C32: Přírůstkové celkové provozní náklady (CZK) | E32: =E2 -> 2016 | F32: =E32+1 -> 2017 | G32: 2018 | H32: 2019 | I32: 2020 | J32: 2021 | K32: 2022 | L32: 2023 | M32: 2024 | N32: 2025 | O32: 2026 | P32: 2027 | Q32: 2028 | R32: 2029 | S32: 2030
B33: a | D33: Celkem
C34: =C4 -> Náklady na údržbu a provoz infrastruktury | D34: =SUM(E34:S34,E41:S41) -> 0 | E34: =E4-E19 -> 0 | F34: 0 | G34: 0 | H34: 0 | I34: 0 | J34: 0 | K34: 0 | L34: 0 | M34: 0 | N34: 0 | O34: 0 | P34: 0 | Q34: 0 | R34: 0 | S34: 0
C35: =C5 -> Periodické provozní náklady / opravy | D35: =SUM(E35:S35,E42:S42) -> 0 | E35: =E5-E20 -> 0 | F35: 0 | G35: 0 | H35: 0 | I35: 0 | J35: 0 | K35: 0 | L35: 0 | M35: 0 | N35: 0 | O35: 0 | P35: 0 | Q35: 0 | R35: 0 | S35: 0
C36: =C6 -> Náklady na řízení provozu | D36: 0 | E36: =E6-E21 -> 0 | F36: 0 | G36: 0 | H36: 0 | I36: 0 | J36: 0 | K36: 0 | L36: 0 | M36: 0 | N36: 0 | O36: 0 | P36: 0 | Q36: 0 | R36: 0 | S36: 0
C37: Přírůstkové celkové provozní náklady | D37: 0 | E37: =E7-E22 -> 0 | F37: 0 | G37: 0 | H37: 0 | I37: 0 | J37: 0 | K37: 0 | L37: 0 | M37: 0 | N37: 0 | O37: 0 | P37: 0 | Q37: 0 | R37: 0 | S37: 0
B39: 3.3. | C39: Přírůstkové celkové provozní náklady (CZK) | E39: =S32+1 -> 2031 | F39: =E39+1 -> 2032 | G39: 2033 | H39: 2034 | I39: 2035 | J39: 2036 | K39: 2037 | L39: 2038 | M39: 2039 | N39: 2040 | O39: 2041 | P39: 2042 | Q39: 2043 | R39: 2044 | S39: 2045
B40: b | E40: =S33+1 -> 1
C41: =C34 -> Náklady na údržbu a provoz infrastruktury | E41: =E11-E26 -> 0 | F41: 0 | G41: 0 | H41: 0 | I41: 0 | J41: 0 | K41: 0 | L41: 0 | M41: 0 | N41: 0 | O41: 0 | P41: 0 | Q41: 0 | R41: 0 | S41: 0
C42: =C35 -> Periodické provozní náklady / opravy | E42: =E12-E27 -> 0 | F42: 0 | G42: 0 | H42: 0 | I42: 0 | J42: 0 | K42: 0 | L42: 0 | M42: 0 | N42: 0 | O42: 0 | P42: 0 | Q42: 0 | R42: 0 | S42: 0
C43: =C36 -> Náklady na řízení provozu | E43: =E13-E28 -> 0 | F43: 0 | G43: 0 | H43: 0 | I43: 0 | J43: 0 | K43: 0 | L43: 0 | M43: 0 | N43: 0 | O43: 0 | P43: 0 | Q43: 0 | R43: 0 | S43: 0
C44: Přírůstkové celkové provozní náklady | E44: =E14-E29 -> 0 | F44: 0 | G44: 0 | H44: 0 | I44: 0 | J44: 0 | K44: 0 | L44: 0 | M44: 0 | N44: 0 | O44: 0 | P44: 0 | Q44: 0 | R44: 0 | S44: 0
C47: Scénář s projektem (CZK) | D47: =D7 -> 0
C48: Scénář bez projektu (CZK) | D48: =D22 -> 0
C49: Přírůstkové cash-flow (CZK) | D49: =D37 -> 0
B52: 3.4. | C52: Náklady na řízení provozu | D52: Celk. náklady | E52: Hrubá mzda
C53: CÚ | D53: 2012 | E53: 2012
C54: Měrné ohodnocení | D54: CZK/rok | E54: CZK/rok
B55: 13167 | C55: Dozorčí provozu | D55: 700935 | E55: 515444
B56: 31606 | C56: Výpravčí | D56: 469759 | E56: 343235
B57: 31608 | C57: Dozorčí provozu - vedoucí směny | D57: 537552 | E57: 394011
B58: 41333 | C58: Operátor železniční dopravy | D58: 335996 | E58: 243243
B59: 83135 | C59: Signalista | D59: 371990 | E59: 270199
B60: 83137 | C60: Výhybkář | D60: 308844 | E60: 222345
B61: 83141 | C61: Staniční dozorce | D61: 352233 | E61: 254766
B62: 83142 | C62: Dozorce výhybek | D62: 328384 | E62: 237467
B63: 83143 | C63: Závorář | D63: 288974 | E63: 207450
B64: 83144 | C64: Závorář s prodejem jízdenek | D64: 312352 | E64: 225554
B65: 83145 | C65: Hradlář - hláskař | D65: 305523 | E65: 220391
B66: 83146 | C66: Hradlář - hláskař s prodejem jízdenek | D66: 300697 | E66: 216798
B67: 93398 | C67: Dělník v dopravě - staniční dělník | D67: 226581 | E67: 162461
B69: 3.5. | C69: Růst nákladů na řízení provozu | E69: =E32 -> 2016 | F69: =F32 -> 2017 | G69: 2018 | H69: 2019 | I69: 2020 | J69: 2021 | K69: 2022 | L69: 2023 | M69: 2024 | N69: 2025 | O69: 2026 | P69: 2027 | Q69: 2028 | R69: 2029 | S69: 2030
B70: a | D70: Elasticita
C71: Růst reálné mzdy v dopravě | D71: 1 | E71: 0 | F71: =$D$71*HLOOKUP(F$69,'0 Úvod'!$D$79:$N$81,2,TRUE) -> 0.025 | G71: =$D$71*HLOOKUP(G$69,'0 Úvod'!$D$79:$N$81,2,TRUE) -> 0.03 | H71: =$D$71*HLOOKUP(H$69,'0 Úvod'!$D$79:$N$81,2,TRUE) -> 0.03 | I71: =$D$71*HLOOKUP(I$69,'0 Úvod'!$D$79:$N$81,2,TRUE) -> 0.025 | J71: =$D$71*HLOOKUP(J$69,'0 Úvod'!$D$79:$N$81,2,TRUE) -> 0.025 | K71: =$D$71*HLOOKUP(K$69,'0 Úvod'!$D$79:$N$81,2,TRUE) -> 0.025 | L71: =$D$71*HLOOKUP(L$69,'0 Úvod'!$D$79:$N$81,2,TRUE) -> 0.025 | M71: =$D$71*HLOOKUP(M$69,'0 Úvod'!$D$79:$N$81,2,TRUE) -> 0.025 | N71: =$D$71*HLOOKUP(N$69,'0 Úvod'!$D$79:$N$81,2,TRUE) -> 0.025 | O71: =$D$71*HLOOKUP(O$69,'0 Úvod'!$D$79:$N$81,2,TRUE) -> 0.025 | P71: =$D$71*HLOOKUP(P$69,'0 Úvod'!$D$79:$N$81,2,TRUE) -> 0.025 | Q71: =$D$71*HLOOKUP(Q$69,'0 Úvod'!$D$79:$N$81,2,TRUE) -> 0.025 | R71: =$D$71*HLOOKUP(R$69,'0 Úvod'!$D$79:$N$81,2,TRUE) -> 0.025 | S71: =$D$71*HLOOKUP(S$69,'0 Úvod'!$D$79:$N$81,2,TRUE) -> 0.02
B72: =B55 -> 13167 | C72: Dozorčí provozu | E72: =D55*IF('0 Úvod'!$D$19>HLOOKUP('0 Úvod'!$D$19,'0 Úvod'!$J$51:$N$53,1,TRUE),'0 Úvod'!$N$53*(1+0.02)^('0 Úvod'!$D$19-'0 Úvod'!$N$51),HLOOKUP('0 Úvod'!$D$19,'0 Úvod'!$J$51:$N$53,3,TRUE))*IF(E$69>HLOOKUP(E$69,'0 Úvod'!$D$79:$N$81,1,TRUE),HLOOKUP(E$69,'0 Úvod'!$D$79:$N$81,3,TRUE)*(1+HLOOKUP(E$69,'0 Úvod'!$D$79:$N$81,2,TRUE)*$D$71)^(E$69-HLOOKUP(E$69,'0 Úvod'!$D$79:$N$81,1,TRUE)),HLOOKUP(E$69,'0 Úvod'!$D$79:$N$81,3,TRUE)) -> 768267.5232 | F72: =E72*(1+F$71) -> 787474.2113 | G72: =F72*(1+G$71) -> 811098.4377 | H72: 835431.3908 | I72: 856317.1756 | J72: 877725.1049 | K72: 899668.2326 | L72: 922159.9384 | M72: 945213.9368 | N72: 968844.2853 | O72: 993065.3924 | P72: 1017892.027 | Q72: 1043339.328 | R72: 1069422.811 | S72: 1090811.267
B73: 31606 | C73: Výpravčí | E73: =D56*IF('0 Úvod'!$D$19>HLOOKUP('0 Úvod'!$D$19,'0 Úvod'!$J$51:$N$53,1,TRUE),'0 Úvod'!$N$53*(1+0.02)^('0 Úvod'!$D$19-'0 Úvod'!$N$51),HLOOKUP('0 Úvod'!$D$19,'0 Úvod'!$J$51:$N$53,3,TRUE))*IF(E$69>HLOOKUP(E$69,'0 Úvod'!$D$79:$N$81,1,TRUE),HLOOKUP(E$69,'0 Úvod'!$D$79:$N$81,3,TRUE)*(1+HLOOKUP(E$69,'0 Úvod'!$D$79:$N$81,2,TRUE)*$D$71)^(E$69-HLOOKUP(E$69,'0 Úvod'!$D$79:$N$81,1,TRUE)),HLOOKUP(E$69,'0 Úvod'!$D$79:$N$81,3,TRUE)) -> 514884.5235 | F73: =E73*(1+F$71) -> 527756.6365 | G73: =F73*(1+G$71) -> 543589.3356 | H73: 559897.0157 | I73: 573894.4411 | J73: 588241.8021 | K73: 602947.8472 | L73: 618021.5434 | M73: 633472.0819 | N73: 649308.884 | O73: 665541.6061 | P73: 682180.1462 | Q73: 699234.6499 | R73: 716715.5161 | S73: 731049.8265
B74: 31608 | C74: Dozorčí provozu - vedoucí směny | E74: =D57*IF('0 Úvod'!$D$19>HLOOKUP('0 Úvod'!$D$19,'0 Úvod'!$J$51:$N$53,1,TRUE),'0 Úvod'!$N$53*(1+0.02)^('0 Úvod'!$D$19-'0 Úvod'!$N$51),HLOOKUP('0 Úvod'!$D$19,'0 Úvod'!$J$51:$N$53,3,TRUE))*IF(E$69>HLOOKUP(E$69,'0 Úvod'!$D$79:$N$81,1,TRUE),HLOOKUP(E$69,'0 Úvod'!$D$79:$N$81,3,TRUE)*(1+HLOOKUP(E$69,'0 Úvod'!$D$79:$N$81,2,TRUE)*$D$71)^(E$69-HLOOKUP(E$69,'0 Úvod'!$D$79:$N$81,1,TRUE)),HLOOKUP(E$69,'0 Úvod'!$D$79:$N$81,3,TRUE)) -> 589189.7874 | F74: 603919.5321 | G74: =F74*(1+G$71) -> 622037.1181 | H74: 640698.2316 | I74: 656715.6874 | J74: 673133.5796 | K74: 689961.9191 | L74: 707210.9671 | M74: 724891.2412 | N74: 743013.5223 | O74: 761588.8603 | P74: 780628.5818 | Q74: 800144.2964 | R74: 820147.9038 | S74: 836550.8619
B75: 41333 | C75: Operátor železniční dopravy | E75: =D58*IF('0 Úvod'!$D$19>HLOOKUP('0 Úvod'!$D$19,'0 Úvod'!$J$51:$N$53,1,TRUE),'0 Úvod'!$N$53*(1+0.02)^('0 Úvod'!$D$19-'0 Úvod'!$N$51),HLOOKUP('0 Úvod'!$D$19,'0 Úvod'!$J$51:$N$53,3,TRUE))*IF(E$69>HLOOKUP(E$69,'0 Úvod'!$D$79:$N$81,1,TRUE),HLOOKUP(E$69,'0 Úvod'!$D$79:$N$81,3,TRUE)*(1+HLOOKUP(E$69,'0 Úvod'!$D$79:$N$81,2,TRUE)*$D$71)^(E$69-HLOOKUP(E$69,'0 Úvod'!$D$79:$N$81,1,TRUE)),HLOOKUP(E$69,'0 Úvod'!$D$79:$N$81,3,TRUE)) -> 368272.1147 | F75: 377478.9176 | G75: =F75*(1+G$71) -> 388803.2851 | H75: 400467.3837 | I75: 410479.0683 | J75: 420741.045 | K75: 431259.5711 | L75: 442041.0604 | M75: 453092.0869 | N75: 464419.3891 | O75: 476029.8738 | P75: 487930.6206 | Q75: 500128.8861 | R75: 512632.1083 | S75: 522884.7505
B76: 83135 | C76: Signalista | E76: =D59*IF('0 Úvod'!$D$19>HLOOKUP('0 Úvod'!$D$19,'0 Úvod'!$J$51:$N$53,1,TRUE),'0 Úvod'!$N$53*(1+0.02)^('0 Úvod'!$D$19-'0 Úvod'!$N$51),HLOOKUP('0 Úvod'!$D$19,'0 Úvod'!$J$51:$N$53,3,TRUE))*IF(E$69>HLOOKUP(E$69,'0 Úvod'!$D$79:$N$81,1,TRUE),HLOOKUP(E$69,'0 Úvod'!$D$79:$N$81,3,TRUE)*(1+HLOOKUP(E$69,'0 Úvod'!$D$79:$N$81,2,TRUE)*$D$71)^(E$69-HLOOKUP(E$69,'0 Úvod'!$D$79:$N$81,1,TRUE)),HLOOKUP(E$69,'0 Úvod'!$D$79:$N$81,3,TRUE)) -> 407723.7347 | F76: 417916.828 | G76: =F76*(1+G$71) -> 430454.3329 | H76: 443367.9629 | I76: 454452.1619 | J76: 465813.466 | K76: 477458.8026 | L76: 489395.2727 | M76: 501630.1545 | N76: 514170.9084 | O76: 527025.1811 | P76: 540200.8106 | Q76: 553705.8309 | R76: 567548.4767 | S76: 578899.4462
B77: 83137 | C77: Výhybkář | E77: =D60*IF('0 Úvod'!$D$19>HLOOKUP('0 Úvod'!$D$19,'0 Úvod'!$J$51:$N$53,1,TRUE),'0 Úvod'!$N$53*(1+0.02)^('0 Úvod'!$D$19-'0 Úvod'!$N$51),HLOOKUP('0 Úvod'!$D$19,'0 Úvod'!$J$51:$N$53,3,TRUE))*IF(E$69>HLOOKUP(E$69,'0 Úvod'!$D$79:$N$81,1,TRUE),HLOOKUP(E$69,'0 Úvod'!$D$79:$N$81,3,TRUE)*(1+HLOOKUP(E$69,'0 Úvod'!$D$79:$N$81,2,TRUE)*$D$71)^(E$69-HLOOKUP(E$69,'0 Úvod'!$D$79:$N$81,1,TRUE)),HLOOKUP(E$69,'0 Úvod'!$D$79:$N$81,3,TRUE)) -> 338511.8662 | F77: 346974.6629 | G77: =F77*(1+G$71) -> 357383.9028 | H77: 368105.4198 | I77: 377308.0553 | J77: 386740.7567 | K77: 396409.2756 | L77: 406319.5075 | M77: 416477.4952 | N77: 426889.4326 | O77: 437561.6684 | P77: 448500.7101 | Q77: 459713.2279 | R77: 471206.0586 | S77: 480630.1797
B78: 83141 | C78: Staniční dozorce | E78: =D61*IF('0 Úvod'!$D$19>HLOOKUP('0 Úvod'!$D$19,'0 Úvod'!$J$51:$N$53,1,TRUE),'0 Úvod'!$N$53*(1+0.02)^('0 Úvod'!$D$19-'0 Úvod'!$N$51),HLOOKUP('0 Úvod'!$D$19,'0 Úvod'!$J$51:$N$53,3,TRUE))*IF(E$69>HLOOKUP(E$69,'0 Úvod'!$D$79:$N$81,1,TRUE),HLOOKUP(E$69,'0 Úvod'!$D$79:$N$81,3,TRUE)*(1+HLOOKUP(E$69,'0 Úvod'!$D$79:$N$81,2,TRUE)*$D$71)^(E$69-HLOOKUP(E$69,'0 Úvod'!$D$79:$N$81,1,TRUE)),HLOOKUP(E$69,'0 Úvod'!$D$79:$N$81,3,TRUE)) -> 386068.8573 | F78: 395720.5788 | G78: =F78*(1+G$71) -> 407592.1961 | H78: 419819.962 | I78: 430315.4611 | J78: 441073.3476 | K78: 452100.1813 | L78: 463402.6858 | M78: 474987.7529 | N78: 486862.4468 | O78: 499034.0079 | P78: 511509.8581 | Q78: 524297.6046 | R78: 537405.0447 | S78: 548153.1456
B79: 83142 | C79: Dozorce výhybek | E79: =D62*IF('0 Úvod'!$D$19>HLOOKUP('0 Úvod'!$D$19,'0 Úvod'!$J$51:$N$53,1,TRUE),'0 Úvod'!$N$53*(1+0.02)^('0 Úvod'!$D$19-'0 Úvod'!$N$51),HLOOKUP('0 Úvod'!$D$19,'0 Úvod'!$J$51:$N$53,3,TRUE))*IF(E$69>HLOOKUP(E$69,'0 Úvod'!$D$79:$N$81,1,TRUE),HLOOKUP(E$69,'0 Úvod'!$D$79:$N$81,3,TRUE)*(1+HLOOKUP(E$69,'0 Úvod'!$D$79:$N$81,2,TRUE)*$D$71)^(E$69-HLOOKUP(E$69,'0 Úvod'!$D$79:$N$81,1,TRUE)),HLOOKUP(E$69,'0 Úvod'!$D$79:$N$81,3,TRUE)) -> 359928.8983 | F79: 368927.1208 | G79: =F79*(1+G$71) -> 379994.9344 | H79: 391394.7824 | I79: 401179.652 | J79: 411209.1433 | K79: 421489.3719 | L79: 432026.6062 | M79: 442827.2713 | N79: 453897.9531 | O79: 465245.4019 | P79: 476876.537 | Q79: 488798.4504 | R79: 501018.4117 | S79: 511038.7799
B80: 83143 | C80: Závorář | E80: =D63*IF('0 Úvod'!$D$19>HLOOKUP('0 Úvod'!$D$19,'0 Úvod'!$J$51:$N$53,1,TRUE),'0 Úvod'!$N$53*(1+0.02)^('0 Úvod'!$D$19-'0 Úvod'!$N$51),HLOOKUP('0 Úvod'!$D$19,'0 Úvod'!$J$51:$N$53,3,TRUE))*IF(E$69>HLOOKUP(E$69,'0 Úvod'!$D$79:$N$81,1,TRUE),HLOOKUP(E$69,'0 Úvod'!$D$79:$N$81,3,TRUE)*(1+HLOOKUP(E$69,'0 Úvod'!$D$79:$N$81,2,TRUE)*$D$71)^(E$69-HLOOKUP(E$69,'0 Úvod'!$D$79:$N$81,1,TRUE)),HLOOKUP(E$69,'0 Úvod'!$D$79:$N$81,3,TRUE)) -> 316733.134 | F80: 324651.4623 | G80: =F80*(1+G$71) -> 334391.0062 | H80: 344422.7364 | I80: 353033.3048 | J80: 361859.1374 | K80: 370905.6158 | L80: 380178.2562 | M80: 389682.7126 | N80: 399424.7805 | O80: 409410.4 | P80: 419645.66 | Q80: 430136.8015 | R80: 440890.2215 | S80: 449708.0259
B81: 83144 | C81: Závorář s prodejem jízdenek | E81: =D64*IF('0 Úvod'!$D$19>HLOOKUP('0 Úvod'!$D$19,'0 Úvod'!$J$51:$N$53,1,TRUE),'0 Úvod'!$N$53*(1+0.02)^('0 Úvod'!$D$19-'0 Úvod'!$N$51),HLOOKUP('0 Úvod'!$D$19,'0 Úvod'!$J$51:$N$53,3,TRUE))*IF(E$69>HLOOKUP(E$69,'0 Úvod'!$D$79:$N$81,1,TRUE),HLOOKUP(E$69,'0 Úvod'!$D$79:$N$81,3,TRUE)*(1+HLOOKUP(E$69,'0 Úvod'!$D$79:$N$81,2,TRUE)*$D$71)^(E$69-HLOOKUP(E$69,'0 Úvod'!$D$79:$N$81,1,TRUE)),HLOOKUP(E$69,'0 Úvod'!$D$79:$N$81,3,TRUE)) -> 342356.8482 | F81: 350915.7694 | G81: =F81*(1+G$71) -> 361443.2425 | H81: 372286.5398 | I81: 381593.7033 | J81: 391133.5459 | K81: 400911.8845 | L81: 410934.6816 | M81: 421208.0487 | N81: 431738.2499 | O81: 442531.7061 | P81: 453594.9988 | Q81: 464934.8738 | R81: 476558.2456 | S81: 486089.4105
B82: 83145 | C82: Hradlář - hláskař | E82: =D65*IF('0 Úvod'!$D$19>HLOOKUP('0 Úvod'!$D$19,'0 Úvod'!$J$51:$N$53,1,TRUE),'0 Úvod'!$N$53*(1+0.02)^('0 Úvod'!$D$19-'0 Úvod'!$N$51),HLOOKUP('0 Úvod'!$D$19,'0 Úvod'!$J$51:$N$53,3,TRUE))*IF(E$69>HLOOKUP(E$69,'0 Úvod'!$D$79:$N$81,1,TRUE),HLOOKUP(E$69,'0 Úvod'!$D$79:$N$81,3,TRUE)*(1+HLOOKUP(E$69,'0 Úvod'!$D$79:$N$81,2,TRUE)*$D$71)^(E$69-HLOOKUP(E$69,'0 Úvod'!$D$79:$N$81,1,TRUE)),HLOOKUP(E$69,'0 Úvod'!$D$79:$N$81,3,TRUE)) -> 334871.8476 | F82: 343243.6438 | G82: =F82*(1+G$71) -> 353540.9531 | H82: 364147.1817 | I82: 373250.8612 | J82: 382582.1328 | K82: 392146.6861 | L82: 401950.3532 | M82: 411999.1121 | N82: 422299.0899 | O82: 432856.5671 | P82: 443677.9813 | Q82: 454769.9308 | R82: 466139.1791 | S82: 475461.9627
B83: 83146 | C83: Hradlář - hláskař s prodejem jízdenek | E83: =D66*IF('0 Úvod'!$D$19>HLOOKUP('0 Úvod'!$D$19,'0 Úvod'!$J$51:$N$53,1,TRUE),'0 Úvod'!$N$53*(1+0.02)^('0 Úvod'!$D$19-'0 Úvod'!$N$51),HLOOKUP('0 Úvod'!$D$19,'0 Úvod'!$J$51:$N$53,3,TRUE))*IF(E$69>HLOOKUP(E$69,'0 Úvod'!$D$79:$N$81,1,TRUE),HLOOKUP(E$69,'0 Úvod'!$D$79:$N$81,3,TRUE)*(1+HLOOKUP(E$69,'0 Úvod'!$D$79:$N$81,2,TRUE)*$D$71)^(E$69-HLOOKUP(E$69,'0 Úvod'!$D$79:$N$81,1,TRUE)),HLOOKUP(E$69,'0 Úvod'!$D$79:$N$81,3,TRUE)) -> 329582.2572 | F83: 337821.8136 | G83: =F83*(1+G$71) -> 347956.468 | H83: 358395.1621 | I83: 367355.0411 | J83: 376538.9171 | K83: 385952.3901 | L83: 395601.1998 | M83: 405491.2298 | N83: 415628.5106 | O83: 426019.2233 | P83: 436669.7039 | Q83: 447586.4465 | R83: 458776.1077 | S83: 467951.6298
B84: 93398 | C84: Dělník v dopravě - staniční dělník | E84: =D67*IF('0 Úvod'!$D$19>HLOOKUP('0 Úvod'!$D$19,'0 Úvod'!$J$51:$N$53,1,TRUE),'0 Úvod'!$N$53*(1+0.02)^('0 Úvod'!$D$19-'0 Úvod'!$N$51),HLOOKUP('0 Úvod'!$D$19,'0 Úvod'!$J$51:$N$53,3,TRUE))*IF(E$69>HLOOKUP(E$69,'0 Úvod'!$D$79:$N$81,1,TRUE),HLOOKUP(E$69,'0 Úvod'!$D$79:$N$81,3,TRUE)*(1+HLOOKUP(E$69,'0 Úvod'!$D$79:$N$81,2,TRUE)*$D$71)^(E$69-HLOOKUP(E$69,'0 Úvod'!$D$79:$N$81,1,TRUE)),HLOOKUP(E$69,'0 Úvod'!$D$79:$N$81,3,TRUE)) -> 248346.5994 | F84: 254555.2644 | G84: =F84*(1+G$71) -> 262191.9224 | H84: 270057.68 | I84: 276809.122 | J84: 283729.3501 | K84: 290822.5838 | L84: 298093.1484 | M84: 305545.4771 | N84: 313184.1141 | O84: 321013.7169 | P84: 329039.0598 | Q84: 337265.0363 | R84: 345696.6623 | S84: 352610.5955
B86: =B69 -> 3.5. | C86: =C69 -> Růst nákladů na řízení provozu | E86: =E39 -> 2031 | F86: 2032 | G86: 2033 | H86: 2034 | I86: 2035 | J86: 2036 | K86: 2037 | L86: 2038 | M86: 2039 | N86: 2040 | O86: 2041 | P86: 2042 | Q86: 2043 | R86: 2044 | S86: 2045
B87: b | D87: Elasticita
C88: =C71 -> Růst reálné mzdy v dopravě | D88: =D71 -> 1 | E88: =$D$71*HLOOKUP(E$86,'0 Úvod'!$D$79:$N$81,2,TRUE) -> 0.02 | F88: =$D$71*HLOOKUP(F$86,'0 Úvod'!$D$79:$N$81,2,TRUE) -> 0.02 | G88: =$D$71*HLOOKUP(G$86,'0 Úvod'!$D$79:$N$81,2,TRUE) -> 0.02 | H88: =$D$71*HLOOKUP(H$86,'0 Úvod'!$D$79:$N$81,2,TRUE) -> 0.02 | I88: =$D$71*HLOOKUP(I$86,'0 Úvod'!$D$79:$N$81,2,TRUE) -> 0.02 | J88: =$D$71*HLOOKUP(J$86,'0 Úvod'!$D$79:$N$81,2,TRUE) -> 0.02 | K88: =$D$71*HLOOKUP(K$86,'0 Úvod'!$D$79:$N$81,2,TRUE) -> 0.02 | L88: =$D$71*HLOOKUP(L$86,'0 Úvod'!$D$79:$N$81,2,TRUE) -> 0.02 | M88: =$D$71*HLOOKUP(M$86,'0 Úvod'!$D$79:$N$81,2,TRUE) -> 0.02 | N88: =$D$71*HLOOKUP(N$86,'0 Úvod'!$D$79:$N$81,2,TRUE) -> 0.02 | O88: =$D$71*HLOOKUP(O$86,'0 Úvod'!$D$79:$N$81,2,TRUE) -> 0.02 | P88: =$D$71*HLOOKUP(P$86,'0 Úvod'!$D$79:$N$81,2,TRUE) -> 0.02 | Q88: =$D$71*HLOOKUP(Q$86,'0 Úvod'!$D$79:$N$81,2,TRUE) -> 0.02 | R88: =$D$71*HLOOKUP(R$86,'0 Úvod'!$D$79:$N$81,2,TRUE) -> 0.02 | S88: =$D$71*HLOOKUP(S$86,'0 Úvod'!$D$79:$N$81,2,TRUE) -> 0.02
B89: =B72 -> 13167 | C89: Dozorčí provozu | E89: =S72*(1+E$88) -> 1112627.493 | F89: =E89*(1+F$88) -> 1134880.042 | G89: =F89*(1+G$88) -> 1157577.643 | H89: 1180729.196 | I89: 1204343.78 | J89: 1228430.656 | K89: 1252999.269 | L89: 1278059.254 | M89: 1303620.439 | N89: 1329692.848 | O89: 1356286.705 | P89: 1383412.439 | Q89: 1411080.688 | R89: 1439302.302 | S89: 1468088.348
B90: 31606 | C90: Výpravčí | E90: =S73*(1+E$88) -> 745670.823 | F90: =E90*(1+F$88) -> 760584.2395 | G90: =F90*(1+G$88) -> 775795.9242 | H90: 791311.8427 | I90: 807138.0796 | J90: 823280.8412 | K90: 839746.458 | L90: 856541.3872 | M90: 873672.2149 | N90: 891145.6592 | O90: 908968.5724 | P90: 927147.9438 | Q90: 945690.9027 | R90: 964604.7208 | S90: 983896.8152
B91: 31608 | C91: Dozorčí provozu - vedoucí směny | E91: 853281.8791 | F91: 870347.5167 | G91: =F91*(1+G$88) -> 887754.467 | H91: 905509.5564 | I91: 923619.7475 | J91: 942092.1424 | K91: 960933.9853 | L91: 980152.665 | M91: 999755.7183 | N91: 1019750.833 | O91: 1040145.849 | P91: 1060948.766 | Q91: 1082167.742 | R91: 1103811.096 | S91: 1125887.318
B92: 41333 | C92: Operátor železniční dopravy | E92: 533342.4455 | F92: 544009.2944 | G92: =F92*(1+G$88) -> 554889.4803 | H92: 565987.2699 | I92: 577307.0153 | J92: 588853.1556 | K92: 600630.2187 | L92: 612642.8231 | M92: 624895.6795 | N92: 637393.5931 | O92: 650141.465 | P92: 663144.2943 | Q92: 676407.1802 | R92: 689935.3238 | S92: 703734.0302
B93: 83135 | C93: Signalista | E93: 590477.4351 | F93: 602286.9838 | G93: =F93*(1+G$88) -> 614332.7235 | H93: 626619.378 | I93: 639151.7655 | J93: 651934.8008 | K93: 664973.4969 | L93: 678272.9668 | M93: 691838.4261 | N93: 705675.1947 | O93: 719788.6985 | P93: 734184.4725 | Q93: 748868.162 | R93: 763845.5252 | S93: 779122.4357
B94: 83137 | C94: Výhybkář | E94: 490242.7833 | F94: 500047.639 | G94: =F94*(1+G$88) -> 510048.5918 | H94: 520249.5636 | I94: 530654.5549 | J94: 541267.646 | K94: 552092.9989 | L94: 563134.8589 | M94: 574397.5561 | N94: 585885.5072 | O94: 597603.2173 | P94: 609555.2817 | Q94: 621746.3873 | R94: 634181.3151 | S94: 646864.9414
B95: 83141 | C95: Staniční dozorce | E95: 559116.2085 | F95: 570298.5327 | G95: =F95*(1+G$88) -> 581704.5033 | H95: 593338.5934 | I95: 605205.3653 | J95: 617309.4726 | K95: 629655.662 | L95: 642248.7753 | M95: 655093.7508 | N95: 668195.6258 | O95: 681559.5383 | P95: 695190.7291 | Q95: 709094.5437 | R95: 723276.4345 | S95: 737741.9632
B96: 83142 | C96: Dozorce výhybek | E96: 521259.5555 | F96: 531684.7466 | G96: =F96*(1+G$88) -> 542318.4416 | H96: 553164.8104 | I96: 564228.1066 | J96: 575512.6687 | K96: 587022.9221 | L96: 598763.3805 | M96: 610738.6482 | N96: 622953.4211 | O96: 635412.4895 | P96: 648120.7393 | Q96: 661083.1541 | R96: 674304.8172 | S96: 687790.9135
B97: 83143 | C97: Závorář | E97: 458702.1864 | F97: 467876.2302 | G97: =F97*(1+G$88) -> 477233.7548 | H97: 486778.4299 | I97: 496513.9985 | J97: 506444.2784 | K97: 516573.164 | L97: 526904.6273 | M97: 537442.7198 | N97: 548191.5742 | O97: 559155.4057 | P97: 570338.5138 | Q97: 581745.2841 | R97: 593380.1898 | S97: 605247.7936
B98: 83144 | C98: Závorář s prodejem jízdenek | E98: 495811.1987 | F98: 505727.4227 | G98: =F98*(1+G$88) -> 515841.9712 | H98: 526158.8106 | I98: 536681.9868 | J98: 547415.6265 | K98: 558363.9391 | L98: 569531.2178 | M98: 580921.8422 | N98: 592540.279 | O98: 604391.0846 | P98: 616478.9063 | Q98: 628808.4844 | R98: 641384.6541 | S98: 654212.3472
B99: 83145 | C99: Hradlář - hláskař | E99: 484971.2019 | F99: 494670.626 | G99: =F99*(1+G$88) -> 504564.0385 | H99: 514655.3193 | I99: 524948.4257 | J99: 535447.3942 | K99: 546156.3421 | L99: 557079.4689 | M99: 568221.0583 | N99: 579585.4794 | O99: 591177.189 | P99: 603000.7328 | Q99: 615060.7475 | R99: 627361.9624 | S99: 639909.2017
B100: 83146 | C100: Hradlář - hláskař s prodejem jízdenek | E100: 477310.6624 | F100: 486856.8757 | G100: =F100*(1+G$88) -> 496594.0132 | H100: 506525.8934 | I100: 516656.4113 | J100: 526989.5395 | K100: 537529.3303 | L100: 548279.9169 | M100: 559245.5153 | N100: 570430.4256 | O100: 581839.0341 | P100: 593475.8148 | Q100: 605345.3311 | R100: 617452.2377 | S100: 629801.2824
B101: 93398 | C101: Dělník v dopravě - staniční dělník | E101: 359662.8074 | F101: 366856.0636 | G101: =F101*(1+G$88) -> 374193.1848 | H101: 381677.0485 | I101: 389310.5895 | J101: 397096.8013 | K101: 405038.7373 | L101: 413139.5121 | M101: 421402.3023 | N101: 429830.3483 | O101: 438426.9553 | P101: 447195.4944 | Q101: 456139.4043 | R101: 465262.1924 | S101: 474567.4362
B104: 3.6. | C104: Počty zaměstnanců | E104: =E69 -> 2016 | F104: 2017 | G104: 2018 | H104: 2019 | I104: 2020 | J104: 2021 | K104: 2022 | L104: 2023 | M104: 2024 | N104: 2025 | O104: 2026 | P104: 2027 | Q104: 2028 | R104: 2029 | S104: 2030
B105: a | C105: Scénář s projektem
B106: =B89 -> 13167 | C106: Dozorčí provozu
B107: 31606 | C107: Výpravčí
B108: 31608 | C108: Dozorčí provozu - vedoucí směny
B109: 41333 | C109: Operátor železniční dopravy
B110: 83135 | C110: Signalista
B111: 83137 | C111: Výhybkář
B112: 83141 | C112: Staniční dozorce
B113: 83142 | C113: Dozorce výhybek
B114: 83143 | C114: Závorář
B115: 83144 | C115: Závorář s prodejem jízdenek
B116: 83145 | C116: Hradlář - hláskař
B117: 83146 | C117: Hradlář - hláskař s prodejem jízdenek
B118: 93398 | C118: Dělník v dopravě - staniční dělník
C119: Celkem | E119: =SUM(E106:E118) -> 0 | F119: 0 | G119: 0 | H119: 0 | I119: 0 | J119: 0 | K119: 0 | L119: 0 | M119: 0 | N119: 0 | O119: 0 | P119: 0 | Q119: 0 | R119: 0 | S119: 0
C120: Odstupné | E120: =SUMPRODUCT($E$55:$E$67*(E$72/$D$55)/4,E106:E118-F106:F118) -> 0 | F120: =SUMPRODUCT($E$55:$E$67*(F$72/$D$55)/4,F106:F118-G106:G118) -> 0 | G120: 0 | H120: 0 | I120: 0 | J120: 0 | K120: 0 | L120: 0 | M120: 0 | N120: 0 | O120: =SUMPRODUCT($E$55:$E$67*(O$72/$D$55)/4,O106:O118-P106:P118) -> 0 | P120: 0 | Q120: 0 | R120: 0 | S120: =SUMPRODUCT($E$55:$E$67*(S$72/$D$55)/4,S106:S118-E124:E136) -> 0
B122: =B104 -> 3.6. | C122: =C104 -> Počty zaměstnanců | E122: =E86 -> 2031 | F122: 2032 | G122: 2033 | H122: 2034 | I122: 2035 | J122: 2036 | K122: 2037 | L122: 2038 | M122: 2039 | N122: 2040 | O122: 2041 | P122: 2042 | Q122: 2043 | R122: 2044 | S122: 2045
B123: b | C123: Scénář s projektem
B124: =B106 -> 13167 | C124: Dozorčí provozu
B125: 31606 | C125: Výpravčí
B126: 31608 | C126: Dozorčí provozu - vedoucí směny
B127: 41333 | C127: Operátor železniční dopravy
B128: 83135 | C128: Signalista
B129: 83137 | C129: Výhybkář
B130: 83141 | C130: Staniční dozorce
B131: 83142 | C131: Dozorce výhybek
B132: 83143 | C132: Závorář
B133: 83144 | C133: Závorář s prodejem jízdenek
B134: 83145 | C134: Hradlář - hláskař
B135: 83146 | C135: Hradlář - hláskař s prodejem jízdenek
B136: 93398 | C136: Dělník v dopravě - staniční dělník
C137: Celkem | E137: =SUM(E124:E136) -> 0 | F137: =SUM(F124:F136) -> 0 | G137: 0 | H137: 0 | I137: 0 | J137: 0 | K137: 0 | L137: 0 | M137: 0 | N137: 0 | O137: 0 | P137: 0 | Q137: 0 | R137: 0 | S137: 0
C138: Odstupné | E138: =SUMPRODUCT($E$55:$E$67*(E$89/$D$55)/4,E124:E136-F124:F136) -> 0 | F138: =SUMPRODUCT($E$55:$E$67*(F$89/$D$55)/4,F124:F136-G124:G136) -> 0 | G138: 0 | H138: 0 | I138: 0 | J138: 0 | K138: 0 | L138: 0 | M138: 0 | N138: 0 | O138: 0 | P138: 0 | Q138: 0 | R138: 0 | S138: 0
B140: 3.7. | C140: =C122 -> Počty zaměstnanců | E140: =E104 -> 2016 | F140: 2017 | G140: 2018 | H140: 2019 | I140: 2020 | J140: 2021 | K140: 2022 | L140: 2023 | M140: 2024 | N140: 2025 | O140: 2026 | P140: 2027 | Q140: 2028 | R140: 2029 | S140: 2030
B141: a | C141: Scénář bez projektu
B142: =B124 -> 13167 | C142: Dozorčí provozu
B143: 31606 | C143: Výpravčí
B144: 31608 | C144: Dozorčí provozu - vedoucí směny
B145: 41333 | C145: Operátor železniční dopravy
B146: 83135 | C146: Signalista
B147: 83137 | C147: Výhybkář
B148: 83141 | C148: Staniční dozorce
B149: 83142 | C149: Dozorce výhybek
B150: 83143 | C150: Závorář
B151: 83144 | C151: Závorář s prodejem jízdenek
B152: 83145 | C152: Hradlář - hláskař
B153: 83146 | C153: Hradlář - hláskař s prodejem jízdenek
B154: 93398 | C154: Dělník v dopravě - staniční dělník
C155: Celkem | E155: =SUM(E142:E154) -> 0 | F155: =SUM(F142:F154) -> 0 | G155: 0 | H155: 0 | I155: 0 | J155: 0 | K155: 0 | L155: 0 | M155: 0 | N155: 0 | O155: 0 | P155: 0 | Q155: 0 | R155: 0 | S155: 0
C156: Odstupné | E156: =SUMPRODUCT($E$55:$E$67*(E$72/$D$55)/4,E142:E154-F142:F154) -> 0 | F156: =SUMPRODUCT($E$55:$E$67*(F$72/$D$55)/4,F142:F154-G142:G154) -> 0 | G156: 0 | H156: 0 | I156: 0 | J156: 0 | K156: 0 | L156: 0 | M156: 0 | N156: 0 | O156: =SUMPRODUCT($E$55:$E$67*(O$72/$D$55)/4,O142:O154-P142:P154) -> 0 | P156: 0 | Q156: 0 | R156: 0 | S156: =SUMPRODUCT($E$55:$E$67*(S$72/$D$55)/4,S142:S154-E160:E172) -> 0
B158: =B140 -> 3.7. | C158: =C122 -> Počty zaměstnanců | E158: =E122 -> 2031 | F158: 2032 | G158: 2033 | H158: 2034 | I158: 2035 | J158: 2036 | K158: 2037 | L158: 2038 | M158: 2039 | N158: 2040 | O158: 2041 | P158: 2042 | Q158: 2043 | R158: 2044 | S158: 2045
B159: b | C159: Scénář bez projektu | E159: 1 | F159: 2 | G159: 3 | H159: 4 | I159: 5 | J159: 6 | K159: 7 | L159: 8 | M159: 9 | N159: 10 | O159: 11 | P159: 12 | Q159: 13 | R159: 14 | S159: 15
B160: =B142 -> 13167 | C160: Dozorčí provozu
B161: 31606 | C161: Výpravčí
B162: 31608 | C162: Dozorčí provozu - vedoucí směny
B163: 41333 | C163: Operátor železniční dopravy
B164: 83135 | C164: Signalista
B165: 83137 | C165: Výhybkář
B166: 83141 | C166: Staniční dozorce
B167: 83142 | C167: Dozorce výhybek
B168: 83143 | C168: Závorář
B169: 83144 | C169: Závorář s prodejem jízdenek
B170: 83145 | C170: Hradlář - hláskař
B171: 83146 | C171: Hradlář - hláskař s prodejem jízdenek
B172: 93398 | C172: Dělník v dopravě - staniční dělník
C173: Celkem | E173: =SUM(E160:E172) -> 0 | F173: =SUM(F160:F172) -> 0 | G173: 0 | H173: 0 | I173: 0 | J173: 0 | K173: 0 | L173: 0 | M173: 0 | N173: 0 | O173: 0 | P173: 0 | Q173: 0 | R173: 0 | S173: 0
C174: Odstupné | E174: =SUMPRODUCT($E$55:$E$67*(E$89/$D$55)/4,E160:E172-F160:F172) -> 0 | F174: =SUMPRODUCT($E$55:$E$67*(F$89/$D$55)/4,F160:F172-G160:G172) -> 0 | G174: 0 | H174: 0 | I174: 0 | J174: 0 | K174: 0 | L174: 0 | M174: 0 | N174: 0 | O174: 0 | P174: 0 | Q174: 0 | R174: 0 | S174: 0
B177: Komentáře
B179: V tabulkách 3.1 a 3.2 zpracovatel přímo dopočítává a vyplňuje pouze provozní náklady na údržbu a opravy infrastruktury.
B180: Pro vyčíslení provozních nákladů na řízení dopravy se využije přednastavených vzorců v tabulkách 3.1, 3.2 a 3.5. Zpracovatel vyplňuje pouze tabulky 3.6 a 3.7 a ověřuje správnost výpočtu odstupného.

Sheet 4 Tržby
B2: 4.1. | C2: Celkové provozní příjmy (CZK) | E2: ='0 Úvod'!G19 -> 2016 | F2: =E2+1 -> 2017 | G2: 2018 | H2: 2019 | I2: 2020 | J2: 2021 | K2: 2022 | L2: 2023 | M2: 2024 | N2: 2025 | O2: 2026 | P2: 2027 | Q2: 2028 | R2: 2029 | S2: 2030
B3: a | C3: Scénář s projektem | D3: Celkem
C4: Příjmy z poplatků za dopravní cestu - osobní doprava | D4: =SUM(E4:S4,E11:S11) -> 0 | E4: =E61*$E$54+E62*$F$54+E63*$G$54+(E64*$E$55+E65*$F$55+E66*$G$55)/1000 -> 0 | F4: =F61*$E$54+F62*$F$54+F63*$G$54+(F64*$E$55+F65*$F$55+F66*$G$55)/1000 -> 0 | G4: 0 | H4: 0 | I4: 0 | J4: 0 | K4: 0 | L4: 0 | M4: 0 | N4: 0 | O4: 0 | P4: 0 | Q4: 0 | R4: 0 | S4: 0
C5: Příjmy z poplatků za dopravní cestu - nákladní doprava | D5: =SUM(E5:S5,E12:S12) -> 0 | E5: =$H$54*E67+$I$54*E68+$J$54*E69+($H$55*E70+$I$55*E71+$J$55*E72)/1000 -> 0 | F5: =$H$54*F67+$I$54*F68+$J$54*F69+($H$55*F70+$I$55*F71+$J$55*F72)/1000 -> 0 | G5: 0 | H5: 0 | I5: 0 | J5: 0 | K5: 0 | L5: 0 | M5: 0 | N5: 0 | O5: 0 | P5: 0 | Q5: 0 | R5: 0 | S5: 0
C6: Ostatní příjmy | D6: =SUM(E6:S6,E13:S13) -> 0
C7: Celkové provozní příjmy (CZK) | D7: =SUM(E7:S7,E14:S14) -> 0 | E7: =SUM(E4:E6) -> 0 | F7: =SUM(F4:F6) -> 0 | G7: 0 | H7: =SUM(H4:H6) -> 0 | I7: 0 | J7: 0 | K7: 0 | L7: 0 | M7: 0 | N7: 0 | O7: 0 | P7: 0 | Q7: 0 | R7: 0 | S7: 0
B9: 4.1. | C9: Celkové provozní příjmy (CZK) | E9: =S2+1 -> 2031 | F9: =E9+1 -> 2032 | G9: 2033 | H9: 2034 | I9: 2035 | J9: 2036 | K9: 2037 | L9: 2038 | M9: 2039 | N9: 2040 | O9: 2041 | P9: 2042 | Q9: 2043 | R9: 2044 | S9: 2045
B10: b | C10: Scénář s projektem
C11: Příjmy z poplatků za dopravní cestu - osobní doprava | E11: =E77*$E$54+E78*$F$54+E79*$G$54+(E80*$E$55+E81*$F$55+E82*$G$55)/1000 -> 0 | F11: =F77*$E$54+F78*$F$54+F79*$G$54+(F80*$E$55+F81*$F$55+F82*$G$55)/1000 -> 0 | G11: 0 | H11: 0 | I11: 0 | J11: 0 | K11: 0 | L11: 0 | M11: 0 | N11: 0 | O11: 0 | P11: 0 | Q11: 0 | R11: 0 | S11: 0
C12: Příjmy z poplatků za dopravní cestu - nákladní doprava | E12: =$H$54*E83+$I$54*E84+$J$54*E85+($H$55*E86+$I$55*E87+$J$55*E88)/1000 -> 0 | F12: =$H$54*F83+$I$54*F84+$J$54*F85+($H$55*F86+$I$55*F87+$J$55*F88)/1000 -> 0 | G12: 0 | H12: 0 | I12: 0 | J12: 0 | K12: 0 | L12: 0 | M12: 0 | N12: 0 | O12: 0 | P12: 0 | Q12: 0 | R12: 0 | S12: 0
C13: Ostatní příjmy
C14: Celkové provozní příjmy (CZK) | E14: =SUM(E11:E13) -> 0 | F14: 0 | G14: 0 | H14: 0 | I14: 0 | J14: 0 | K14: 0 | L14: 0 | M14: 0 | N14: 0 | O14: 0 | P14: 0 | Q14: 0 | R14: 0 | S14: 0
B17: 4.2. | C17: Celkové provozní příjmy (CZK) | E17: =E2 -> 2016 | F17: =E17+1 -> 2017 | G17: 2018 | H17: 2019 | I17: 2020 | J17: 2021 | K17: 2022 | L17: 2023 | M17: 2024 | N17: 2025 | O17: 2026 | P17: 2027 | Q17: 2028 | R17: 2029 | S17: 2030
B18: a | C18: Scénář bez projektu | D18: Celkem
C19: Příjmy z poplatků za dopravní cestu - osobní doprava | D19: =SUM(E19:S19,E26:S26) -> 0 | E19: =E94*$E$54+E95*$F$54+E96*$G$54+(E97*$E$55+E98*$F$55+E99*$G$55)/1000 -> 0 | F19: =F94*$E$54+F95*$F$54+F96*$G$54+(F97*$E$55+F98*$F$55+F99*$G$55)/1000 -> 0 | G19: 0 | H19: 0 | I19: 0 | J19: 0 | K19: 0 | L19: 0 | M19: 0 | N19: 0 | O19: 0 | P19: 0 | Q19: 0 | R19: 0 | S19: 0
C20: Příjmy z poplatků za dopravní cestu - nákladní doprava | D20: =SUM(E20:S20,E27:S27) -> 0 | E20: =$H$54*E100+$I$54*E101+$J$54*E102+($H$55*E103+$I$55*E104+$J$55*E105)/1000 -> 0 | F20: =$H$54*F100+$I$54*F101+$J$54*F102+($H$55*F103+$I$55*F104+$J$55*F105)/1000 -> 0 | G20: 0 | H20: 0 | I20: 0 | J20: 0 | K20: 0 | L20: 0 | M20: 0 | N20: 0 | O20: 0 | P20: 0 | Q20: 0 | R20: 0 | S20: 0
C21: Ostatní příjmy | D21: =SUM(E21:S21,E28:S28) -> 0
C22: Celkové provozní příjmy (CZK) | D22: =SUM(E22:S22,E29:S29) -> 0 | E22: =SUM(E19:E21) -> 0 | F22: 0 | G22: 0 | H22: 0 | I22: 0 | J22: 0 | K22: 0 | L22: 0 | M22: 0 | N22: 0 | O22: 0 | P22: 0 | Q22: 0 | R22: 0 | S22: 0
B24: 4.2. | C24: Celkové provozní příjmy (CZK) | E24: =S17+1 -> 2031 | F24: =E24+1 -> 2032 | G24: 2033 | H24: 2034 | I24: 2035 | J24: 2036 | K24: 2037 | L24: 2038 | M24: 2039 | N24: 2040 | O24: 2041 | P24: 2042 | Q24: 2043 | R24: 2044 | S24: 2045
B25: b | C25: Scénář bez projektu
C26: Příjmy z poplatků za dopravní cestu - osobní doprava | E26: =E110*$E$54+E111*$F$54+E112*$G$54+(E113*$E$55+E114*$F$55+E115*$G$55)/1000 -> 0 | F26: =F110*$E$54+F111*$F$54+F112*$G$54+(F113*$E$55+F114*$F$55+F115*$G$55)/1000 -> 0 | G26: 0 | H26: 0 | I26: 0 | J26: 0 | K26: 0 | L26: 0 | M26: 0 | N26: 0 | O26: 0 | P26: 0 | Q26: 0 | R26: 0 | S26: 0
C27: Příjmy z poplatků za dopravní cestu - nákladní doprava | E27: =$H$54*E116+$I$54*E117+$J$54*E118+($H$55*E119+$I$55*E120+$J$55*E121)/1000 -> 0 | F27: =$H$54*F116+$I$54*F117+$J$54*F118+($H$55*F119+$I$55*F120+$J$55*F121)/1000 -> 0 | G27: 0 | H27: 0 | I27: 0 | J27: 0 | K27: 0 | L27: 0 | M27: 0 | N27: 0 | O27: 0 | P27: 0 | Q27: 0 | R27: 0 | S27: 0
C28: Ostatní příjmy
C29: Celkové provozní příjmy (CZK) | E29: =SUM(E26:E28) -> 0 | F29: 0 | G29: 0 | H29: 0 | I29: 0 | J29: 0 | K29: 0 | L29: 0 | M29: 0 | N29: 0 | O29: 0 | P29: 0 | Q29: 0 | R29: 0 | S29: 0
B32: 4.3. | C32: Celkové přírůstkové provozní příjmy (CZK) | E32: =E2 -> 2016 | F32: =E32+1 -> 2017 | G32: 2018 | H32: 2019 | I32: 2020 | J32: 2021 | K32: 2022 | L32: 2023 | M32: 2024 | N32: 2025 | O32: 2026 | P32: 2027 | Q32: 2028 | R32: 2029 | S32: 2030
B33: a | C33: Přírůstek cash-flow | D33: Celkem
C34: Příjmy z poplatků za dopravní cestu - osobní doprava | D34: =SUM(E34:S34,E41:S41) -> 0 | E34: =E4-E19 -> 0 | F34: =F4-F19 -> 0 | G34: 0 | H34: 0 | I34: 0 | J34: 0 | K34: 0 | L34: 0 | M34: 0 | N34: 0 | O34: 0 | P34: 0 | Q34: 0 | R34: 0 | S34: 0
C35: Příjmy z poplatků za dopravní cestu - nákladní doprava | D35: =SUM(E35:S35,E42:S42) -> 0 | E35: =E5-E20 -> 0 | F35: =F5-F20 -> 0 | G35: 0 | H35: 0 | I35: 0 | J35: 0 | K35: 0 | L35: 0 | M35: 0 | N35: 0 | O35: 0 | P35: 0 | Q35: 0 | R35: 0 | S35: 0
C36: Ostatní příjmy | D36: =SUM(E36:S36,E43:S43) -> 0 | E36: =E6-E21 -> 0 | F36: =F6-F21 -> 0 | G36: 0 | H36: 0 | I36: 0 | J36: 0 | K36: 0 | L36: 0 | M36: 0 | N36: 0 | O36: 0 | P36: 0 | Q36: 0 | R36: 0 | S36: 0
C37: Celkové přírůstkové provozní příjmy (CZK) | D37: =SUM(E37:S37,E44:S44) -> 0 | E37: =E7-E22 -> 0 | F37: =F7-F22 -> 0 | G37: 0 | H37: 0 | I37: 0 | J37: 0 | K37: 0 | L37: 0 | M37: 0 | N37: 0 | O37: 0 | P37: 0 | Q37: 0 | R37: 0 | S37: 0
B39: 4.3. | C39: Celkové přírůstkové provozní příjmy (CZK) | E39: =S32+1 -> 2031 | F39: =E39+1 -> 2032 | G39: 2033 | H39: 2034 | I39: 2035 | J39: 2036 | K39: 2037 | L39: 2038 | M39: 2039 | N39: 2040 | O39: 2041 | P39: 2042 | Q39: 2043 | R39: 2044 | S39: 2045
B40: b | C40: Přírůstek cash-flow
C41: Příjmy z poplatků za dopravní cestu - osobní doprava | E41: =E11-E26 -> 0 | F41: 0 | G41: 0 | H41: 0 | I41: 0 | J41: 0 | K41: 0 | L41: 0 | M41: 0 | N41: 0 | O41: 0 | P41: 0 | Q41: 0 | R41: 0 | S41: =S11-S26 -> 0
C42: Příjmy z poplatků za dopravní cestu - nákladní doprava | E42: 0 | F42: 0 | G42: 0 | H42: 0 | I42: 0 | J42: 0 | K42: 0 | L42: 0 | M42: 0 | N42: 0 | O42: 0 | P42: 0 | Q42: 0 | R42: 0 | S42: 0
C43: Ostatní příjmy | E43: =E13-E28 -> 0 | F43: 0 | G43: 0 | H43: 0 | I43: 0 | J43: 0 | K43: 0 | L43: 0 | M43: 0 | N43: 0 | O43: 0 | P43: 0 | Q43: 0 | R43: 0 | S43: =S13-S28 -> 0
C44: Celkové přírůstkové provozní příjmy (CZK) | E44: =E14-E29 -> 0 | F44: 0 | G44: 0 | H44: 0 | I44: 0 | J44: 0 | K44: 0 | L44: 0 | M44: 0 | N44: 0 | O44: 0 | P44: 0 | Q44: 0 | R44: 0 | S44: =S14-S29 -> 0
C47: Scénář s projektem (CZK) | D47: =D7 -> 0
C48: Scénář bez projektu (CZK) | D48: =D22 -> 0
C49: Přírůstek cash-flow (CZK) | D49: =D37 -> 0
E52: Osobní | H52: Nákladní
B53: 4.4. | C53: Příjmy z poplatků za dopravní cestu | E53: TEN-T | F53: celostátní | G53: regionální | H53: TEN-T | I53: celostátní | J53: regionální
C54: Poplatek za provozování dopravní cesty | D54: Kč/vlkm | E54: 7.81 | F54: 6.49 | G54: 5.5 | H54: 36.1 | I54: 35.33 | J54: 33.19
C55: Poplatek za zajištění provozuschopnosti DC | D55: Kč/1000 hrtkm | E55: 44.77 | F55: 35.59 | G55: 30.16 | H55: 49.23 | I55: 43.88 | J55: 33.6
C56: Zdroj: „Prohlášení o dráze celostátní a regionální platné pro jízdní řád 2016 a 2017“ (příloha C, část C)
B59: 4.5. | C59: Celkové výkony | E59: =E2 -> 2016 | F59: =E59+1 -> 2017 | G59: 2018 | H59: 2019 | I59: 2020 | J59: 2021 | K59: 2022 | L59: 2023 | M59: 2024 | N59: 2025 | O59: 2026 | P59: 2027 | Q59: 2028 | R59: 2029 | S59: 2030
B60: a | C60: Scénář s projektem | D60: Celkem
B61: S1E | C61: vlkm - osobní doprava - dráhy TEN-T | D61: =SUM(E61:S61,E77:S77) -> 0
B62: S1C | C62: vlkm - osobní doprava - celostátní | D62: =SUM(E62:S62,E78:S78) -> 0
B63: S1R | C63: vlkm - osobní doprava - regionální | D63: 0
B64: S2E | C64: hrtkm - osobní doprava - dráhy TEN-T | D64: 0
B65: S2C | C65: hrtkm - osobní doprava - celostátní | D65: 0
B66: S2R | C66: hrtkm - osobní doprava - regionální | D66: 0
B67: S1E | C67: vlkm - nákladní doprava - dráhy TEN-T | D67: 0
B68: S1C | C68: vlkm - nákladní doprava - celostátní | D68: 0
B69: S1R | C69: vlkm - nákladní doprava - regionální | D69: 0
B70: S2E | C70: hrtkm - nákladní doprava - dráhy TEN-T | D70: 0
B71: S2C | C71: hrtkm - nákladní doprava - celostátní | D71: 0
B72: S2R | C72: hrtkm - nákladní doprava - regionální | D72: 0
B75: =B59 -> 4.5. | C75: =C59 -> Celkové výkony | E75: =S59+1 -> 2031 | F75: =E75+1 -> 2032 | G75: 2033 | H75: 2034 | I75: 2035 | J75: 2036 | K75: 2037 | L75: 2038 | M75: 2039 | N75: 2040 | O75: 2041 | P75: 2042 | Q75: 2043 | R75: 2044 | S75: 2045
B76: b | C76: Scénář s projektem
B77: =B61 -> S1E | C77: vlkm - osobní doprava - dráhy TEN-T
B78: S1C | C78: vlkm - osobní doprava - celostátní
B79: S1R | C79: vlkm - osobní doprava - regionální
B80: S2E | C80: hrtkm - osobní doprava - dráhy TEN-T
B81: S2C | C81: hrtkm - osobní doprava - celostátní
B82: S2R | C82: hrtkm - osobní doprava - regionální
B83: S1E | C83: vlkm - nákladní doprava - dráhy TEN-T
B84: S1C | C84: vlkm - nákladní doprava - celostátní
B85: S1R | C85: vlkm - nákladní doprava - regionální
B86: S2E | C86: hrtkm - nákladní doprava - dráhy TEN-T
B87: S2C | C87: hrtkm - nákladní doprava - celostátní
B88: S2R | C88: hrtkm - nákladní doprava - regionální
B92: 4.6. | C92: Celkové výkony | E92: =E59 -> 2016 | F92: =E92+1 -> 2017 | G92: 2018 | H92: 2019 | I92: 2020 | J92: 2021 | K92: 2022 | L92: 2023 | M92: 2024 | N92: 2025 | O92: 2026 | P92: 2027 | Q92: 2028 | R92: 2029 | S92: 2030
B93: a | C93: Scénář bez projektu | D93: Celkem
B94: =B77 -> S1E | C94: vlkm - osobní doprava - dráhy TEN-T | D94: =SUM(E94:S94,E110:S110) -> 0
B95: S1C | C95: vlkm - osobní doprava - celostátní | D95: =SUM(E95:S95,E111:S111) -> 0
B96: S1R | C96: vlkm - osobní doprava - regionální | D96: 0
B97: S2E | C97: hrtkm - osobní doprava - dráhy TEN-T | D97: 0
B98: S2C | C98: hrtkm - osobní doprava - celostátní | D98: 0
B99: S2R | C99: hrtkm - osobní doprava - regionální | D99: 0
B100: S1E | C100: vlkm - nákladní doprava - dráhy TEN-T | D100: 0
B101: S1C | C101: vlkm - nákladní doprava - celostátní | D101: 0
B102: S1R | C102: vlkm - nákladní doprava - regionální | D102: 0
B103: S2E | C103: hrtkm - nákladní doprava - dráhy TEN-T | D103: 0
B104: S2C | C104: hrtkm - nákladní doprava - celostátní | D104: 0
B105: S2R | C105: hrtkm - nákladní doprava - regionální | D105: 0
B108: =B92 -> 4.6. | C108: =C92 -> Celkové výkony | E108: =S92+1 -> 2031 | F108: =E108+1 -> 2032 | G108: 2033 | H108: 2034 | I108: 2035 | J108: 2036 | K108: 2037 | L108: 2038 | M108: 2039 | N108: 2040 | O108: 2041 | P108: 2042 | Q108: 2043 | R108: 2044 | S108: 2045
B109: b | C109: Scénář bez projektu
B110: =B94 -> S1E | C110: vlkm - osobní doprava - dráhy TEN-T
B111: S1C | C111: vlkm - osobní doprava - celostátní
B112: S1R | C112: vlkm - osobní doprava - regionální
B113: S2E | C113: hrtkm - osobní doprava - dráhy TEN-T
B114: S2C | C114: hrtkm - osobní doprava - celostátní
B115: S2R | C115: hrtkm - osobní doprava - regionální
B116: S1E | C116: vlkm - nákladní doprava - dráhy TEN-T
B117: S1C | C117: vlkm - nákladní doprava - celostátní
B118: S1R | C118: vlkm - nákladní doprava - regionální
B119: S2E | C119: hrtkm - nákladní doprava - dráhy TEN-T
B120: S2C | C120: hrtkm - nákladní doprava - celostátní
B121: S2R | C121: hrtkm - nákladní doprava - regionální
B124: Komentáře
B126: Zpracovatel uvede konkrétní hodnoty výstupů z dopravního prognózování použité při výpočtu příjmů z poplatku za dopravní cestu. Tabulky 4.5. a 4.6. je možné přizpůsobit konkrétnímu projektu.

Sheet 5 Finanční analýza (FRR_C)
B2: 5.1. | C2: Kalkulace finančního vnitřního výnosového procenta | E2: ='0 Úvod'!G19 -> 2016 | F2: =E2+1 -> 2017 | G2: 2018 | H2: 2019 | I2: 2020 | J2: 2021 | K2: 2022 | L2: 2023 | M2: 2024 | N2: 2025 | O2: 2026 | P2: 2027 | Q2: 2028 | R2: 2029 | S2: 2030
B3: a | D3: Celkem
C4: Celkové přírůstkové provozní příjmy | D4: =SUM(E4:S4,E16:S16) -> 0 | E4: =IF(E2<=('0 Úvod'!$G$19+'0 Úvod'!$J$19-1),'4 Tržby'!E37,0) -> 0 | F4: =IF(F2<=('0 Úvod'!$G$19+'0 Úvod'!$J$19-1),'4 Tržby'!F37,0) -> 0 | G4: =IF(G2<=('0 Úvod'!$G$19+'0 Úvod'!$J$19-1),'4 Tržby'!G37,0) -> 0 | H4: =IF(H2<=('0 Úvod'!$G$19+'0 Úvod'!$J$19-1),'4 Tržby'!H37,0) -> 0 | I4: =IF(I2<=('0 Úvod'!$G$19+'0 Úvod'!$J$19-1),'4 Tržby'!I37,0) -> 0 | J4: =IF(J2<=('0 Úvod'!$G$19+'0 Úvod'!$J$19-1),'4 Tržby'!J37,0) -> 0 | K4: =IF(K2<=('0 Úvod'!$G$19+'0 Úvod'!$J$19-1),'4 Tržby'!K37,0) -> 0 | L4: =IF(L2<=('0 Úvod'!$G$19+'0 Úvod'!$J$19-1),'4 Tržby'!L37,0) -> 0 | M4: =IF(M2<=('0 Úvod'!$G$19+'0 Úvod'!$J$19-1),'4 Tržby'!M37,0) -> 0 | N4: =IF(N2<=('0 Úvod'!$G$19+'0 Úvod'!$J$19-1),'4 Tržby'!N37,0) -> 0 | O4: =IF(O2<=('0 Úvod'!$G$19+'0 Úvod'!$J$19-1),'4 Tržby'!O37,0) -> 0 | P4: =IF(P2<=('0 Úvod'!$G$19+'0 Úvod'!$J$19-1),'4 Tržby'!P37,0) -> 0 | Q4: =IF(Q2<=('0 Úvod'!$G$19+'0 Úvod'!$J$19-1),'4 Tržby'!Q37,0) -> 0 | R4: =IF(R2<=('0 Úvod'!$G$19+'0 Úvod'!$J$19-1),'4 Tržby'!R37,0) -> 0 | S4: =IF(S2<=('0 Úvod'!$G$19+'0 Úvod'!$J$19-1),'4 Tržby'!S37,0) -> 0
C5: Celkové výnosy | D5: =SUM(D4) -> 0 | E5: =SUM(E4) -> 0 | F5: =SUM(F4) -> 0 | G5: 0 | H5: 0 | I5: 0 | J5: 0 | K5: 0 | L5: 0 | M5: 0 | N5: 0 | O5: 0 | P5: 0 | Q5: 0 | R5: 0 | S5: 0
C6: Celkové přírůstkové provozní náklady | D6: =SUM(E6:S6,E18:S18) -> 0 | E6: =IF(E2<=('0 Úvod'!$G$19+'0 Úvod'!$J$19-1),'3 Provozní náklady'!E37,0) -> 0 | F6: =IF(F2<=('0 Úvod'!$G$19+'0 Úvod'!$J$19-1),'3 Provozní náklady'!F37,0) -> 0 | G6: =IF(G2<=('0 Úvod'!$G$19+'0 Úvod'!$J$19-1),'3 Provozní náklady'!G37,0) -> 0 | H6: =IF(H2<=('0 Úvod'!$G$19+'0 Úvod'!$J$19-1),'3 Provozní náklady'!H37,0) -> 0 | I6: =IF(I2<=('0 Úvod'!$G$19+'0 Úvod'!$J$19-1),'3 Provozní náklady'!I37,0) -> 0 | J6: =IF(J2<=('0 Úvod'!$G$19+'0 Úvod'!$J$19-1),'3 Provozní náklady'!J37,0) -> 0 | K6: =IF(K2<=('0 Úvod'!$G$19+'0 Úvod'!$J$19-1),'3 Provozní náklady'!K37,0) -> 0 | L6: =IF(L2<=('0 Úvod'!$G$19+'0 Úvod'!$J$19-1),'3 Provozní náklady'!L37,0) -> 0 | M6: =IF(M2<=('0 Úvod'!$G$19+'0 Úvod'!$J$19-1),'3 Provozní náklady'!M37,0) -> 0 | N6: =IF(N2<=('0 Úvod'!$G$19+'0 Úvod'!$J$19-1),'3 Provozní náklady'!N37,0) -> 0 | O6: =IF(O2<=('0 Úvod'!$G$19+'0 Úvod'!$J$19-1),'3 Provozní náklady'!O37,0) -> 0 | P6: =IF(P2<=('0 Úvod'!$G$19+'0 Úvod'!$J$19-1),'3 Provozní náklady'!P37,0) -> 0 | Q6: =IF(Q2<=('0 Úvod'!$G$19+'0 Úvod'!$J$19-1),'3 Provozní náklady'!Q37,0) -> 0 | R6: =IF(R2<=('0 Úvod'!$G$19+'0 Úvod'!$J$19-1),'3 Provozní náklady'!R37,0) -> 0 | S6: =IF(S2<=('0 Úvod'!$G$19+'0 Úvod'!$J$19-1),'3 Provozní náklady'!S37,0) -> 0
C7: Celkové invest. náklady bez rezervy | D7: =SUM(E7:S7,E19:S19) -> 0 | E7: ='1 Celkové investiční náklady'!G11 -> 0 | F7: ='1 Celkové investiční náklady'!H11 -> 0 | G7: ='1 Celkové investiční náklady'!I11 -> 0 | H7: ='1 Celkové investiční náklady'!J11 -> 0 | I7: ='1 Celkové investiční náklady'!K11 -> 0 | J7: ='1 Celkové investiční náklady'!L11 -> 0 | K7: ='1 Celkové investiční náklady'!M11 -> 0 | L7: ='1 Celkové investiční náklady'!N11 -> 0 | M7: ='1 Celkové investiční náklady'!O11 -> 0 | N7: ='1 Celkové investiční náklady'!P11 -> 0 | O7: ='1 Celkové investiční náklady'!Q11 -> 0 | P7: ='1 Celkové investiční náklady'!R11 -> 0 | Q7: ='1 Celkové investiční náklady'!S11 -> 0 | R7: ='1 Celkové investiční náklady'!T11 -> 0 | S7: ='1 Celkové investiční náklady'!U11 -> 0
C8: Zůstatková hodnota (záporná) | E8: =IF(E2='0 Úvod'!$G$19+'0 Úvod'!$J$19-1,-1*'2 Zůstatková hodnota'!$I$7,0) -> 0 | F8: =IF(F2='0 Úvod'!$G$19+'0 Úvod'!$J$19-1,-1*'2 Zůstatková hodnota'!$I$7,0) -> 0 | G8: =IF(G2='0 Úvod'!$G$19+'0 Úvod'!$J$19-1,-1*'2 Zůstatková hodnota'!$I$7,0) -> 0 | H8: =IF(H2='0 Úvod'!$G$19+'0 Úvod'!$J$19-1,-1*'2 Zůstatková hodnota'!$I$7,0) -> 0 | I8: =IF(I2='0 Úvod'!$G$19+'0 Úvod'!$J$19-1,-1*'2 Zůstatková hodnota'!$I$7,0) -> 0 | J8: =IF(J2='0 Úvod'!$G$19+'0 Úvod'!$J$19-1,-1*'2 Zůstatková hodnota'!$I$7,0) -> 0 | K8: =IF(K2='0 Úvod'!$G$19+'0 Úvod'!$J$19-1,-1*'2 Zůstatková hodnota'!$I$7,0) -> 0 | L8: =IF(L2='0 Úvod'!$G$19+'0 Úvod'!$J$19-1,-1*'2 Zůstatková hodnota'!$I$7,0) -> 0 | M8: =IF(M2='0 Úvod'!$G$19+'0 Úvod'!$J$19-1,-1*'2 Zůstatková hodnota'!$I$7,0) -> 0 | N8: =IF(N2='0 Úvod'!$G$19+'0 Úvod'!$J$19-1,-1*'2 Zůstatková hodnota'!$I$7,0) -> 0 | O8: =IF(O2='0 Úvod'!$G$19+'0 Úvod'!$J$19-1,-1*'2 Zůstatková hodnota'!$I$7,0) -> 0 | P8: =IF(P2='0 Úvod'!$G$19+'0 Úvod'!$J$19-1,-1*'2 Zůstatková hodnota'!$I$7,0) -> 0 | Q8: =IF(Q2='0 Úvod'!$G$19+'0 Úvod'!$J$19-1,-1*'2 Zůstatková hodnota'!$I$7,0) -> 0 | R8: =IF(R2='0 Úvod'!$G$19+'0 Úvod'!$J$19-1,-1*'2 Zůstatková hodnota'!$I$7,0) -> 0 | S8: =IF(S2='0 Úvod'!$G$19+'0 Úvod'!$J$19-1,-1*'2 Zůstatková hodnota'!$I$7,0) -> 0
C9: Celkové náklady | D9: =SUM(D6:D8) ->  | E9: =SUM(E6:E8) -> 0 | F9: =SUM(F6:F8) -> 0 | G9: 0 | H9: 0 | I9: 0 | J9: 0 | K9: 0 | L9: 0 | M9: 0 | N9: 0 | O9: 0 | P9: 0 | Q9: 0 | R9: 0 | S9: 0
C10: Cash Flow | E10: =E5-E9 -> 0 | F10: 0 | G10: 0 | H10: 0 | I10: 0 | J10: 0 | K10: 0 | L10: 0 | M10: 0 | N10: 0 | O10: 0 | P10: 0 | Q10: 0 | R10: 0 | S10: 0
C11: Diskontní sazba | D11: ='0 Úvod'!D21 -> 0.04 | E11: 1 | F11: =E11/(1+$D$11) -> 0.9615384615 | G11: =F11/(1+$D$11) -> 0.924556213 | H11: =G11*1/(1+$D$11) -> 0.8889963587 | I11: =H11*1/(1+$D$11) -> 0.854804191 | J11: =I11*1/(1+$D$11) -> 0.8219271068 | K11: 0.7903145257 | L11: 0.7599178132 | M11: 0.730690205 | N11: 0.7025867356 | O11: 0.6755641688 | P11: 0.6495809316 | Q11: 0.6245970496 | R11: 0.6005740861 | S11: 0.5774750828
C12: Diskontované cash flow | D12: =SUM(E12:S12,E24:S24) ->  | E12: =E10*E11 -> 0 | F12: =F10*F11 -> 0 | G12: 0 | H12: 0 | I12: 0 | J12: 0 | K12: 0 | L12: 0 | M12: 0 | N12: 0 | O12: 0 | P12: 0 | Q12: 0 | R12: 0 | S12: 0
E13: =IF(E2>='0 Úvod'!$G$21,E4-E6,0) -> 0 | F13: =IF(F2>='0 Úvod'!$G$21,F4-F6,0) -> 0 | G13: =IF(G2>='0 Úvod'!$G$21,G4-G6,0) -> 0 | H13: =IF(H2>='0 Úvod'!$G$21,H4-H6,0) -> 0 | I13: =IF(I2>='0 Úvod'!$G$21,I4-I6,0) -> 0 | J13: =IF(J2>='0 Úvod'!$G$21,J4-J6,0) -> 0 | K13: =IF(K2>='0 Úvod'!$G$21,K4-K6,0) -> 0 | L13: =IF(L2>='0 Úvod'!$G$21,L4-L6,0) -> 0 | M13: =IF(M2>='0 Úvod'!$G$21,M4-M6,0) -> 0 | N13: =IF(N2>='0 Úvod'!$G$21,N4-N6,0) -> 0 | O13: =IF(O2>='0 Úvod'!$G$21,O4-O6,0) -> 0 | P13: =IF(P2>='0 Úvod'!$G$21,P4-P6,0) -> 0 | Q13: =IF(Q2>='0 Úvod'!$G$21,Q4-Q6,0) -> 0 | R13: =IF(R2>='0 Úvod'!$G$21,R4-R6,0) -> 0 | S13: =IF(S2>='0 Úvod'!$G$21,S4-S6,0) -> 0
B14: 5.1. | C14: Kalkulace finančního vnitřního výnosového procenta | E14: =S2+1 -> 2031 | F14: =E14+1 -> 2032 | G14: 2033 | H14: 2034 | I14: 2035 | J14: 2036 | K14: 2037 | L14: 2038 | M14: 2039 | N14: 2040 | O14: 2041 | P14: 2042 | Q14: 2043 | R14: 2044 | S14: 2045
B15: b
C16: =C4 -> Celkové přírůstkové provozní příjmy | E16: =IF(E14<=('0 Úvod'!$G$19+'0 Úvod'!$J$19-1),'4 Tržby'!E44,0) -> 0 | F16: =IF(F14<=('0 Úvod'!$G$19+'0 Úvod'!$J$19-1),'4 Tržby'!F44,0) -> 0 | G16: =IF(G14<=('0 Úvod'!$G$19+'0 Úvod'!$J$19-1),'4 Tržby'!G44,0) -> 0 | H16: =IF(H14<=('0 Úvod'!$G$19+'0 Úvod'!$J$19-1),'4 Tržby'!H44,0) -> 0 | I16: =IF(I14<=('0 Úvod'!$G$19+'0 Úvod'!$J$19-1),'4 Tržby'!I44,0) -> 0 | J16: =IF(J14<=('0 Úvod'!$G$19+'0 Úvod'!$J$19-1),'4 Tržby'!J44,0) -> 0 | K16: =IF(K14<=('0 Úvod'!$G$19+'0 Úvod'!$J$19-1),'4 Tržby'!K44,0) -> 0 | L16: =IF(L14<=('0 Úvod'!$G$19+'0 Úvod'!$J$19-1),'4 Tržby'!L44,0) -> 0 | M16: =IF(M14<=('0 Úvod'!$G$19+'0 Úvod'!$J$19-1),'4 Tržby'!M44,0) -> 0 | N16: =IF(N14<=('0 Úvod'!$G$19+'0 Úvod'!$J$19-1),'4 Tržby'!N44,0) -> 0 | O16: =IF(O14<=('0 Úvod'!$G$19+'0 Úvod'!$J$19-1),'4 Tržby'!O44,0) -> 0 | P16: =IF(P14<=('0 Úvod'!$G$19+'0 Úvod'!$J$19-1),'4 Tržby'!P44,0) -> 0 | Q16: =IF(Q14<=('0 Úvod'!$G$19+'0 Úvod'!$J$19-1),'4 Tržby'!Q44,0) -> 0 | R16: =IF(R14<=('0 Úvod'!$G$19+'0 Úvod'!$J$19-1),'4 Tržby'!R44,0) -> 0 | S16: =IF(S14<=('0 Úvod'!$G$19+'0 Úvod'!$J$19-1),'4 Tržby'!S44,0) -> 0
C17: Celkové výnosy | E17: =SUM(E16) -> 0 | F17: =SUM(F16) -> 0 | G17: 0 | H17: 0 | I17: 0 | J17: 0 | K17: 0 | L17: 0 | M17: 0 | N17: 0 | O17: 0 | P17: 0 | Q17: 0 | R17: 0 | S17: 0
C18: Celkové přírůstkové provozní náklady | E18: =IF(E14<=('0 Úvod'!$G$19+'0 Úvod'!$J$19-1),'3 Provozní náklady'!E44,0) -> 0 | F18: =IF(F14<=('0 Úvod'!$G$19+'0 Úvod'!$J$19-1),'3 Provozní náklady'!F44,0) -> 0 | G18: =IF(G14<=('0 Úvod'!$G$19+'0 Úvod'!$J$19-1),'3 Provozní náklady'!G44,0) -> 0 | H18: =IF(H14<=('0 Úvod'!$G$19+'0 Úvod'!$J$19-1),'3 Provozní náklady'!H44,0) -> 0 | I18: =IF(I14<=('0 Úvod'!$G$19+'0 Úvod'!$J$19-1),'3 Provozní náklady'!I44,0) -> 0 | J18: =IF(J14<=('0 Úvod'!$G$19+'0 Úvod'!$J$19-1),'3 Provozní náklady'!J44,0) -> 0 | K18: =IF(K14<=('0 Úvod'!$G$19+'0 Úvod'!$J$19-1),'3 Provozní náklady'!K44,0) -> 0 | L18: =IF(L14<=('0 Úvod'!$G$19+'0 Úvod'!$J$19-1),'3 Provozní náklady'!L44,0) -> 0 | M18: =IF(M14<=('0 Úvod'!$G$19+'0 Úvod'!$J$19-1),'3 Provozní náklady'!M44,0) -> 0 | N18: =IF(N14<=('0 Úvod'!$G$19+'0 Úvod'!$J$19-1),'3 Provozní náklady'!N44,0) -> 0 | O18: =IF(O14<=('0 Úvod'!$G$19+'0 Úvod'!$J$19-1),'3 Provozní náklady'!O44,0) -> 0 | P18: =IF(P14<=('0 Úvod'!$G$19+'0 Úvod'!$J$19-1),'3 Provozní náklady'!P44,0) -> 0 | Q18: =IF(Q14<=('0 Úvod'!$G$19+'0 Úvod'!$J$19-1),'3 Provozní náklady'!Q44,0) -> 0 | R18: =IF(R14<=('0 Úvod'!$G$19+'0 Úvod'!$J$19-1),'3 Provozní náklady'!R44,0) -> 0 | S18: =IF(S14<=('0 Úvod'!$G$19+'0 Úvod'!$J$19-1),'3 Provozní náklady'!S44,0) -> 0
C19: Celkové invest. náklady bez rezervy | E19: ='1 Celkové investiční náklady'!G26 -> 0 | F19: ='1 Celkové investiční náklady'!H26 -> 0 | G19: ='1 Celkové investiční náklady'!I26 -> 0 | H19: ='1 Celkové investiční náklady'!J26 -> 0 | I19: ='1 Celkové investiční náklady'!K26 -> 0 | J19: ='1 Celkové investiční náklady'!L26 -> 0 | K19: ='1 Celkové investiční náklady'!M26 -> 0 | L19: ='1 Celkové investiční náklady'!N26 -> 0 | M19: ='1 Celkové investiční náklady'!O26 -> 0 | N19: ='1 Celkové investiční náklady'!P26 -> 0 | O19: ='1 Celkové investiční náklady'!Q26 -> 0 | P19: ='1 Celkové investiční náklady'!R26 -> 0 | Q19: ='1 Celkové investiční náklady'!S26 -> 0 | R19: ='1 Celkové investiční náklady'!T26 -> 0 | S19: ='1 Celkové investiční náklady'!U26 -> 0
C20: Zůstatková hodnota (záporná) | E20: =IF(E14='0 Úvod'!$G$19+'0 Úvod'!$J$19-1,-1*'2 Zůstatková hodnota'!$I$7,0) -> 0 | F20: =IF(F14='0 Úvod'!$G$19+'0 Úvod'!$J$19-1,-1*'2 Zůstatková hodnota'!$I$7,0) -> 0 | G20: =IF(G14='0 Úvod'!$G$19+'0 Úvod'!$J$19-1,-1*'2 Zůstatková hodnota'!$I$7,0) -> 0 | H20: =IF(H14='0 Úvod'!$G$19+'0 Úvod'!$J$19-1,-1*'2 Zůstatková hodnota'!$I$7,0) -> 0 | I20: =IF(I14='0 Úvod'!$G$19+'0 Úvod'!$J$19-1,-1*'2 Zůstatková hodnota'!$I$7,0) -> 0 | J20: =IF(J14='0 Úvod'!$G$19+'0 Úvod'!$J$19-1,-1*'2 Zůstatková hodnota'!$I$7,0) -> 0 | K20: =IF(K14='0 Úvod'!$G$19+'0 Úvod'!$J$19-1,-1*'2 Zůstatková hodnota'!$I$7,0) -> 0 | L20: =IF(L14='0 Úvod'!$G$19+'0 Úvod'!$J$19-1,-1*'2 Zůstatková hodnota'!$I$7,0) -> 0 | M20: =IF(M14='0 Úvod'!$G$19+'0 Úvod'!$J$19-1,-1*'2 Zůstatková hodnota'!$I$7,0) -> 0 | N20: =IF(N14='0 Úvod'!$G$19+'0 Úvod'!$J$19-1,-1*'2 Zůstatková hodnota'!$I$7,0) -> 0 | O20: =IF(O14='0 Úvod'!$G$19+'0 Úvod'!$J$19-1,-1*'2 Zůstatková hodnota'!$I$7,0) -> 0 | P20: =IF(P14='0 Úvod'!$G$19+'0 Úvod'!$J$19-1,-1*'2 Zůstatková hodnota'!$I$7,0) -> 0 | Q20: =IF(Q14='0 Úvod'!$G$19+'0 Úvod'!$J$19-1,-1*'2 Zůstatková hodnota'!$I$7,0) -> 0 | R20: =IF(R14='0 Úvod'!$G$19+'0 Úvod'!$J$19-1,-1*'2 Zůstatková hodnota'!$I$7,0) -> 0 | S20: =IF(S14='0 Úvod'!$G$19+'0 Úvod'!$J$19-1,-1*'2 Zůstatková hodnota'!$I$7,0) -> 
C21: Celkové náklady | E21: =SUM(E18:E20) -> 0 | F21: =SUM(F18:F20) -> 0 | G21: 0 | H21: 0 | I21: 0 | J21: 0 | K21: 0 | L21: 0 | M21: 0 | N21: 0 | O21: 0 | P21: 0 | Q21: 0 | R21: 0
C22: Cash Flow | E22: =E17-E21 -> 0 | F22: 0 | G22: 0 | H22: 0 | I22: 0 | J22: 0 | K22: 0 | L22: 0 | M22: 0 | N22: 0 | O22: 0 | P22: 0 | Q22: 0 | R22: 0
C23: Diskontní sazba | D23: =D11 -> 0.04 | E23: =S11*1/(1+$D$11) -> 0.5552645027 | F23: =E23*1/(1+$D$11) -> 0.5339081757 | G23: =F23*1/(1+$D$11) -> 0.5133732459 | H23: 0.493628121 | I23: 0.474642424 | J23: 0.4563869462 | K23: 0.4388336021 | L23: 0.4219553867 | M23: 0.4057263333 | N23: 0.3901214743 | O23: 0.3751168023 | P23: 0.3606892329 | Q23: 0.3468165701 | R23: 0.3334774713 | S23: 0.3206514147
C24: Diskontované cash flow | E24: =E22*E23 -> 0 | F24: 0 | G24: 0 | H24: 0 | I24: 0 | J24: 0 | K24: 0 | L24: 0 | M24: 0 | N24: 0 | O24: 0 | P24: 0 | Q24: 0 | R24: 0
E25: =IF(E14>='0 Úvod'!$G$21,E16-E18,0) -> 0 | F25: =IF(F14>='0 Úvod'!$G$21,F16-F18,0) -> 0 | G25: =IF(G14>='0 Úvod'!$G$21,G16-G18,0) -> 0 | H25: =IF(H14>='0 Úvod'!$G$21,H16-H18,0) -> 0 | I25: =IF(I14>='0 Úvod'!$G$21,I16-I18,0) -> 0 | J25: =IF(J14>='0 Úvod'!$G$21,J16-J18,0) -> 0 | K25: =IF(K14>='0 Úvod'!$G$21,K16-K18,0) -> 0 | L25: =IF(L14>='0 Úvod'!$G$21,L16-L18,0) -> 0 | M25: =IF(M14>='0 Úvod'!$G$21,M16-M18,0) -> 0 | N25: =IF(N14>='0 Úvod'!$G$21,N16-N18,0) -> 0 | O25: =IF(O14>='0 Úvod'!$G$21,O16-O18,0) -> 0 | P25: =IF(P14>='0 Úvod'!$G$21,P16-P18,0) -> 0 | Q25: =IF(Q14>='0 Úvod'!$G$21,Q16-Q18,0) -> 0 | R25: =IF(R14>='0 Úvod'!$G$21,R16-R18,0) -> 0 | S25: =IF(S14>='0 Úvod'!$G$21,S16-S18,0) -> 0
B26: Finanční vnitřní výnosové procento investice FRR/C | E26: =ROUND(IRR((E10:S10,E22:S22),0.05),4) -> 
B27: Finanční čistá současná hodnota investice FNPV/C (CZK) | E27: =E10+NPV('0 Úvod'!D21,(F10:S10,E22:S22)) -> 
B28: Finanční čistá současná hodnota investice FNPV/C (EUR) | E28: =E27/'0 Úvod'!N19 -> 

Sheet 6 Kontrola dotací
B2: 6.1. | C2: S projektem | E2: ='0 Úvod'!G19 -> 2016 | F2: =E2+1 -> 2017 | G2: 2018 | H2: 2019 | I2: 2020 | J2: 2021 | K2: 2022 | L2: 2023 | M2: 2024 | N2: 2025 | O2: 2026 | P2: =O2+1 -> 2027 | Q2: 2028 | R2: 2029 | S2: 2030
B3: a | D3: Celkem
B4: A | C4: Náklady na údržbu a opravy | D4: =SUM(E4:S4,E11:S11) -> 0 | E4: ='3 Provozní náklady'!E4+'3 Provozní náklady'!E5 -> 0 | F4: ='3 Provozní náklady'!F4+'3 Provozní náklady'!F5 -> 0 | G4: ='3 Provozní náklady'!G4+'3 Provozní náklady'!G5 -> 0 | H4: ='3 Provozní náklady'!H4+'3 Provozní náklady'!H5 -> 0 | I4: ='3 Provozní náklady'!I4+'3 Provozní náklady'!I5 -> 0 | J4: ='3 Provozní náklady'!J4+'3 Provozní náklady'!J5 -> 0 | K4: ='3 Provozní náklady'!K4+'3 Provozní náklady'!K5 -> 0 | L4: ='3 Provozní náklady'!L4+'3 Provozní náklady'!L5 -> 0 | M4: ='3 Provozní náklady'!M4+'3 Provozní náklady'!M5 -> 0 | N4: ='3 Provozní náklady'!N4+'3 Provozní náklady'!N5 -> 0 | O4: ='3 Provozní náklady'!O4+'3 Provozní náklady'!O5 -> 0 | P4: ='3 Provozní náklady'!P4+'3 Provozní náklady'!P5 -> 0 | Q4: ='3 Provozní náklady'!Q4+'3 Provozní náklady'!Q5 -> 0 | R4: ='3 Provozní náklady'!R4+'3 Provozní náklady'!R5 -> 0 | S4: ='3 Provozní náklady'!S4+'3 Provozní náklady'!S5 -> 0
B5: B | C5: Náklady na řízení provozu | D5: =SUM(E5:S5,E12:S12) -> 0 | E5: ='3 Provozní náklady'!E6 -> 0 | F5: ='3 Provozní náklady'!F6 -> 0 | G5: ='3 Provozní náklady'!G6 -> 0 | H5: ='3 Provozní náklady'!H6 -> 0 | I5: ='3 Provozní náklady'!I6 -> 0 | J5: ='3 Provozní náklady'!J6 -> 0 | K5: ='3 Provozní náklady'!K6 -> 0 | L5: ='3 Provozní náklady'!L6 -> 0 | M5: ='3 Provozní náklady'!M6 -> 0 | N5: ='3 Provozní náklady'!N6 -> 0 | O5: ='3 Provozní náklady'!O6 -> 0 | P5: ='3 Provozní náklady'!P6 -> 0 | Q5: ='3 Provozní náklady'!Q6 -> 0 | R5: ='3 Provozní náklady'!R6 -> 0 | S5: ='3 Provozní náklady'!S6 -> 0
B6: C | C6: Příjmy z poplatků za dopravní cestu* | D6: 0 | E6: ='4 Tržby'!E4+'4 Tržby'!E5 -> 0 | F6: ='4 Tržby'!F4+'4 Tržby'!F5 -> 0 | G6: ='4 Tržby'!G4+'4 Tržby'!G5 -> 0 | H6: ='4 Tržby'!H4+'4 Tržby'!H5 -> 0 | I6: ='4 Tržby'!I4+'4 Tržby'!I5 -> 0 | J6: ='4 Tržby'!J4+'4 Tržby'!J5 -> 0 | K6: ='4 Tržby'!K4+'4 Tržby'!K5 -> 0 | L6: ='4 Tržby'!L4+'4 Tržby'!L5 -> 0 | M6: ='4 Tržby'!M4+'4 Tržby'!M5 -> 0 | N6: ='4 Tržby'!N4+'4 Tržby'!N5 -> 0 | O6: ='4 Tržby'!O4+'4 Tržby'!O5 -> 0 | P6: ='4 Tržby'!P4+'4 Tržby'!P5 -> 0 | Q6: ='4 Tržby'!Q4+'4 Tržby'!Q5 -> 0 | R6: ='4 Tržby'!R4+'4 Tržby'!R5 -> 0 | S6: ='4 Tržby'!S4+'4 Tržby'!S5 -> 0
B7: D | C7: Provozní dotace | D7: 0 | E7: =IF((E4+E5-E6)>0,E4+E5-E6,0) -> 0 | F7: =IF((F4+F5-F6)>0,F4+F5-F6,0) -> 0 | G7: 0 | H7: 0 | I7: 0 | J7: 0 | K7: 0 | L7: 0 | M7: 0 | N7: 0 | O7: 0 | P7: 0 | Q7: 0 | R7: 0 | S7: 0
B9: 6.1. | C9: S projektem | E9: =S2+1 -> 2031 | F9: =E9+1 -> 2032 | G9: 2033 | H9: 2034 | I9: 2035 | J9: 2036 | K9: 2037 | L9: 2038 | M9: 2039 | N9: 2040 | O9: 2041 | P9: =O9+1 -> 2042 | Q9: 2043 | R9: 2044 | S9: 2045
B10: b
B11: A | C11: Náklady na údržbu a opravy | E11: ='3 Provozní náklady'!E11+'3 Provozní náklady'!E12 -> 0 | F11: ='3 Provozní náklady'!F11+'3 Provozní náklady'!F12 -> 0 | G11: ='3 Provozní náklady'!G11+'3 Provozní náklady'!G12 -> 0 | H11: ='3 Provozní náklady'!H11+'3 Provozní náklady'!H12 -> 0 | I11: ='3 Provozní náklady'!I11+'3 Provozní náklady'!I12 -> 0 | J11: ='3 Provozní náklady'!J11+'3 Provozní náklady'!J12 -> 0 | K11: ='3 Provozní náklady'!K11+'3 Provozní náklady'!K12 -> 0 | L11: ='3 Provozní náklady'!L11+'3 Provozní náklady'!L12 -> 0 | M11: ='3 Provozní náklady'!M11+'3 Provozní náklady'!M12 -> 0 | N11: ='3 Provozní náklady'!N11+'3 Provozní náklady'!N12 -> 0 | O11: ='3 Provozní náklady'!O11+'3 Provozní náklady'!O12 -> 0 | P11: ='3 Provozní náklady'!P11+'3 Provozní náklady'!P12 -> 0 | Q11: ='3 Provozní náklady'!Q11+'3 Provozní náklady'!Q12 -> 0 | R11: ='3 Provozní náklady'!R11+'3 Provozní náklady'!R12 -> 0 | S11: ='3 Provozní náklady'!S11+'3 Provozní náklady'!S12 -> 0
B12: B | C12: Náklady na řízení provozu | E12: ='3 Provozní náklady'!E13 -> 0 | F12: ='3 Provozní náklady'!F13 -> 0 | G12: ='3 Provozní náklady'!G13 -> 0 | H12: ='3 Provozní náklady'!H13 -> 0 | I12: ='3 Provozní náklady'!I13 -> 0 | J12: ='3 Provozní náklady'!J13 -> 0 | K12: ='3 Provozní náklady'!K13 -> 0 | L12: ='3 Provozní náklady'!L13 -> 0 | M12: ='3 Provozní náklady'!M13 -> 0 | N12: ='3 Provozní náklady'!N13 -> 0 | O12: ='3 Provozní náklady'!O13 -> 0 | P12: ='3 Provozní náklady'!P13 -> 0 | Q12: ='3 Provozní náklady'!Q13 -> 0 | R12: ='3 Provozní náklady'!R13 -> 0 | S12: ='3 Provozní náklady'!S13 -> 0
B13: C | C13: Příjmy z poplatků za dopravní cestu* | E13: ='4 Tržby'!E11+'4 Tržby'!E12 -> 0 | F13: ='4 Tržby'!F11+'4 Tržby'!F12 -> 0 | G13: ='4 Tržby'!G11+'4 Tržby'!G12 -> 0 | H13: ='4 Tržby'!H11+'4 Tržby'!H12 -> 0 | I13: ='4 Tržby'!I11+'4 Tržby'!I12 -> 0 | J13: ='4 Tržby'!J11+'4 Tržby'!J12 -> 0 | K13: ='4 Tržby'!K11+'4 Tržby'!K12 -> 0 | L13: ='4 Tržby'!L11+'4 Tržby'!L12 -> 0 | M13: ='4 Tržby'!M11+'4 Tržby'!M12 -> 0 | N13: ='4 Tržby'!N11+'4 Tržby'!N12 -> 0 | O13: ='4 Tržby'!O11+'4 Tržby'!O12 -> 0 | P13: ='4 Tržby'!P11+'4 Tržby'!P12 -> 0 | Q13: ='4 Tržby'!Q11+'4 Tržby'!Q12 -> 0 | R13: ='4 Tržby'!R11+'4 Tržby'!R12 -> 0 | S13: ='4 Tržby'!S11+'4 Tržby'!S12 -> 0
B14: D | C14: Provozní dotace | E14: =IF((E11+E12-E13)>0,E11+E12-E13,0) -> 0 | F14: =IF((F11+F12-F13)>0,F11+F12-F13,0) -> 0 | G14: 0 | H14: 0 | I14: 0 | J14: 0 | K14: 0 | L14: 0 | M14: 0 | N14: 0 | O14: 0 | P14: 0 | Q14: 0 | R14: 0 | S14: 0
B17: 6.2. | C17: Bez projektu | E17: =E2 -> 2016 | F17: =E17+1 -> 2017 | G17: 2018 | H17: 2019 | I17: 2020 | J17: 2021 | K17: 2022 | L17: 2023 | M17: 2024 | N17: 2025 | O17: 2026 | P17: =O17+1 -> 2027 | Q17: 2028 | R17: 2029 | S17: 2030
B18: a | D18: Celkem
B19: E | C19: Náklady na údržbu a opravy | D19: =SUM(E19:S19,E26:S26) -> 0 | E19: ='3 Provozní náklady'!E19+'3 Provozní náklady'!E20 -> 0 | F19: ='3 Provozní náklady'!F19+'3 Provozní náklady'!F20 -> 0 | G19: ='3 Provozní náklady'!G19+'3 Provozní náklady'!G20 -> 0 | H19: ='3 Provozní náklady'!H19+'3 Provozní náklady'!H20 -> 0 | I19: ='3 Provozní náklady'!I19+'3 Provozní náklady'!I20 -> 0 | J19: ='3 Provozní náklady'!J19+'3 Provozní náklady'!J20 -> 0 | K19: ='3 Provozní náklady'!K19+'3 Provozní náklady'!K20 -> 0 | L19: ='3 Provozní náklady'!L19+'3 Provozní náklady'!L20 -> 0 | M19: ='3 Provozní náklady'!M19+'3 Provozní náklady'!M20 -> 0 | N19: ='3 Provozní náklady'!N19+'3 Provozní náklady'!N20 -> 0 | O19: ='3 Provozní náklady'!O19+'3 Provozní náklady'!O20 -> 0 | P19: ='3 Provozní náklady'!P19+'3 Provozní náklady'!P20 -> 0 | Q19: ='3 Provozní náklady'!Q19+'3 Provozní náklady'!Q20 -> 0 | R19: ='3 Provozní náklady'!R19+'3 Provozní náklady'!R20 -> 0 | S19: ='3 Provozní náklady'!S19+'3 Provozní náklady'!S20 -> 0
B20: F | C20: Náklady na řízení provozu | D20: =SUM(E20:S20,E27:S27) -> 0 | E20: ='3 Provozní náklady'!E21 -> 0 | F20: ='3 Provozní náklady'!F21 -> 0 | G20: ='3 Provozní náklady'!G21 -> 0 | H20: ='3 Provozní náklady'!H21 -> 0 | I20: ='3 Provozní náklady'!I21 -> 0 | J20: ='3 Provozní náklady'!J21 -> 0 | K20: ='3 Provozní náklady'!K21 -> 0 | L20: ='3 Provozní náklady'!L21 -> 0 | M20: ='3 Provozní náklady'!M21 -> 0 | N20: ='3 Provozní náklady'!N21 -> 0 | O20: ='3 Provozní náklady'!O21 -> 0 | P20: ='3 Provozní náklady'!P21 -> 0 | Q20: ='3 Provozní náklady'!Q21 -> 0 | R20: ='3 Provozní náklady'!R21 -> 0 | S20: ='3 Provozní náklady'!S21 -> 0
B21: G | C21: Příjmy z poplatků za dopravní cestu* | D21: 0 | E21: ='4 Tržby'!E19+'4 Tržby'!E20 -> 0 | F21: ='4 Tržby'!F19+'4 Tržby'!F20 -> 0 | G21: ='4 Tržby'!G19+'4 Tržby'!G20 -> 0 | H21: ='4 Tržby'!H19+'4 Tržby'!H20 -> 0 | I21: ='4 Tržby'!I19+'4 Tržby'!I20 -> 0 | J21: ='4 Tržby'!J19+'4 Tržby'!J20 -> 0 | K21: ='4 Tržby'!K19+'4 Tržby'!K20 -> 0 | L21: ='4 Tržby'!L19+'4 Tržby'!L20 -> 0 | M21: ='4 Tržby'!M19+'4 Tržby'!M20 -> 0 | N21: ='4 Tržby'!N19+'4 Tržby'!N20 -> 0 | O21: ='4 Tržby'!O19+'4 Tržby'!O20 -> 0 | P21: ='4 Tržby'!P19+'4 Tržby'!P20 -> 0 | Q21: ='4 Tržby'!Q19+'4 Tržby'!Q20 -> 0 | R21: ='4 Tržby'!R19+'4 Tržby'!R20 -> 0 | S21: ='4 Tržby'!S19+'4 Tržby'!S20 -> 0
B22: H | C22: Provozní dotace | D22: 0 | E22: =IF((E19+E20-E21)>0,E19+E20-E21,0) -> 0 | F22: =IF((F19+F20-F21)>0,F19+F20-F21,0) -> 0 | G22: 0 | H22: 0 | I22: 0 | J22: 0 | K22: 0 | L22: 0 | M22: 0 | N22: 0 | O22: 0 | P22: 0 | Q22: 0 | R22: 0 | S22: 0
B24: 6.2. | C24: Bez projektu | E24: =S17+1 -> 2031 | F24: =E24+1 -> 2032 | G24: 2033 | H24: 2034 | I24: 2035 | J24: 2036 | K24: 2037 | L24: 2038 | M24: 2039 | N24: 2040 | O24: 2041 | P24: =O24+1 -> 2042 | Q24: 2043 | R24: 2044 | S24: 2045
B25: b
B26: E | C26: Náklady na údržbu a opravy | E26: ='3 Provozní náklady'!E26+'3 Provozní náklady'!E27 -> 0 | F26: ='3 Provozní náklady'!F26+'3 Provozní náklady'!F27 -> 0 | G26: ='3 Provozní náklady'!G26+'3 Provozní náklady'!G27 -> 0 | H26: ='3 Provozní náklady'!H26+'3 Provozní náklady'!H27 -> 0 | I26: ='3 Provozní náklady'!I26+'3 Provozní náklady'!I27 -> 0 | J26: ='3 Provozní náklady'!J26+'3 Provozní náklady'!J27 -> 0 | K26: ='3 Provozní náklady'!K26+'3 Provozní náklady'!K27 -> 0 | L26: ='3 Provozní náklady'!L26+'3 Provozní náklady'!L27 -> 0 | M26: ='3 Provozní náklady'!M26+'3 Provozní náklady'!M27 -> 0 | N26: ='3 Provozní náklady'!N26+'3 Provozní náklady'!N27 -> 0 | O26: ='3 Provozní náklady'!O26+'3 Provozní náklady'!O27 -> 0 | P26: ='3 Provozní náklady'!P26+'3 Provozní náklady'!P27 -> 0 | Q26: ='3 Provozní náklady'!Q26+'3 Provozní náklady'!Q27 -> 0 | R26: ='3 Provozní náklady'!R26+'3 Provozní náklady'!R27 -> 0 | S26: ='3 Provozní náklady'!S26+'3 Provozní náklady'!S27 -> 0
B27: F | C27: Náklady na řízení provozu | E27: ='3 Provozní náklady'!E28 -> 0 | F27: ='3 Provozní náklady'!F28 -> 0 | G27: ='3 Provozní náklady'!G28 -> 0 | H27: ='3 Provozní náklady'!H28 -> 0 | I27: ='3 Provozní náklady'!I28 -> 0 | J27: ='3 Provozní náklady'!J28 -> 0 | K27: ='3 Provozní náklady'!K28 -> 0 | L27: ='3 Provozní náklady'!L28 -> 0 | M27: ='3 Provozní náklady'!M28 -> 0 | N27: ='3 Provozní náklady'!N28 -> 0 | O27: ='3 Provozní náklady'!O28 -> 0 | P27: ='3 Provozní náklady'!P28 -> 0 | Q27: ='3 Provozní náklady'!Q28 -> 0 | R27: ='3 Provozní náklady'!R28 -> 0 | S27: ='3 Provozní náklady'!S28 -> 0
B28: G | C28: Příjmy z poplatků za dopravní cestu* | E28: ='4 Tržby'!E26+'4 Tržby'!E27 -> 0 | F28: ='4 Tržby'!F26+'4 Tržby'!F27 -> 0 | G28: ='4 Tržby'!G26+'4 Tržby'!G27 -> 0 | H28: ='4 Tržby'!H26+'4 Tržby'!H27 -> 0 | I28: ='4 Tržby'!I26+'4 Tržby'!I27 -> 0 | J28: ='4 Tržby'!J26+'4 Tržby'!J27 -> 0 | K28: ='4 Tržby'!K26+'4 Tržby'!K27 -> 0 | L28: ='4 Tržby'!L26+'4 Tržby'!L27 -> 0 | M28: ='4 Tržby'!M26+'4 Tržby'!M27 -> 0 | N28: ='4 Tržby'!N26+'4 Tržby'!N27 -> 0 | O28: ='4 Tržby'!O26+'4 Tržby'!O27 -> 0 | P28: ='4 Tržby'!P26+'4 Tržby'!P27 -> 0 | Q28: ='4 Tržby'!Q26+'4 Tržby'!Q27 -> 0 | R28: ='4 Tržby'!R26+'4 Tržby'!R27 -> 0 | S28: ='4 Tržby'!S26+'4 Tržby'!S27 -> 0
B29: H | C29: Provozní dotace | E29: =IF((E26+E27-E28)>0,E26+E27-E28,0) -> 0 | F29: =IF((F26+F27-F28)>0,F26+F27-F28,0) -> 0 | G29: 0 | H29: 0 | I29: 0 | J29: 0 | K29: 0 | L29: 0 | M29: 0 | N29: 0 | O29: 0 | P29: 0 | Q29: 0 | R29: 0 | S29: 0
B32: 6.3. | C32: Redukce dotací | E32: =E2 -> 2016 | F32: =E32+1 -> 2017 | G32: 2018 | H32: 2019 | I32: 2020 | J32: 2021 | K32: 2022 | L32: 2023 | M32: 2024 | N32: 2025 | O32: 2026 | P32: =O32+1 -> 2027 | Q32: 2028 | R32: 2029 | S32: 2030
B33: a | D33: Celkem
B34: I | C34: Redukce přírůstkových provozních nákladů | D34: =SUM(E34:S34,E41:S41) -> 0 | E34: =IF(E32<='0 Úvod'!$G$19+'0 Úvod'!$J$19-1,(E19+E20)-(E4+E5),0) -> 0 | F34: =IF(F32<='0 Úvod'!$G$19+'0 Úvod'!$J$19-1,(F19+F20)-(F4+F5),0) -> 0 | G34: =IF(G32<='0 Úvod'!$G$19+'0 Úvod'!$J$19-1,(G19+G20)-(G4+G5),0) -> 0 | H34: =IF(H32<='0 Úvod'!$G$19+'0 Úvod'!$J$19-1,(H19+H20)-(H4+H5),0) -> 0 | I34: =IF(I32<='0 Úvod'!$G$19+'0 Úvod'!$J$19-1,(I19+I20)-(I4+I5),0) -> 0 | J34: =IF(J32<='0 Úvod'!$G$19+'0 Úvod'!$J$19-1,(J19+J20)-(J4+J5),0) -> 0 | K34: =IF(K32<='0 Úvod'!$G$19+'0 Úvod'!$J$19-1,(K19+K20)-(K4+K5),0) -> 0 | L34: =IF(L32<='0 Úvod'!$G$19+'0 Úvod'!$J$19-1,(L19+L20)-(L4+L5),0) -> 0 | M34: =IF(M32<='0 Úvod'!$G$19+'0 Úvod'!$J$19-1,(M19+M20)-(M4+M5),0) -> 0 | N34: =IF(N32<='0 Úvod'!$G$19+'0 Úvod'!$J$19-1,(N19+N20)-(N4+N5),0) -> 0 | O34: =IF(O32<='0 Úvod'!$G$19+'0 Úvod'!$J$19-1,(O19+O20)-(O4+O5),0) -> 0 | P34: =IF(P32<='0 Úvod'!$G$19+'0 Úvod'!$J$19-1,(P19+P20)-(P4+P5),0) -> 0 | Q34: =IF(Q32<='0 Úvod'!$G$19+'0 Úvod'!$J$19-1,(Q19+Q20)-(Q4+Q5),0) -> 0 | R34: =IF(R32<='0 Úvod'!$G$19+'0 Úvod'!$J$19-1,(R19+R20)-(R4+R5),0) -> 0 | S34: =IF(S32<='0 Úvod'!$G$19+'0 Úvod'!$J$19-1,(S19+S20)-(S4+S5),0) -> 0
B35: J | C35: Redukce provozních dotací | D35: =SUM(E35:S35,E42:S42) -> 0 | E35: =IF(E32<='0 Úvod'!$G$19+'0 Úvod'!$J$19-1,E22-E7,0) -> 0 | F35: =IF(F32<='0 Úvod'!$G$19+'0 Úvod'!$J$19-1,F22-F7,0) -> 0 | G35: =IF(G32<='0 Úvod'!$G$19+'0 Úvod'!$J$19-1,G22-G7,0) -> 0 | H35: =IF(H32<='0 Úvod'!$G$19+'0 Úvod'!$J$19-1,H22-H7,0) -> 0 | I35: =IF(I32<='0 Úvod'!$G$19+'0 Úvod'!$J$19-1,I22-I7,0) -> 0 | J35: =IF(J32<='0 Úvod'!$G$19+'0 Úvod'!$J$19-1,J22-J7,0) -> 0 | K35: =IF(K32<='0 Úvod'!$G$19+'0 Úvod'!$J$19-1,K22-K7,0) -> 0 | L35: =IF(L32<='0 Úvod'!$G$19+'0 Úvod'!$J$19-1,L22-L7,0) -> 0 | M35: =IF(M32<='0 Úvod'!$G$19+'0 Úvod'!$J$19-1,M22-M7,0) -> 0 | N35: =IF(N32<='0 Úvod'!$G$19+'0 Úvod'!$J$19-1,N22-N7,0) -> 0 | O35: =IF(O32<='0 Úvod'!$G$19+'0 Úvod'!$J$19-1,O22-O7,0) -> 0 | P35: =IF(P32<='0 Úvod'!$G$19+'0 Úvod'!$J$19-1,P22-P7,0) -> 0 | Q35: =IF(Q32<='0 Úvod'!$G$19+'0 Úvod'!$J$19-1,Q22-Q7,0) -> 0 | R35: =IF(R32<='0 Úvod'!$G$19+'0 Úvod'!$J$19-1,R22-R7,0) -> 0 | S35: =IF(S32<='0 Úvod'!$G$19+'0 Úvod'!$J$19-1,S22-S7,0) -> 0
C36: Je snížení prov. nákladů plně kompenzováno snížením dotací | D36: =IF(D35>=D34,"ANO","NE") -> ANO | E36: =IF(E35>=E34,"ANO","NE") -> ANO | F36: =IF(F35>=F34,"ANO","NE") -> ANO | G36: =IF(G35>=G34,"ANO","NE") -> ANO | H36: ANO | I36: ANO | J36: ANO | K36: ANO | L36: ANO | M36: ANO | N36: ANO | O36: ANO | P36: ANO | Q36: ANO | R36: ANO | S36: ANO
B37: K | C37: Čistá úspora provozních nákladů** | D37: =SUM(E44:S44,E37:S37) -> 0 | E37: =E35-E34 -> 0 | F37: 0 | G37: 0 | H37: 0 | I37: 0 | J37: 0 | K37: 0 | L37: 0 | M37: 0 | N37: 0 | O37: 0 | P37: 0 | Q37: 0 | R37: 0 | S37: 0
B39: 6.3. | C39: Redukce dotací | E39: =S32+1 -> 2031 | F39: =E39+1 -> 2032 | G39: 2033 | H39: 2034 | I39: 2035 | J39: 2036 | K39: 2037 | L39: 2038 | M39: 2039 | N39: 2040 | O39: 2041 | P39: =O39+1 -> 2042 | Q39: 2043 | R39: 2044 | S39: 2045
B40: b
B41: I | C41: Redukce přírůstkových provozních nákladů | E41: =IF(E39<='0 Úvod'!$G$19+'0 Úvod'!$J$19-1,(E26+E27)-(E11+E12),0) -> 0 | F41: =IF(F39<='0 Úvod'!$G$19+'0 Úvod'!$J$19-1,(F26+F27)-(F11+F12),0) -> 0 | G41: =IF(G39<='0 Úvod'!$G$19+'0 Úvod'!$J$19-1,(G26+G27)-(G11+G12),0) -> 0 | H41: =IF(H39<='0 Úvod'!$G$19+'0 Úvod'!$J$19-1,(H26+H27)-(H11+H12),0) -> 0 | I41: =IF(I39<='0 Úvod'!$G$19+'0 Úvod'!$J$19-1,(I26+I27)-(I11+I12),0) -> 0 | J41: =IF(J39<='0 Úvod'!$G$19+'0 Úvod'!$J$19-1,(J26+J27)-(J11+J12),0) -> 0 | K41: =IF(K39<='0 Úvod'!$G$19+'0 Úvod'!$J$19-1,(K26+K27)-(K11+K12),0) -> 0 | L41: =IF(L39<='0 Úvod'!$G$19+'0 Úvod'!$J$19-1,(L26+L27)-(L11+L12),0) -> 0 | M41: =IF(M39<='0 Úvod'!$G$19+'0 Úvod'!$J$19-1,(M26+M27)-(M11+M12),0) -> 0 | N41: =IF(N39<='0 Úvod'!$G$19+'0 Úvod'!$J$19-1,(N26+N27)-(N11+N12),0) -> 0 | O41: =IF(O39<='0 Úvod'!$G$19+'0 Úvod'!$J$19-1,(O26+O27)-(O11+O12),0) -> 0 | P41: =IF(P39<='0 Úvod'!$G$19+'0 Úvod'!$J$19-1,(P26+P27)-(P11+P12),0) -> 0 | Q41: =IF(Q39<='0 Úvod'!$G$19+'0 Úvod'!$J$19-1,(Q26+Q27)-(Q11+Q12),0) -> 0 | R41: =IF(R39<='0 Úvod'!$G$19+'0 Úvod'!$J$19-1,(R26+R27)-(R11+R12),0) -> 0 | S41: =IF(S39<='0 Úvod'!$G$19+'0 Úvod'!$J$19-1,(S26+S27)-(S11+S12),0) -> 0
B42: J | C42: Redukce provozních dotací - koridory | E42: =IF(E39<='0 Úvod'!$G$19+'0 Úvod'!$J$19-1,E29-E14,0) -> 0 | F42: =IF(F39<='0 Úvod'!$G$19+'0 Úvod'!$J$19-1,F29-F14,0) -> 0 | G42: =IF(G39<='0 Úvod'!$G$19+'0 Úvod'!$J$19-1,G29-G14,0) -> 0 | H42: =IF(H39<='0 Úvod'!$G$19+'0 Úvod'!$J$19-1,H29-H14,0) -> 0 | I42: =IF(I39<='0 Úvod'!$G$19+'0 Úvod'!$J$19-1,I29-I14,0) -> 0 | J42: =IF(J39<='0 Úvod'!$G$19+'0 Úvod'!$J$19-1,J29-J14,0) -> 0 | K42: =IF(K39<='0 Úvod'!$G$19+'0 Úvod'!$J$19-1,K29-K14,0) -> 0 | L42: =IF(L39<='0 Úvod'!$G$19+'0 Úvod'!$J$19-1,L29-L14,0) -> 0 | M42: =IF(M39<='0 Úvod'!$G$19+'0 Úvod'!$J$19-1,M29-M14,0) -> 0 | N42: =IF(N39<='0 Úvod'!$G$19+'0 Úvod'!$J$19-1,N29-N14,0) -> 0 | O42: =IF(O39<='0 Úvod'!$G$19+'0 Úvod'!$J$19-1,O29-O14,0) -> 0 | P42: =IF(P39<='0 Úvod'!$G$19+'0 Úvod'!$J$19-1,P29-P14,0) -> 0 | Q42: =IF(Q39<='0 Úvod'!$G$19+'0 Úvod'!$J$19-1,Q29-Q14,0) -> 0 | R42: =IF(R39<='0 Úvod'!$G$19+'0 Úvod'!$J$19-1,R29-R14,0) -> 0 | S42: =IF(S39<='0 Úvod'!$G$19+'0 Úvod'!$J$19-1,S29-S14,0) -> 0
C43: Je snížení prov. nákladů plně kompenzováno snížením dotací | E43: =IF(E42>=E41,"ANO","NE") -> ANO | F43: =IF(F42>=F41,"ANO","NE") -> ANO | G43: ANO | H43: ANO | I43: ANO | J43: ANO | K43: ANO | L43: ANO | M43: ANO | N43: ANO | O43: ANO | P43: ANO | Q43: ANO | R43: ANO | S43: ANO
B44: K | C44: Čistá úspora provozních nákladů** | E44: =E42-E41 -> 0 | F44: 0 | G44: 0 | H44: 0 | I44: 0 | J44: 0 | K44: 0 | L44: 0 | M44: 0 | N44: 0 | O44: 0 | P44: 0 | Q44: 0 | R44: 0 | S44: 0
B47: Komentáře
B49: * tržby hrazené přímo uživateli, v souladu s čl. 61 (Operace, které po dokončení vytvářejí čistý příjem) Nařízení (EU) č. 1303/2013 a přílohou V Nařízení (EU) č. 1303/2013 a oddílem III Nařízení Komise v přenesené pravomoci (EU) č. 480/2014,
B50: v němž jsou stanovena pravidla pro výpočet diskontovaného čistého příjmu z operací vytvářejících čistý příjem
B51: **rozdíl mezi poklesem provozních nákladů a poklesem provozních dotací

Sheet 7 Mezera ve financování
B2: 7.1. | C2: Kalkulace finanční mezery a přidělení | E2: ='0 Úvod'!G19 -> 2016 | F2: =E2+1 -> 2017 | G2: 2018 | H2: 2019 | I2: 2020 | J2: 2021 | K2: 2022 | L2: 2023 | M2: 2024 | N2: 2025 | O2: 2026 | P2: 2027 | Q2: 2028 | R2: 2029 | S2: 2030
B3: a | C3: grantu EU (CZK) | D3: Celkem (disk.)
B4: A | C4: Investiční náklady (DIC) (z FA) | D4: =E4+NPV(D9,F4:S4,E14:S14) -> 0 | E4: ='5 Finanční analýza (FRR_C)'!E7 -> 0 | F4: ='5 Finanční analýza (FRR_C)'!F7 -> 0 | G4: ='5 Finanční analýza (FRR_C)'!G7 -> 0 | H4: ='5 Finanční analýza (FRR_C)'!H7 -> 0 | I4: ='5 Finanční analýza (FRR_C)'!I7 -> 0 | J4: ='5 Finanční analýza (FRR_C)'!J7 -> 0 | K4: ='5 Finanční analýza (FRR_C)'!K7 -> 0 | L4: ='5 Finanční analýza (FRR_C)'!L7 -> 0 | M4: ='5 Finanční analýza (FRR_C)'!M7 -> 0 | N4: ='5 Finanční analýza (FRR_C)'!N7 -> 0 | O4: ='5 Finanční analýza (FRR_C)'!O7 -> 0 | P4: ='5 Finanční analýza (FRR_C)'!P7 -> 0 | Q4: ='5 Finanční analýza (FRR_C)'!Q7 -> 0 | R4: ='5 Finanční analýza (FRR_C)'!R7 -> 0 | S4: ='5 Finanční analýza (FRR_C)'!S7 -> 0
B5: B | C5: Přírůstkové celkové provozní příjmy** | D5: =E5+NPV(D9,F5:S5,E15:S15) -> 0 | E5: =IF(E2<='0 Úvod'!$G$19+'0 Úvod'!$J$19-1,('4 Tržby'!E34+'4 Tržby'!E35),0) -> 0 | F5: =IF(F2<='0 Úvod'!$G$19+'0 Úvod'!$J$19-1,('4 Tržby'!F34+'4 Tržby'!F35),0) -> 0 | G5: =IF(G2<='0 Úvod'!$G$19+'0 Úvod'!$J$19-1,('4 Tržby'!G34+'4 Tržby'!G35),0) -> 0 | H5: =IF(H2<='0 Úvod'!$G$19+'0 Úvod'!$J$19-1,('4 Tržby'!H34+'4 Tržby'!H35),0) -> 0 | I5: =IF(I2<='0 Úvod'!$G$19+'0 Úvod'!$J$19-1,('4 Tržby'!I34+'4 Tržby'!I35),0) -> 0 | J5: =IF(J2<='0 Úvod'!$G$19+'0 Úvod'!$J$19-1,('4 Tržby'!J34+'4 Tržby'!J35),0) -> 0 | K5: =IF(K2<='0 Úvod'!$G$19+'0 Úvod'!$J$19-1,('4 Tržby'!K34+'4 Tržby'!K35),0) -> 0 | L5: =IF(L2<='0 Úvod'!$G$19+'0 Úvod'!$J$19-1,('4 Tržby'!L34+'4 Tržby'!L35),0) -> 0 | M5: =IF(M2<='0 Úvod'!$G$19+'0 Úvod'!$J$19-1,('4 Tržby'!M34+'4 Tržby'!M35),0) -> 0 | N5: =IF(N2<='0 Úvod'!$G$19+'0 Úvod'!$J$19-1,('4 Tržby'!N34+'4 Tržby'!N35),0) -> 0 | O5: =IF(O2<='0 Úvod'!$G$19+'0 Úvod'!$J$19-1,('4 Tržby'!O34+'4 Tržby'!O35),0) -> 0 | P5: =IF(P2<='0 Úvod'!$G$19+'0 Úvod'!$J$19-1,('4 Tržby'!P34+'4 Tržby'!P35),0) -> 0 | Q5: =IF(Q2<='0 Úvod'!$G$19+'0 Úvod'!$J$19-1,('4 Tržby'!Q34+'4 Tržby'!Q35),0) -> 0 | R5: =IF(R2<='0 Úvod'!$G$19+'0 Úvod'!$J$19-1,('4 Tržby'!R34+'4 Tržby'!R35),0) -> 0 | S5: =IF(S2<='0 Úvod'!$G$19+'0 Úvod'!$J$19-1,('4 Tržby'!S34+'4 Tržby'!S35),0) -> 0
B6: C | C6: Přírůstkové celkové provozní náklady* | D6: =E6+NPV(D9,F6:S6,E16:S16) -> 0 | E6: ='5 Finanční analýza (FRR_C)'!E6 -> 0 | F6: ='5 Finanční analýza (FRR_C)'!F6 -> 0 | G6: ='5 Finanční analýza (FRR_C)'!G6 -> 0 | H6: ='5 Finanční analýza (FRR_C)'!H6 -> 0 | I6: ='5 Finanční analýza (FRR_C)'!I6 -> 0 | J6: ='5 Finanční analýza (FRR_C)'!J6 -> 0 | K6: ='5 Finanční analýza (FRR_C)'!K6 -> 0 | L6: ='5 Finanční analýza (FRR_C)'!L6 -> 0 | M6: ='5 Finanční analýza (FRR_C)'!M6 -> 0 | N6: ='5 Finanční analýza (FRR_C)'!N6 -> 0 | O6: ='5 Finanční analýza (FRR_C)'!O6 -> 0 | P6: ='5 Finanční analýza (FRR_C)'!P6 -> 0 | Q6: ='5 Finanční analýza (FRR_C)'!Q6 -> 0 | R6: ='5 Finanční analýza (FRR_C)'!R6 -> 0 | S6: ='5 Finanční analýza (FRR_C)'!S6 -> 0
B7: D | C7: Čisté provozní příjmy | D7: =E7+NPV(D9,F7:S7,E17:S17) -> 0 | E7: =E5-E6 -> 0 | F7: =F5-F6 -> 0 | G7: 0 | H7: 0 | I7: 0 | J7: 0 | K7: 0 | L7: 0 | M7: 0 | N7: 0 | O7: 0 | P7: 0 | Q7: 0 | R7: 0 | S7: 0
B8: E | C8: Zůstatková hodnota investice | D8: =E8+NPV(D9,F8:S8,E18:S18) ->  | E8: =IF(E2='0 Úvod'!$G$19+'0 Úvod'!$J$19-1,-1*'2 Zůstatková hodnota'!$I$7,0) -> 0 | F8: =IF(F2='0 Úvod'!$G$19+'0 Úvod'!$J$19-1,-1*'2 Zůstatková hodnota'!$I$7,0) -> 0 | G8: =IF(G2='0 Úvod'!$G$19+'0 Úvod'!$J$19-1,-1*'2 Zůstatková hodnota'!$I$7,0) -> 0 | H8: =IF(H2='0 Úvod'!$G$19+'0 Úvod'!$J$19-1,-1*'2 Zůstatková hodnota'!$I$7,0) -> 0 | I8: =IF(I2='0 Úvod'!$G$19+'0 Úvod'!$J$19-1,-1*'2 Zůstatková hodnota'!$I$7,0) -> 0 | J8: =IF(J2='0 Úvod'!$G$19+'0 Úvod'!$J$19-1,-1*'2 Zůstatková hodnota'!$I$7,0) -> 0 | K8: =IF(K2='0 Úvod'!$G$19+'0 Úvod'!$J$19-1,-1*'2 Zůstatková hodnota'!$I$7,0) -> 0 | L8: =IF(L2='0 Úvod'!$G$19+'0 Úvod'!$J$19-1,-1*'2 Zůstatková hodnota'!$I$7,0) -> 0 | M8: =IF(M2='0 Úvod'!$G$19+'0 Úvod'!$J$19-1,-1*'2 Zůstatková hodnota'!$I$7,0) -> 0 | N8: =IF(N2='0 Úvod'!$G$19+'0 Úvod'!$J$19-1,-1*'2 Zůstatková hodnota'!$I$7,0) -> 0 | O8: =IF(O2='0 Úvod'!$G$19+'0 Úvod'!$J$19-1,-1*'2 Zůstatková hodnota'!$I$7,0) -> 0 | P8: =IF(P2='0 Úvod'!$G$19+'0 Úvod'!$J$19-1,-1*'2 Zůstatková hodnota'!$I$7,0) -> 0 | Q8: =IF(Q2='0 Úvod'!$G$19+'0 Úvod'!$J$19-1,-1*'2 Zůstatková hodnota'!$I$7,0) -> 0 | R8: =IF(R2='0 Úvod'!$G$19+'0 Úvod'!$J$19-1,-1*'2 Zůstatková hodnota'!$I$7,0) -> 0 | S8: =IF(S2='0 Úvod'!$G$19+'0 Úvod'!$J$19-1,-1*'2 Zůstatková hodnota'!$I$7,0) -> 0
C9: Diskontní faktor | D9: ='0 Úvod'!D21 -> 0.04 | E9: 1 | F9: =1/(1+$D$9) -> 0.9615384615 | G9: =F9/(1+$D$9) -> 0.924556213 | H9: =G9/(1+$D$9) -> 0.8889963587 | I9: 0.854804191 | J9: 0.8219271068 | K9: 0.7903145257 | L9: 0.7599178132 | M9: 0.730690205 | N9: 0.7025867356 | O9: 0.6755641688 | P9: 0.6495809316 | Q9: 0.6245970496 | R9: 0.6005740861 | S9: 0.5774750828
B10: F | C10: Úspora provozních nákladů* | D10: =IF((E10+NPV(D9,F10:S10,E20:S20))<=0,0,IF(('6 Kontrola dotací'!E35+NPV(D9,'6 Kontrola dotací'!F35:AC35,'6 Kontrola dotací'!E42:AC42))>=(E10+NPV(D9,F10:S10,E20:S20)),0,-(E10+NPV(D9,F10:S10,E20:S20))+('6 Kontrola dotací'!E35+NPV(D9,'6 Kontrola dotací'!F35:AC35,'6 Kontrola dotací'!E42:AC42)))) -> 0 | E10: =IF(E2<='0 Úvod'!$G$19+'0 Úvod'!$J$19-1,'6 Kontrola dotací'!E34,0) -> 0 | F10: =IF(F2<='0 Úvod'!$G$19+'0 Úvod'!$J$19-1,'6 Kontrola dotací'!F34,0) -> 0 | G10: =IF(G2<='0 Úvod'!$G$19+'0 Úvod'!$J$19-1,'6 Kontrola dotací'!G34,0) -> 0 | H10: =IF(H2<='0 Úvod'!$G$19+'0 Úvod'!$J$19-1,'6 Kontrola dotací'!H34,0) -> 0 | I10: =IF(I2<='0 Úvod'!$G$19+'0 Úvod'!$J$19-1,'6 Kontrola dotací'!I34,0) -> 0 | J10: =IF(J2<='0 Úvod'!$G$19+'0 Úvod'!$J$19-1,'6 Kontrola dotací'!J34,0) -> 0 | K10: =IF(K2<='0 Úvod'!$G$19+'0 Úvod'!$J$19-1,'6 Kontrola dotací'!K34,0) -> 0 | L10: =IF(L2<='0 Úvod'!$G$19+'0 Úvod'!$J$19-1,'6 Kontrola dotací'!L34,0) -> 0 | M10: =IF(M2<='0 Úvod'!$G$19+'0 Úvod'!$J$19-1,'6 Kontrola dotací'!M34,0) -> 0 | N10: =IF(N2<='0 Úvod'!$G$19+'0 Úvod'!$J$19-1,'6 Kontrola dotací'!N34,0) -> 0 | O10: =IF(O2<='0 Úvod'!$G$19+'0 Úvod'!$J$19-1,'6 Kontrola dotací'!O34,0) -> 0 | P10: =IF(P2<='0 Úvod'!$G$19+'0 Úvod'!$J$19-1,'6 Kontrola dotací'!P34,0) -> 0 | Q10: =IF(Q2<='0 Úvod'!$G$19+'0 Úvod'!$J$19-1,'6 Kontrola dotací'!Q34,0) -> 0 | R10: =IF(R2<='0 Úvod'!$G$19+'0 Úvod'!$J$19-1,'6 Kontrola dotací'!R34,0) -> 0 | S10: =IF(S2<='0 Úvod'!$G$19+'0 Úvod'!$J$19-1,'6 Kontrola dotací'!S34,0) -> 0
B12: 7.1. | C12: Kalkulace finanční mezery a přidělení | E12: =S2+1 -> 2031 | F12: =E12+1 -> 2032 | G12: 2033 | H12: 2034 | I12: 2035 | J12: 2036 | K12: 2037 | L12: 2038 | M12: 2039 | N12: 2040 | O12: 2041 | P12: 2042 | Q12: 2043 | R12: 2044 | S12: 2045
B13: b | C13: grantu EU (CZK)
B14: A | C14: Investiční náklady (DIC) (z FA) | E14: ='5 Finanční analýza (FRR_C)'!E19 -> 0 | F14: ='5 Finanční analýza (FRR_C)'!F19 -> 0 | G14: ='5 Finanční analýza (FRR_C)'!G19 -> 0 | H14: ='5 Finanční analýza (FRR_C)'!H19 -> 0 | I14: ='5 Finanční analýza (FRR_C)'!I19 -> 0 | J14: ='5 Finanční analýza (FRR_C)'!J19 -> 0 | K14: ='5 Finanční analýza (FRR_C)'!K19 -> 0 | L14: ='5 Finanční analýza (FRR_C)'!L19 -> 0 | M14: ='5 Finanční analýza (FRR_C)'!M19 -> 0 | N14: ='5 Finanční analýza (FRR_C)'!N19 -> 0 | O14: ='5 Finanční analýza (FRR_C)'!O19 -> 0 | P14: ='5 Finanční analýza (FRR_C)'!P19 -> 0 | Q14: ='5 Finanční analýza (FRR_C)'!Q19 -> 0 | R14: ='5 Finanční analýza (FRR_C)'!R19 -> 0 | S14: ='5 Finanční analýza (FRR_C)'!S19 -> 0
B15: B | C15: Přírůstkové celkové provozní příjmy** | E15: =IF(E12<='0 Úvod'!$G$19+'0 Úvod'!$J$19-1,('4 Tržby'!E41+'4 Tržby'!E42),0) -> 0 | F15: =IF(F12<='0 Úvod'!$G$19+'0 Úvod'!$J$19-1,('4 Tržby'!F41+'4 Tržby'!F42),0) -> 0 | G15: =IF(G12<='0 Úvod'!$G$19+'0 Úvod'!$J$19-1,('4 Tržby'!G41+'4 Tržby'!G42),0) -> 0 | H15: =IF(H12<='0 Úvod'!$G$19+'0 Úvod'!$J$19-1,('4 Tržby'!H41+'4 Tržby'!H42),0) -> 0 | I15: =IF(I12<='0 Úvod'!$G$19+'0 Úvod'!$J$19-1,('4 Tržby'!I41+'4 Tržby'!I42),0) -> 0 | J15: =IF(J12<='0 Úvod'!$G$19+'0 Úvod'!$J$19-1,('4 Tržby'!J41+'4 Tržby'!J42),0) -> 0 | K15: =IF(K12<='0 Úvod'!$G$19+'0 Úvod'!$J$19-1,('4 Tržby'!K41+'4 Tržby'!K42),0) -> 0 | L15: =IF(L12<='0 Úvod'!$G$19+'0 Úvod'!$J$19-1,('4 Tržby'!L41+'4 Tržby'!L42),0) -> 0 | M15: =IF(M12<='0 Úvod'!$G$19+'0 Úvod'!$J$19-1,('4 Tržby'!M41+'4 Tržby'!M42),0) -> 0 | N15: =IF(N12<='0 Úvod'!$G$19+'0 Úvod'!$J$19-1,('4 Tržby'!N41+'4 Tržby'!N42),0) -> 0 | O15: =IF(O12<='0 Úvod'!$G$19+'0 Úvod'!$J$19-1,('4 Tržby'!O41+'4 Tržby'!O42),0) -> 0 | P15: =IF(P12<='0 Úvod'!$G$19+'0 Úvod'!$J$19-1,('4 Tržby'!P41+'4 Tržby'!P42),0) -> 0 | Q15: =IF(Q12<='0 Úvod'!$G$19+'0 Úvod'!$J$19-1,('4 Tržby'!Q41+'4 Tržby'!Q42),0) -> 0 | R15: =IF(R12<='0 Úvod'!$G$19+'0 Úvod'!$J$19-1,('4 Tržby'!R41+'4 Tržby'!R42),0) -> 0 | S15: =IF(S12<='0 Úvod'!$G$19+'0 Úvod'!$J$19-1,('4 Tržby'!S41+'4 Tržby'!S42),0) -> 0
B16: C | C16: Přírůstkové celkové provozní náklady* | E16: ='5 Finanční analýza (FRR_C)'!E18 -> 0 | F16: ='5 Finanční analýza (FRR_C)'!F18 -> 0 | G16: ='5 Finanční analýza (FRR_C)'!G18 -> 0 | H16: ='5 Finanční analýza (FRR_C)'!H18 -> 0 | I16: ='5 Finanční analýza (FRR_C)'!I18 -> 0 | J16: ='5 Finanční analýza (FRR_C)'!J18 -> 0 | K16: ='5 Finanční analýza (FRR_C)'!K18 -> 0 | L16: ='5 Finanční analýza (FRR_C)'!L18 -> 0 | M16: ='5 Finanční analýza (FRR_C)'!M18 -> 0 | N16: ='5 Finanční analýza (FRR_C)'!N18 -> 0 | O16: ='5 Finanční analýza (FRR_C)'!O18 -> 0 | P16: ='5 Finanční analýza (FRR_C)'!P18 -> 0 | Q16: ='5 Finanční analýza (FRR_C)'!Q18 -> 0 | R16: ='5 Finanční analýza (FRR_C)'!R18 -> 0 | S16: ='5 Finanční analýza (FRR_C)'!S18 -> 0
B17: D | C17: Čisté provozní příjmy | E17: =E15-E16 -> 0 | F17: =F15-F16 -> 0 | G17: 0 | H17: 0 | I17: 0 | J17: 0 | K17: 0 | L17: 0 | M17: 0 | N17: 0 | O17: 0 | P17: 0 | Q17: 0 | R17: 0 | S17: 0
B18: E | C18: Zůstatková hodnota investice | E18: =IF(E12='0 Úvod'!$G$19+'0 Úvod'!$J$19-1,-1*'2 Zůstatková hodnota'!$I$7,0) -> 0 | F18: =IF(F12='0 Úvod'!$G$19+'0 Úvod'!$J$19-1,-1*'2 Zůstatková hodnota'!$I$7,0) -> 0 | G18: =IF(G12='0 Úvod'!$G$19+'0 Úvod'!$J$19-1,-1*'2 Zůstatková hodnota'!$I$7,0) -> 0 | H18: =IF(H12='0 Úvod'!$G$19+'0 Úvod'!$J$19-1,-1*'2 Zůstatková hodnota'!$I$7,0) -> 0 | I18: =IF(I12='0 Úvod'!$G$19+'0 Úvod'!$J$19-1,-1*'2 Zůstatková hodnota'!$I$7,0) -> 0 | J18: =IF(J12='0 Úvod'!$G$19+'0 Úvod'!$J$19-1,-1*'2 Zůstatková hodnota'!$I$7,0) -> 0 | K18: =IF(K12='0 Úvod'!$G$19+'0 Úvod'!$J$19-1,-1*'2 Zůstatková hodnota'!$I$7,0) -> 0 | L18: =IF(L12='0 Úvod'!$G$19+'0 Úvod'!$J$19-1,-1*'2 Zůstatková hodnota'!$I$7,0) -> 0 | M18: =IF(M12='0 Úvod'!$G$19+'0 Úvod'!$J$19-1,-1*'2 Zůstatková hodnota'!$I$7,0) -> 0 | N18: =IF(N12='0 Úvod'!$G$19+'0 Úvod'!$J$19-1,-1*'2 Zůstatková hodnota'!$I$7,0) -> 0 | O18: =IF(O12='0 Úvod'!$G$19+'0 Úvod'!$J$19-1,-1*'2 Zůstatková hodnota'!$I$7,0) -> 0 | P18: =IF(P12='0 Úvod'!$G$19+'0 Úvod'!$J$19-1,-1*'2 Zůstatková hodnota'!$I$7,0) -> 0 | Q18: =IF(Q12='0 Úvod'!$G$19+'0 Úvod'!$J$19-1,-1*'2 Zůstatková hodnota'!$I$7,0) -> 0 | R18: =IF(R12='0 Úvod'!$G$19+'0 Úvod'!$J$19-1,-1*'2 Zůstatková hodnota'!$I$7,0) -> 0 | S18: =IF(S12='0 Úvod'!$G$19+'0 Úvod'!$J$19-1,-1*'2 Zůstatková hodnota'!$I$7,0) -> 
C19: Diskontní faktor | D19: =D9 -> 0.04 | E19: =S9/(1+$D$9) -> 0.5552645027 | F19: =E19/(1+$D$9) -> 0.5339081757 | G19: =F19/(1+$D$9) -> 0.5133732459 | H19: 0.493628121 | I19: 0.474642424 | J19: 0.4563869462 | K19: 0.4388336021 | L19: 0.4219553867 | M19: 0.4057263333 | N19: 0.3901214743 | O19: 0.3751168023 | P19: 0.3606892329 | Q19: 0.3468165701 | R19: 0.3334774713 | S19: 0.3206514147
B20: F | C20: Úspora provozních nákladů* | E20: =IF(E12<='0 Úvod'!$G$19+'0 Úvod'!$J$19-1,'6 Kontrola dotací'!E41,0) -> 0 | F20: =IF(F12<='0 Úvod'!$G$19+'0 Úvod'!$J$19-1,'6 Kontrola dotací'!F41,0) -> 0 | G20: =IF(G12<='0 Úvod'!$G$19+'0 Úvod'!$J$19-1,'6 Kontrola dotací'!G41,0) -> 0 | H20: =IF(H12<='0 Úvod'!$G$19+'0 Úvod'!$J$19-1,'6 Kontrola dotací'!H41,0) -> 0 | I20: =IF(I12<='0 Úvod'!$G$19+'0 Úvod'!$J$19-1,'6 Kontrola dotací'!I41,0) -> 0 | J20: =IF(J12<='0 Úvod'!$G$19+'0 Úvod'!$J$19-1,'6 Kontrola dotací'!J41,0) -> 0 | K20: =IF(K12<='0 Úvod'!$G$19+'0 Úvod'!$J$19-1,'6 Kontrola dotací'!K41,0) -> 0 | L20: =IF(L12<='0 Úvod'!$G$19+'0 Úvod'!$J$19-1,'6 Kontrola dotací'!L41,0) -> 0 | M20: =IF(M12<='0 Úvod'!$G$19+'0 Úvod'!$J$19-1,'6 Kontrola dotací'!M41,0) -> 0 | N20: =IF(N12<='0 Úvod'!$G$19+'0 Úvod'!$J$19-1,'6 Kontrola dotací'!N41,0) -> 0 | O20: =IF(O12<='0 Úvod'!$G$19+'0 Úvod'!$J$19-1,'6 Kontrola dotací'!O41,0) -> 0 | P20: =IF(P12<='0 Úvod'!$G$19+'0 Úvod'!$J$19-1,'6 Kontrola dotací'!P41,0) -> 0 | Q20: =IF(Q12<='0 Úvod'!$G$19+'0 Úvod'!$J$19-1,'6 Kontrola dotací'!Q41,0) -> 0 | R20: =IF(R12<='0 Úvod'!$G$19+'0 Úvod'!$J$19-1,'6 Kontrola dotací'!R41,0) -> 0 | S20: =IF(S12<='0 Úvod'!$G$19+'0 Úvod'!$J$19-1,'6 Kontrola dotací'!S41,0) -> 0
B23: 7.2. | C23: Kalkulace veřejného příspěvku (CZK) - stálé ceny | G23: CZK | H23: EUR | J23: Komentáře
C24: Způsobilé náklady*** | G24: ='1 Celkové investiční náklady'!F11*('1 Celkové investiční náklady'!E45/'1 Celkové investiční náklady'!F45) ->  | H24: =G24/'0 Úvod'!N19 ->  | J24: * v případě vynechání dle čl. 61 Nařízení (EU) č. 1303/2013, musí být poskytnuta ukázka úměrného snížení dotací na základě shody s hodnotami cash-flow z tabulky "Provozní náklady"
C25: Míra finanční mezery ((DIC bez rezervy- čisté příjmy)/DIC bez rezervy) | G25: =IF(D6>D5,1,IF(D6>0,ROUND((D4-(D5-D6)*('1 Celkové investiční náklady'!$E$45/'1 Celkové investiční náklady'!$F$45)+D8*('1 Celkové investiční náklady'!$E$45/'1 Celkové investiční náklady'!$F$45))/D4,4),IF(ROUND((D4-(D5-D10)*('1 Celkové investiční náklady'!$E$45/'1 Celkové investiční náklady'!$F$45)+D8*('1 Celkové investiční náklady'!$E$45/'1 Celkové investiční náklady'!$F$45))/D4,4)>1,1,ROUND((D4-(D5-D10)*('1 Celkové investiční náklady'!$E$45/'1 Celkové investiční náklady'!$F$45)+D8*('1 Celkové investiční náklady'!$E$45/'1 Celkové investiční náklady'!$F$45))/D4,4)))) -> 
C26: Rozhodná částka (způsobilé náklady*R) | G26: =ROUND(G24*G25,0) ->  | H26: =G26/'0 Úvod'!N19 ->  | J26: ** tržby hrazené přímo uživateli, čl. 61 Nařízení (EU) č. 1303/2013 a příloha V Nařízení (EU) č. 1303/2013 a oddíl III Nařízení Komise v přenesené pravomoci (EU) č. 480/2014
C27: Míra spolufinancování prioritních os (%) | G27: 0.85
C28: Příspěvek Společenství | G28: =FLOOR(G26*G27,1) ->  | H28: =G28/'0 Úvod'!N19 ->  | J28: *** jedná se o procentuální odhad způsobilých nákladů ve stálých cenách, který vychází ze skutečného poměru způsobilých a nezpůsobilých nákladů v běžných cenách z tabulky způsobilosti nákladů (list "1 Celkové investiční náklady" tabulka 1.2)
B30: 7.3. | C30: Kalkulace veřejného příspěvku (CZK) - běžné ceny | G30: CZK | H30: EUR
C31: Způsobilé náklady | G31: ='1 Celkové investiční náklady'!E45 -> 0 | H31: =G31/'0 Úvod'!N19 -> 0
C32: Míra finanční mezery ((DIC bez rezervy- čisté příjmy)/DIC bez rezervy) | G32: =G25 -> 
C33: Rozhodná částka (způsobilé náklady*R) | G33: =ROUND(G31*G32,0) ->  | H33: =G33/'0 Úvod'!N19 -> 
C34: Míra spolufinancování prioritních os (%) | G34: =G27 -> 0.85
C35: Příspěvek Společenství | G35: =FLOOR(G33*G34,2) ->  | H35: =G35/'0 Úvod'!N19 -> 

Sheet 8 Finanční struktura
B2: 8.1. | C2: Zdroje financování investičních nákladů (CZK) | D2: ='0 Úvod'!D19 -> 2016 | E2: ='0 Úvod'!G19 -> 2016 | F2: =E2+1 -> 2017 | G2: 2018 | H2: 2019 | I2: =H2+1 -> 2020 | J2: 2021 | K2: 2022 | L2: 2023 | M2: 2024 | N2: 2025 | O2: 2026 | P2: 2027 | Q2: 2028 | R2: 2029 | S2: 2030 | T2: Kontrolní suma*
B3: a | C3: Konstantní ceny | D3: Celkem
C4: Vlastní zdroje | D4: =SUM(E4:S4,E19:S19) -> 0
C5: Ostatní zdroje | D5: =SUM(E5:S5,E20:S20) -> 0
C6: Celkové zdroje žadatele | D6: 0 | E6: =E5+E4 -> 0 | F6: 0 | G6: 0 | H6: 0 | I6: 0 | J6: 0 | K6: 0 | L6: 0 | M6: 0 | N6: 0 | O6: =O5+O4 -> 0 | P6: 0 | Q6: 0 | R6: 0 | S6: =S5+S4 -> 0
C7: Úvěr (poskytnutý státní správou) | D7: 0
C8: Zdroje státního rozpočtu | D8: 0
C9: Národní zdroje | D9: 0 | E9: =E8+E7 -> 0 | F9: 0 | G9: 0 | H9: 0 | I9: 0 | J9: 0 | K9: 0 | L9: 0 | M9: 0 | N9: 0 | O9: 0 | P9: 0 | Q9: 0 | R9: 0 | S9: =S8+S7 -> 0
C10: Granty EU | D10: 0
C11: Celkové finanční zdroje (bez rezervy) | D11: 0 | E11: =E6+E9+E10 -> 0 | F11: =F6+F9+F10 -> 0 | G11: =G6+G9+G10 -> 0 | H11: 0 | I11: 0 | J11: 0 | K11: 0 | L11: 0 | M11: 0 | N11: 0 | O11: 0 | P11: 0 | Q11: 0 | R11: 0 | S11: =S6+S9+S10 -> 0 | T11: =IF(D11='1 Celkové investiční náklady'!F11,"OK","CHYBA!") -> OK
C12: Rezerva - vlastní zdroje | D12: 0
C13: Rezerva - EU granty | D13: 0
C14: Rezerva celkem | D14: 0 | E14: =E12+E13 -> 0 | F14: =F12+F13 -> 0 | G14: =G12+G13 -> 0 | H14: =H12+H13 -> 0 | I14: =I12+I13 -> 0 | J14: 0 | K14: 0 | L14: 0 | M14: 0 | N14: 0 | O14: 0 | P14: 0 | Q14: 0 | R14: 0 | S14: =S12+S13 -> 0
C15: Celkové finanční zdroje | D15: 0 | E15: =E11+E14 -> 0 | F15: =F11+F14 -> 0 | G15: =G11+G14 -> 0 | H15: =H11+H14 -> 0 | I15: =I11+I14 -> 0 | J15: 0 | K15: 0 | L15: 0 | M15: 0 | N15: 0 | O15: 0 | P15: 0 | Q15: 0 | R15: 0 | S15: =S11+S14 -> 0 | T15: =IF(D15='1 Celkové investiční náklady'!F13,"OK","CHYBA!") -> OK
B17: 8.1. | C17: Zdroje financování investičních nákladů (CZK) | D17: =D2 -> 2016 | E17: =S2+1 -> 2031 | F17: =E17+1 -> 2032 | G17: 2033 | H17: 2034 | I17: =H17+1 -> 2035 | J17: 2036 | K17: 2037 | L17: 2038 | M17: 2039 | N17: 2040 | O17: 2041 | P17: 2042 | Q17: 2043 | R17: 2044 | S17: 2045
B18: b | C18: Konstantní ceny
C19: Vlastní zdroje
C20: Ostatní zdroje
C21: Celkové zdroje žadatele | E21: =E20+E19 -> 0 | F21: 0 | G21: 0 | H21: 0 | I21: 0 | J21: 0 | K21: 0 | L21: 0 | M21: 0 | N21: 0 | O21: 0 | P21: 0 | Q21: 0 | R21: 0 | S21: =S20+S19 -> 0
C22: Úvěr (poskytnutý státní správou)
C23: Zdroje státního rozpočtu
C24: Národní zdroje | E24: =E23+E22 -> 0 | F24: 0 | G24: 0 | H24: 0 | I24: 0 | J24: 0 | K24: 0 | L24: 0 | M24: 0 | N24: 0 | O24: 0 | P24: 0 | Q24: 0 | R24: 0 | S24: =S23+S22 -> 0
C25: Granty EU
C26: Celkové finanční zdroje (bez rezervy) | E26: =E21+E24+E25 -> 0 | F26: 0 | G26: 0 | H26: 0 | I26: 0 | J26: 0 | K26: 0 | L26: 0 | M26: 0 | N26: 0 | O26: 0 | P26: 0 | Q26: 0 | R26: 0 | S26: =S21+S24+S25 -> 0
C27: Rezerva - vlastní zdroje
C28: Rezerva - EU granty
C29: Rezerva celkem | E29: =E27+E28 -> 0 | F29: =F27+F28 -> 0 | G29: =G27+G28 -> 0 | H29: =H27+H28 -> 0 | I29: =I27+I28 -> 0 | J29: 0 | K29: 0 | L29: 0 | M29: 0 | N29: 0 | O29: 0 | P29: 0 | Q29: 0 | R29: 0 | S29: =S27+S28 -> 0
C30: Celkové finanční zdroje | E30: =E26+E29 -> 0 | F30: =F26+F29 -> 0 | G30: =G26+G29 -> 0 | H30: =H26+H29 -> 0 | I30: =I26+I29 -> 0 | J30: 0 | K30: 0 | L30: 0 | M30: 0 | N30: 0 | O30: 0 | P30: 0 | Q30: 0 | R30: 0 | S30: =S26+S29 -> 0
B33: 8.2. | C33: Zdroje financování investičních nákladů (CZK) | E33: =E2 -> 2016 | F33: =E33+1 -> 2017 | G33: 2018 | H33: 2019 | I33: =H33+1 -> 2020 | J33: 2021 | K33: 2022 | L33: 2023 | M33: 2024 | N33: 2025 | O33: 2026 | P33: 2027 | Q33: 2028 | R33: 2029 | S33: 2030 | T33: Kontrolní suma*
B34: a | C34: Běžné ceny | D34: Celkem
C35: Vlastní zdroje | D35: =SUM(E35:S35,E50:S50) -> 0
C36: Ostatní zdroje | D36: =SUM(E36:S36,E51:S51) -> 0
C37: Celkové zdroje žadatele | D37: 0 | E37: =E36+E35 -> 0 | F37: =F36+F35 -> 0 | G37: =G36+G35 -> 0 | H37: =H36+H35 -> 0 | I37: =I36+I35 -> 0 | J37: 0 | K37: 0 | L37: 0 | M37: 0 | N37: 0 | O37: 0 | P37: 0 | Q37: 0 | R37: 0 | S37: =S36+S35 -> 0
C38: Úvěr (poskytnutý státní správou) | D38: 0
C39: Zdroje státního rozpočtu | D39: 0
C40: Národní zdroje | D40: 0 | E40: =E39+E38 -> 0 | F40: =F39+F38 -> 0 | G40: =G39+G38 -> 0 | H40: =H39+H38 -> 0 | I40: =I39+I38 -> 0 | J40: 0 | K40: 0 | L40: 0 | M40: 0 | N40: 0 | O40: 0 | P40: 0 | Q40: 0 | R40: 0 | S40: =S39+S38 -> 0
C41: Granty EU | D41: 0
C42: Celkové finanční zdroje (bez rezervy) | D42: 0 | E42: =E37+E40+E41 -> 0 | F42: =F37+F40+F41 -> 0 | G42: =G37+G40+G41 -> 0 | H42: =H37+H40+H41 -> 0 | I42: =I37+I40+I41 -> 0 | J42: 0 | K42: 0 | L42: 0 | M42: 0 | N42: 0 | O42: 0 | P42: 0 | Q42: 0 | R42: 0 | S42: =S37+S40+S41 -> 0 | T42: =IF(D42=('1 Celkové investiční náklady'!F45-'1 Celkové investiční náklady'!F40),"OK","CHYBA!") -> OK
C43: Rezerva - vlastní zdroje | D43: 0
C44: Rezerva - EU granty | D44: 0
C45: Rezerva celkem | D45: 0 | E45: =E43+E44 -> 0 | F45: =F43+F44 -> 0 | G45: =G43+G44 -> 0 | H45: =H43+H44 -> 0 | I45: =I43+I44 -> 0 | J45: 0 | K45: 0 | L45: 0 | M45: 0 | N45: 0 | O45: 0 | P45: 0 | Q45: 0 | R45: 0 | S45: =S43+S44 -> 0
C46: Celkové finanční zdroje | D46: 0 | E46: =E42+E45 -> 0 | F46: =F42+F45 -> 0 | G46: =G42+G45 -> 0 | H46: =H42+H45 -> 0 | I46: =I42+I45 -> 0 | J46: 0 | K46: 0 | L46: 0 | M46: 0 | N46: 0 | O46: 0 | P46: 0 | Q46: 0 | R46: 0 | S46: =S42+S45 -> 0 | T46: =IF(D46='1 Celkové investiční náklady'!F45,"OK","CHYBA!") -> OK
B48: 8.2. | C48: Zdroje financování investičních nákladů (CZK) | E48: =E17 -> 2031 | F48: =E48+1 -> 2032 | G48: 2033 | H48: 2034 | I48: =H48+1 -> 2035 | J48: 2036 | K48: 2037 | L48: 2038 | M48: 2039 | N48: 2040 | O48: 2041 | P48: 2042 | Q48: 2043 | R48: 2044 | S48: 2045
B49: b | C49: Běžné ceny
C50: Vlastní zdroje
C51: Ostatní zdroje
C52: Celkové zdroje žadatele | E52: =E51+E50 -> 0 | F52: =F51+F50 -> 0 | G52: =G51+G50 -> 0 | H52: =H51+H50 -> 0 | I52: =I51+I50 -> 0 | J52: 0 | K52: 0 | L52: 0 | M52: 0 | N52: 0 | O52: 0 | P52: 0 | Q52: 0 | R52: 0 | S52: =S51+S50 -> 0
C53: Úvěr (poskytnutý státní správou)
C54: Zdroje státního rozpočtu
C55: Národní zdroje | E55: =E54+E53 -> 0 | F55: =F54+F53 -> 0 | G55: =G54+G53 -> 0 | H55: =H54+H53 -> 0 | I55: =I54+I53 -> 0 | J55: 0 | K55: 0 | L55: 0 | M55: 0 | N55: 0 | O55: 0 | P55: 0 | Q55: 0 | R55: 0 | S55: =S54+S53 -> 0
C56: Granty EU
C57: Celkové finanční zdroje (bez rezervy) | E57: =E52+E55+E56 -> 0 | F57: =F52+F55+F56 -> 0 | G57: =G52+G55+G56 -> 0 | H57: =H52+H55+H56 -> 0 | I57: =I52+I55+I56 -> 0 | J57: 0 | K57: 0 | L57: 0 | M57: 0 | N57: 0 | O57: 0 | P57: 0 | Q57: 0 | R57: 0 | S57: =S52+S55+S56 -> 0
C58: Rezerva - vlastní zdroje
C59: Rezerva - EU granty
C60: Rezerva celkem | E60: =E58+E59 -> 0 | F60: =F58+F59 -> 0 | G60: =G58+G59 -> 0 | H60: =H58+H59 -> 0 | I60: =I58+I59 -> 0 | J60: 0 | K60: 0 | L60: 0 | M60: 0 | N60: 0 | O60: 0 | P60: 0 | Q60: 0 | R60: 0 | S60: =S58+S59 -> 0
C61: Celkové finanční zdroje | E61: =E57+E60 -> 0 | F61: =F57+F60 -> 0 | G61: =G57+G60 -> 0 | H61: =H57+H60 -> 0 | I61: =I57+I60 -> 0 | J61: 0 | K61: 0 | L61: 0 | M61: 0 | N61: 0 | O61: 0 | P61: 0 | Q61: 0 | R61: 0 | S61: =S57+S60 -> 0
B63: Komentáře
B65: * kontrola souladu celk. finančních zdrojů s celk. investičními náklady

Sheet 9 Udržitelnost
B2: 9.1. | C2: Udržitelnost projektu (CZK) | E2: ='0 Úvod'!G19 -> 2016 | F2: =E2+1 -> 2017 | G2: 2018 | H2: 2019 | I2: 2020 | J2: 2021 | K2: 2022 | L2: 2023 | M2: 2024 | N2: 2025 | O2: 2026 | P2: 2027 | Q2: 2028 | R2: 2029 | S2: 2030
B3: a | C3: Stálé ceny | D3: Total
C4: Provozní příjmy | D4: =SUM(E4:S4,E21:S21) -> 0 | E4: ='4 Tržby'!E7 -> 0 | F4: ='4 Tržby'!F7 -> 0 | G4: ='4 Tržby'!G7 -> 0 | H4: ='4 Tržby'!H7 -> 0 | I4: ='4 Tržby'!I7 -> 0 | J4: ='4 Tržby'!J7 -> 0 | K4: ='4 Tržby'!K7 -> 0 | L4: ='4 Tržby'!L7 -> 0 | M4: ='4 Tržby'!M7 -> 0 | N4: ='4 Tržby'!N7 -> 0 | O4: ='4 Tržby'!O7 -> 0 | P4: ='4 Tržby'!P7 -> 0 | Q4: ='4 Tržby'!Q7 -> 0 | R4: ='4 Tržby'!R7 -> 0 | S4: ='4 Tržby'!S7 -> 0
C5: Úvěry | D5: =SUM(E5:S5,E22:S22) -> 0 | E5: ='8 Finanční struktura'!E7 -> 0 | F5: ='8 Finanční struktura'!F7 -> 0 | G5: ='8 Finanční struktura'!G7 -> 0 | H5: ='8 Finanční struktura'!H7 -> 0 | I5: ='8 Finanční struktura'!I7 -> 0 | J5: ='8 Finanční struktura'!J7 -> 0 | K5: ='8 Finanční struktura'!K7 -> 0 | L5: ='8 Finanční struktura'!L7 -> 0 | M5: ='8 Finanční struktura'!M7 -> 0 | N5: ='8 Finanční struktura'!N7 -> 0 | O5: ='8 Finanční struktura'!O7 -> 0 | P5: ='8 Finanční struktura'!P7 -> 0 | Q5: ='8 Finanční struktura'!Q7 -> 0 | R5: ='8 Finanční struktura'!R7 -> 0 | S5: ='8 Finanční struktura'!S7 -> 0
C6: Celkové zdroje žadatele | D6: 0 | E6: ='8 Finanční struktura'!E6 -> 0 | F6: ='8 Finanční struktura'!F6 -> 0 | G6: ='8 Finanční struktura'!G6 -> 0 | H6: ='8 Finanční struktura'!H6 -> 0 | I6: ='8 Finanční struktura'!I6 -> 0 | J6: ='8 Finanční struktura'!J6 -> 0 | K6: ='8 Finanční struktura'!K6 -> 0 | L6: ='8 Finanční struktura'!L6 -> 0 | M6: ='8 Finanční struktura'!M6 -> 0 | N6: ='8 Finanční struktura'!N6 -> 0 | O6: ='8 Finanční struktura'!O6 -> 0 | P6: ='8 Finanční struktura'!P6 -> 0 | Q6: ='8 Finanční struktura'!Q6 -> 0 | R6: ='8 Finanční struktura'!R6 -> 0 | S6: ='8 Finanční struktura'!S6 -> 0
C7: Zdroje státního rozpočtu | D7: 0 | E7: ='8 Finanční struktura'!E8 -> 0 | F7: ='8 Finanční struktura'!F8 -> 0 | G7: ='8 Finanční struktura'!G8 -> 0 | H7: ='8 Finanční struktura'!H8 -> 0 | I7: ='8 Finanční struktura'!I8 -> 0 | J7: ='8 Finanční struktura'!J8 -> 0 | K7: ='8 Finanční struktura'!K8 -> 0 | L7: ='8 Finanční struktura'!L8 -> 0 | M7: ='8 Finanční struktura'!M8 -> 0 | N7: ='8 Finanční struktura'!N8 -> 0 | O7: ='8 Finanční struktura'!O8 -> 0 | P7: ='8 Finanční struktura'!P8 -> 0 | Q7: ='8 Finanční struktura'!Q8 -> 0 | R7: ='8 Finanční struktura'!R8 -> 0 | S7: ='8 Finanční struktura'!S8 -> 0
C8: Granty EU | D8: 0 | E8: ='8 Finanční struktura'!E10 -> 0 | F8: ='8 Finanční struktura'!F10 -> 0 | G8: ='8 Finanční struktura'!G10 -> 0 | H8: ='8 Finanční struktura'!H10 -> 0 | I8: ='8 Finanční struktura'!I10 -> 0 | J8: ='8 Finanční struktura'!J10 -> 0 | K8: ='8 Finanční struktura'!K10 -> 0 | L8: ='8 Finanční struktura'!L10 -> 0 | M8: ='8 Finanční struktura'!M10 -> 0 | N8: ='8 Finanční struktura'!N10 -> 0 | O8: ='8 Finanční struktura'!O10 -> 0 | P8: ='8 Finanční struktura'!P10 -> 0 | Q8: ='8 Finanční struktura'!Q10 -> 0 | R8: ='8 Finanční struktura'!R10 -> 0 | S8: ='8 Finanční struktura'!S10 -> 0
C9: Dotace | D9: 0 | E9: ='6 Kontrola dotací'!E7 -> 0 | F9: ='6 Kontrola dotací'!F7 -> 0 | G9: ='6 Kontrola dotací'!G7 -> 0 | H9: ='6 Kontrola dotací'!H7 -> 0 | I9: ='6 Kontrola dotací'!I7 -> 0 | J9: ='6 Kontrola dotací'!J7 -> 0 | K9: ='6 Kontrola dotací'!K7 -> 0 | L9: ='6 Kontrola dotací'!L7 -> 0 | M9: ='6 Kontrola dotací'!M7 -> 0 | N9: ='6 Kontrola dotací'!N7 -> 0 | O9: ='6 Kontrola dotací'!O7 -> 0 | P9: ='6 Kontrola dotací'!P7 -> 0 | Q9: ='6 Kontrola dotací'!Q7 -> 0 | R9: ='6 Kontrola dotací'!R7 -> 0 | S9: ='6 Kontrola dotací'!S7 -> 0
C10: Celkové příjmy | D10: 0 | E10: =SUM(E4:E9) -> 0 | F10: =SUM(F4:F9) -> 0 | G10: 0 | H10: 0 | I10: 0 | J10: 0 | K10: 0 | L10: 0 | M10: 0 | N10: 0 | O10: 0 | P10: 0 | Q10: 0 | R10: 0 | S10: 0
C11: Celkové provozní náklady | D11: 0 | E11: ='3 Provozní náklady'!E7 -> 0 | F11: ='3 Provozní náklady'!F7 -> 0 | G11: ='3 Provozní náklady'!G7 -> 0 | H11: ='3 Provozní náklady'!H7 -> 0 | I11: ='3 Provozní náklady'!I7 -> 0 | J11: ='3 Provozní náklady'!J7 -> 0 | K11: ='3 Provozní náklady'!K7 -> 0 | L11: ='3 Provozní náklady'!L7 -> 0 | M11: ='3 Provozní náklady'!M7 -> 0 | N11: ='3 Provozní náklady'!N7 -> 0 | O11: ='3 Provozní náklady'!O7 -> 0 | P11: ='3 Provozní náklady'!P7 -> 0 | Q11: ='3 Provozní náklady'!Q7 -> 0 | R11: ='3 Provozní náklady'!R7 -> 0 | S11: ='3 Provozní náklady'!S7 -> 0
C12: Celkové investiční náklady | D12: 0 | E12: ='1 Celkové investiční náklady'!G11 -> 0 | F12: ='1 Celkové investiční náklady'!H11 -> 0 | G12: ='1 Celkové investiční náklady'!I11 -> 0 | H12: ='1 Celkové investiční náklady'!J11 -> 0 | I12: ='1 Celkové investiční náklady'!K11 -> 0 | J12: ='1 Celkové investiční náklady'!L11 -> 0 | K12: ='1 Celkové investiční náklady'!M11 -> 0 | L12: ='1 Celkové investiční náklady'!N11 -> 0 | M12: ='1 Celkové investiční náklady'!O11 -> 0 | N12: ='1 Celkové investiční náklady'!P11 -> 0 | O12: ='1 Celkové investiční náklady'!Q11 -> 0 | P12: ='1 Celkové investiční náklady'!R11 -> 0 | Q12: ='1 Celkové investiční náklady'!S11 -> 0 | R12: ='1 Celkové investiční náklady'!T11 -> 0 | S12: ='1 Celkové investiční náklady'!U11 -> 0
C13: Splácení jistiny úvěru | D13: 0
C14: Splácení úroků z úvěru | D14: 0
C15: Celkové výdaje | D15: 0 | E15: =SUM(E11:E14) -> 0 | F15: =SUM(F11:F14) -> 0 | G15: 0 | H15: 0 | I15: 0 | J15: 0 | K15: 0 | L15: 0 | M15: 0 | N15: 0 | O15: 0 | P15: 0 | Q15: 0 | R15: 0 | S15: 0
C16: Cash Flow pro příslušný rok | D16: 0 | E16: =E10-E15 -> 0 | F16: 0 | G16: 0 | H16: 0 | I16: 0 | J16: 0 | K16: 0 | L16: 0 | M16: 0 | N16: 0 | O16: 0 | P16: 0 | Q16: 0 | R16: 0 | S16: 0
C17: Kumulované Cash Flow | E17: =E16 -> 0 | F17: =F16+E17 -> 0 | G17: =G16+F17 -> 0 | H17: 0 | I17: 0 | J17: 0 | K17: 0 | L17: 0 | M17: 0 | N17: 0 | O17: 0 | P17: 0 | Q17: 0 | R17: 0 | S17: 0
B19: 9.1. | C19: Udržitelnost projektu (CZK) | E19: =S2+1 -> 2031 | F19: =E19+1 -> 2032 | G19: 2033 | H19: 2034 | I19: 2035 | J19: 2036 | K19: 2037 | L19: 2038 | M19: 2039 | N19: 2040 | O19: 2041 | P19: 2042 | Q19: 2043 | R19: 2044 | S19: 2045
B20: b | C20: Stálé ceny
C21: Provozní příjmy | E21: ='4 Tržby'!E14 -> 0 | F21: ='4 Tržby'!F14 -> 0 | G21: ='4 Tržby'!G14 -> 0 | H21: ='4 Tržby'!H14 -> 0 | I21: ='4 Tržby'!I14 -> 0 | J21: ='4 Tržby'!J14 -> 0 | K21: ='4 Tržby'!K14 -> 0 | L21: ='4 Tržby'!L14 -> 0 | M21: ='4 Tržby'!M14 -> 0 | N21: ='4 Tržby'!N14 -> 0 | O21: ='4 Tržby'!O14 -> 0 | P21: ='4 Tržby'!P14 -> 0 | Q21: ='4 Tržby'!Q14 -> 0 | R21: ='4 Tržby'!R14 -> 0 | S21: ='4 Tržby'!S14 -> 0
C22: Úvěry | E22: ='8 Finanční struktura'!E22 -> 0 | F22: ='8 Finanční struktura'!F22 -> 0 | G22: ='8 Finanční struktura'!G22 -> 0 | H22: ='8 Finanční struktura'!H22 -> 0 | I22: ='8 Finanční struktura'!I22 -> 0 | J22: ='8 Finanční struktura'!J22 -> 0 | K22: ='8 Finanční struktura'!K22 -> 0 | L22: ='8 Finanční struktura'!L22 -> 0 | M22: ='8 Finanční struktura'!M22 -> 0 | N22: ='8 Finanční struktura'!N22 -> 0 | O22: ='8 Finanční struktura'!O22 -> 0 | P22: ='8 Finanční struktura'!P22 -> 0 | Q22: ='8 Finanční struktura'!Q22 -> 0 | R22: ='8 Finanční struktura'!R22 -> 0 | S22: ='8 Finanční struktura'!S22 -> 0
C23: Celkové zdroje žadatele | E23: ='8 Finanční struktura'!E21 -> 0 | F23: ='8 Finanční struktura'!F21 -> 0 | G23: ='8 Finanční struktura'!G21 -> 0 | H23: ='8 Finanční struktura'!H21 -> 0 | I23: ='8 Finanční struktura'!S21 -> 0 | J23: ='8 Finanční struktura'!T21 -> 0 | K23: ='8 Finanční struktura'!U21 -> 0 | L23: ='8 Finanční struktura'!V21 -> 0 | M23: ='8 Finanční struktura'!W21 -> 0 | N23: ='8 Finanční struktura'!X21 -> 0 | O23: ='8 Finanční struktura'!Y21 -> 0 | P23: ='8 Finanční struktura'!Z21 -> 0 | Q23: ='8 Finanční struktura'!AA21 -> 0 | R23: ='8 Finanční struktura'!AB21 -> 0 | S23: ='8 Finanční struktura'!AC21 -> 0
C24: Zdroje státního rozpočtu | E24: ='8 Finanční struktura'!E23 -> 0 | F24: ='8 Finanční struktura'!F23 -> 0 | G24: ='8 Finanční struktura'!G23 -> 0 | H24: ='8 Finanční struktura'!H23 -> 0 | I24: ='8 Finanční struktura'!S23 -> 0 | J24: ='8 Finanční struktura'!T23 -> 0 | K24: ='8 Finanční struktura'!U23 -> 0 | L24: ='8 Finanční struktura'!V23 -> 0 | M24: ='8 Finanční struktura'!W23 -> 0 | N24: ='8 Finanční struktura'!X23 -> 0 | O24: ='8 Finanční struktura'!Y23 -> 0 | P24: ='8 Finanční struktura'!Z23 -> 0 | Q24: ='8 Finanční struktura'!AA23 -> 0 | R24: ='8 Finanční struktura'!AB23 -> 0 | S24: ='8 Finanční struktura'!AC23 -> 0
C25: Granty EU | E25: ='8 Finanční struktura'!E25 -> 0 | F25: ='8 Finanční struktura'!F25 -> 0 | G25: ='8 Finanční struktura'!G25 -> 0 | H25: ='8 Finanční struktura'!H25 -> 0 | I25: ='8 Finanční struktura'!S25 -> 0 | J25: ='8 Finanční struktura'!T25 -> 0 | K25: ='8 Finanční struktura'!U25 -> 0 | L25: ='8 Finanční struktura'!V25 -> 0 | M25: ='8 Finanční struktura'!W25 -> 0 | N25: ='8 Finanční struktura'!X25 -> 0 | O25: ='8 Finanční struktura'!Y25 -> 0 | P25: ='8 Finanční struktura'!Z25 -> 0 | Q25: ='8 Finanční struktura'!AA25 -> 0 | R25: ='8 Finanční struktura'!AB25 -> 0 | S25: ='8 Finanční struktura'!AC25 -> 0
C26: Dotace | E26: ='6 Kontrola dotací'!E14 -> 0 | F26: ='6 Kontrola dotací'!F14 -> 0 | G26: ='6 Kontrola dotací'!G14 -> 0 | H26: ='6 Kontrola dotací'!H14 -> 0 | I26: ='6 Kontrola dotací'!I14 -> 0 | J26: ='6 Kontrola dotací'!J14 -> 0 | K26: ='6 Kontrola dotací'!K14 -> 0 | L26: ='6 Kontrola dotací'!L14 -> 0 | M26: ='6 Kontrola dotací'!M14 -> 0 | N26: ='6 Kontrola dotací'!N14 -> 0 | O26: ='6 Kontrola dotací'!O14 -> 0 | P26: ='6 Kontrola dotací'!P14 -> 0 | Q26: ='6 Kontrola dotací'!Q14 -> 0 | R26: ='6 Kontrola dotací'!R14 -> 0 | S26: ='6 Kontrola dotací'!S14 -> 0
C27: Celkové příjmy | E27: =SUM(E21:E26) -> 0 | F27: =SUM(F21:F26) -> 0 | G27: 0 | H27: 0 | I27: 0 | J27: 0 | K27: 0 | L27: 0 | M27: 0 | N27: 0 | O27: 0 | P27: 0 | Q27: 0 | R27: 0 | S27: 0
C28: Celkové provozní náklady | E28: ='3 Provozní náklady'!E14 -> 0 | F28: ='3 Provozní náklady'!F14 -> 0 | G28: ='3 Provozní náklady'!G14 -> 0 | H28: ='3 Provozní náklady'!H14 -> 0 | I28: ='3 Provozní náklady'!I14 -> 0 | J28: ='3 Provozní náklady'!J14 -> 0 | K28: ='3 Provozní náklady'!K14 -> 0 | L28: ='3 Provozní náklady'!L14 -> 0 | M28: ='3 Provozní náklady'!M14 -> 0 | N28: ='3 Provozní náklady'!N14 -> 0 | O28: ='3 Provozní náklady'!O14 -> 0 | P28: ='3 Provozní náklady'!P14 -> 0 | Q28: ='3 Provozní náklady'!Q14 -> 0 | R28: ='3 Provozní náklady'!R14 -> 0 | S28: ='3 Provozní náklady'!S14 -> 0
C29: Celkové investiční náklady | E29: ='1 Celkové investiční náklady'!G26 -> 0 | F29: ='1 Celkové investiční náklady'!H26 -> 0 | G29: ='1 Celkové investiční náklady'!I26 -> 0 | H29: ='1 Celkové investiční náklady'!J26 -> 0 | I29: ='1 Celkové investiční náklady'!K26 -> 0 | J29: ='1 Celkové investiční náklady'!L26 -> 0 | K29: ='1 Celkové investiční náklady'!M26 -> 0 | L29: ='1 Celkové investiční náklady'!N26 -> 0 | M29: ='1 Celkové investiční náklady'!O26 -> 0 | N29: ='1 Celkové investiční náklady'!P26 -> 0 | O29: ='1 Celkové investiční náklady'!Q26 -> 0 | P29: ='1 Celkové investiční náklady'!R26 -> 0 | Q29: ='1 Celkové investiční náklady'!S26 -> 0 | R29: ='1 Celkové investiční náklady'!T26 -> 0 | S29: ='1 Celkové investiční náklady'!U26 -> 0
C30: Splácení jistiny úvěru
C31: Splácení úroků z úvěru
C32: Celkové výdaje | E32: =SUM(E28:E31) -> 0 | F32: =SUM(F28:F31) -> 0 | G32: 0 | H32: 0 | I32: 0 | J32: 0 | K32: 0 | L32: 0 | M32: 0 | N32: 0 | O32: 0 | P32: 0 | Q32: 0 | R32: 0 | S32: 0
C33: Cash Flow pro příslušný rok | E33: =E27-E32 -> 0 | F33: 0 | G33: 0 | H33: 0 | I33: 0 | J33: 0 | K33: 0 | L33: 0 | M33: 0 | N33: 0 | O33: 0 | P33: 0 | Q33: 0 | R33: 0 | S33: 0
C34: Kumulované Cash Flow | E34: =E33+S17 -> 0 | F34: =F33+E34 -> 0 | G34: =G33+F34 -> 0 | H34: 0 | I34: 0 | J34: 0 | K34: 0 | L34: 0 | M34: 0 | N34: 0 | O34: 0 | P34: 0 | Q34: 0 | R34: 0 | S34: 0

Sheet 10 FRR_K
B2: 10.1. | C2: Kalkulace finančního vnitřního výnosového procenta | E2: ='0 Úvod'!G19 -> 2016 | F2: =E2+1 -> 2017 | G2: 2018 | H2: 2019 | I2: 2020 | J2: 2021 | K2: 2022 | L2: 2023 | M2: 2024 | N2: 2025 | O2: 2026 | P2: 2027 | Q2: 2028 | R2: 2029 | S2: 2030
B3: a | C3: kapitálu - FRR/K (CZK) | D3: Celkem
C4: Zůstatková hodnota | D4: =SUM(E4:S4,E16:S16) ->  | E4: =-1*'5 Finanční analýza (FRR_C)'!E8 -> 0 | F4: =-1*'5 Finanční analýza (FRR_C)'!F8 -> 0 | G4: =-1*'5 Finanční analýza (FRR_C)'!G8 -> 0 | H4: =-1*'5 Finanční analýza (FRR_C)'!H8 -> 0 | I4: =-1*'5 Finanční analýza (FRR_C)'!I8 -> 0 | J4: =-1*'5 Finanční analýza (FRR_C)'!J8 -> 0 | K4: =-1*'5 Finanční analýza (FRR_C)'!K8 -> 0 | L4: =-1*'5 Finanční analýza (FRR_C)'!L8 -> 0 | M4: =-1*'5 Finanční analýza (FRR_C)'!M8 -> 0 | N4: =-1*'5 Finanční analýza (FRR_C)'!N8 -> 0 | O4: =-1*'5 Finanční analýza (FRR_C)'!O8 -> 0 | P4: =-1*'5 Finanční analýza (FRR_C)'!P8 -> 0 | Q4: =-1*'5 Finanční analýza (FRR_C)'!Q8 -> 0 | R4: =-1*'5 Finanční analýza (FRR_C)'!R8 -> 0 | S4: =-1*'5 Finanční analýza (FRR_C)'!S8 -> 0
C5: Přírůstek celkových provozních příjmů | D5: =SUM(E5:S5,E17:S17) -> 0 | E5: ='7 Mezera ve financování'!E5 -> 0 | F5: ='7 Mezera ve financování'!F5 -> 0 | G5: ='7 Mezera ve financování'!G5 -> 0 | H5: ='7 Mezera ve financování'!H5 -> 0 | I5: ='7 Mezera ve financování'!I5 -> 0 | J5: ='7 Mezera ve financování'!J5 -> 0 | K5: ='7 Mezera ve financování'!K5 -> 0 | L5: ='7 Mezera ve financování'!L5 -> 0 | M5: ='7 Mezera ve financování'!M5 -> 0 | N5: ='7 Mezera ve financování'!N5 -> 0 | O5: ='7 Mezera ve financování'!O5 -> 0 | P5: ='7 Mezera ve financování'!P5 -> 0 | Q5: ='7 Mezera ve financování'!Q5 -> 0 | R5: ='7 Mezera ve financování'!R5 -> 0 | S5: ='7 Mezera ve financování'!S5 -> 0
C6: Celkové příjmy | D6: =SUM(D4:D5) ->  | E6: =SUM(E4:E5) -> 0 | F6: =SUM(F4:F5) -> 0 | G6: 0 | H6: 0 | I6: 0 | J6: 0 | K6: 0 | L6: 0 | M6: 0 | N6: 0 | O6: 0 | P6: 0 | Q6: 0 | R6: 0 | S6: 0
C7: Přírůstkové celkové provozní náklady* | D7: =SUM(E7:S7,E19:S19) -> 0 | E7: ='6 Kontrola dotací'!E37 -> 0 | F7: ='6 Kontrola dotací'!F37 -> 0 | G7: ='6 Kontrola dotací'!G37 -> 0 | H7: ='6 Kontrola dotací'!H37 -> 0 | I7: ='6 Kontrola dotací'!I37 -> 0 | J7: ='6 Kontrola dotací'!J37 -> 0 | K7: ='6 Kontrola dotací'!K37 -> 0 | L7: ='6 Kontrola dotací'!L37 -> 0 | M7: ='6 Kontrola dotací'!M37 -> 0 | N7: ='6 Kontrola dotací'!N37 -> 0 | O7: ='6 Kontrola dotací'!O37 -> 0 | P7: ='6 Kontrola dotací'!P37 -> 0 | Q7: ='6 Kontrola dotací'!Q37 -> 0 | R7: ='6 Kontrola dotací'!R37 -> 0 | S7: ='6 Kontrola dotací'!S37 -> 0
C8: Příspěvky žadatele + národní zdroje | D8: =SUM(E8:S8,E20:S20) -> 0 | E8: ='8 Finanční struktura'!E6+'8 Finanční struktura'!E9 -> 0 | F8: ='8 Finanční struktura'!F6+'8 Finanční struktura'!F9 -> 0 | G8: ='8 Finanční struktura'!G6+'8 Finanční struktura'!G9 -> 0 | H8: ='8 Finanční struktura'!H6+'8 Finanční struktura'!H9 -> 0 | I8: ='8 Finanční struktura'!I6+'8 Finanční struktura'!I9 -> 0 | J8: ='8 Finanční struktura'!J6+'8 Finanční struktura'!J9 -> 0 | K8: ='8 Finanční struktura'!K6+'8 Finanční struktura'!K9 -> 0 | L8: ='8 Finanční struktura'!L6+'8 Finanční struktura'!L9 -> 0 | M8: ='8 Finanční struktura'!M6+'8 Finanční struktura'!M9 -> 0 | N8: ='8 Finanční struktura'!N6+'8 Finanční struktura'!N9 -> 0 | O8: ='8 Finanční struktura'!O6+'8 Finanční struktura'!O9 -> 0 | P8: ='8 Finanční struktura'!P6+'8 Finanční struktura'!P9 -> 0 | Q8: ='8 Finanční struktura'!Q6+'8 Finanční struktura'!Q9 -> 0 | R8: ='8 Finanční struktura'!R6+'8 Finanční struktura'!R9 -> 0 | S8: ='8 Finanční struktura'!S6+'8 Finanční struktura'!S9 -> 0
C9: Celkové náklady | D9: =SUM(D7:D8) -> 0 | E9: =SUM(E7:E8) -> 0 | F9: 0 | G9: 0 | H9: 0 | I9: 0 | J9: 0 | K9: 0 | L9: 0 | M9: 0 | N9: 0 | O9: 0 | P9: 0 | Q9: 0 | R9: 0 | S9: 0
C10: Cash Flow | E10: =E6-E9 -> 0 | F10: 0 | G10: 0 | H10: 0 | I10: 0 | J10: 0 | K10: 0 | L10: 0 | M10: 0 | N10: 0 | O10: 0 | P10: 0 | Q10: 0 | R10: 0 | S10: 0
C11: Diskontní sazba | D11: ='0 Úvod'!D21 -> 0.04 | E11: 1 | F11: =E11/(1+$D$11) -> 0.9615384615 | G11: =F11/(1+$D$11) -> 0.924556213 | H11: 0.8889963587 | I11: 0.854804191 | J11: 0.8219271068 | K11: 0.7903145257 | L11: 0.7599178132 | M11: 0.730690205 | N11: 0.7025867356 | O11: 0.6755641688 | P11: 0.6495809316 | Q11: 0.6245970496 | R11: 0.6005740861 | S11: 0.5774750828
C12: Diskontované cash flow | D12: =SUM(E12:S12,E24:S24) ->  | E12: =E10*E11 -> 0 | F12: =F10*F11 -> 0 | G12: 0 | H12: 0 | I12: 0 | J12: 0 | K12: 0 | L12: 0 | M12: 0 | N12: 0 | O12: 0 | P12: 0 | Q12: 0 | R12: 0 | S12: 0
B14: 10.1. | C14: =C2 -> Kalkulace finančního vnitřního výnosového procenta | E14: =S2+1 -> 2031 | F14: =E14+1 -> 2032 | G14: 2033 | H14: 2034 | I14: 2035 | J14: 2036 | K14: 2037 | L14: 2038 | M14: 2039 | N14: 2040 | O14: 2041 | P14: 2042 | Q14: 2043 | R14: 2044 | S14: 2045
B15: b | C15: =C3 -> kapitálu - FRR/K (CZK)
C16: =C4 -> Zůstatková hodnota | E16: =-1*'5 Finanční analýza (FRR_C)'!E20 -> 0 | F16: =-1*'5 Finanční analýza (FRR_C)'!F20 -> 0 | G16: =-1*'5 Finanční analýza (FRR_C)'!G20 -> 0 | H16: =-1*'5 Finanční analýza (FRR_C)'!H20 -> 0 | I16: =-1*'5 Finanční analýza (FRR_C)'!I20 -> 0 | J16: =-1*'5 Finanční analýza (FRR_C)'!J20 -> 0 | K16: =-1*'5 Finanční analýza (FRR_C)'!K20 -> 0 | L16: =-1*'5 Finanční analýza (FRR_C)'!L20 -> 0 | M16: =-1*'5 Finanční analýza (FRR_C)'!M20 -> 0 | N16: =-1*'5 Finanční analýza (FRR_C)'!N20 -> 0 | O16: =-1*'5 Finanční analýza (FRR_C)'!O20 -> 0 | P16: =-1*'5 Finanční analýza (FRR_C)'!P20 -> 0 | Q16: =-1*'5 Finanční analýza (FRR_C)'!Q20 -> 0 | R16: =-1*'5 Finanční analýza (FRR_C)'!R20 -> 0 | S16: =-1*'5 Finanční analýza (FRR_C)'!S20 -> 
C17: Přírůstek celkových provozních příjmů | E17: ='7 Mezera ve financování'!E15 -> 0 | F17: ='7 Mezera ve financování'!F15 -> 0 | G17: ='7 Mezera ve financování'!G15 -> 0 | H17: ='7 Mezera ve financování'!H15 -> 0 | I17: ='7 Mezera ve financování'!I15 -> 0 | J17: ='7 Mezera ve financování'!J15 -> 0 | K17: ='7 Mezera ve financování'!K15 -> 0 | L17: ='7 Mezera ve financování'!L15 -> 0 | M17: ='7 Mezera ve financování'!M15 -> 0 | N17: ='7 Mezera ve financování'!N15 -> 0 | O17: ='7 Mezera ve financování'!O15 -> 0 | P17: ='7 Mezera ve financování'!P15 -> 0 | Q17: ='7 Mezera ve financování'!Q15 -> 0 | R17: ='7 Mezera ve financování'!R15 -> 0 | S17: ='7 Mezera ve financování'!S15 -> 0
C18: Celkové příjmy | E18: =SUM(E16:E17) -> 0 | F18: =SUM(F16:F17) -> 0 | G18: 0 | H18: 0 | I18: 0 | J18: 0 | K18: 0 | L18: 0 | M18: 0 | N18: 0 | O18: 0 | P18: 0 | Q18: 0 | R18: 0
C19: Přírůstkové celkové provozní náklady* | E19: ='6 Kontrola dotací'!E44 -> 0 | F19: ='6 Kontrola dotací'!F44 -> 0 | G19: ='6 Kontrola dotací'!G44 -> 0 | H19: ='6 Kontrola dotací'!H44 -> 0 | I19: ='6 Kontrola dotací'!I44 -> 0 | J19: ='6 Kontrola dotací'!J44 -> 0 | K19: ='6 Kontrola dotací'!K44 -> 0 | L19: ='6 Kontrola dotací'!L44 -> 0 | M19: ='6 Kontrola dotací'!M44 -> 0 | N19: ='6 Kontrola dotací'!N44 -> 0 | O19: ='6 Kontrola dotací'!O44 -> 0 | P19: ='6 Kontrola dotací'!P44 -> 0 | Q19: ='6 Kontrola dotací'!Q44 -> 0 | R19: ='6 Kontrola dotací'!R44 -> 0 | S19: ='6 Kontrola dotací'!S44 -> 0
C20: Příspěvky žadatele + národní zdroje | E20: ='8 Finanční struktura'!E21+'8 Finanční struktura'!E24 -> 0 | F20: ='8 Finanční struktura'!F21+'8 Finanční struktura'!F24 -> 0 | G20: ='8 Finanční struktura'!G21+'8 Finanční struktura'!G24 -> 0 | H20: ='8 Finanční struktura'!H21+'8 Finanční struktura'!H24 -> 0 | I20: ='8 Finanční struktura'!I21+'8 Finanční struktura'!I24 -> 0 | J20: ='8 Finanční struktura'!J21+'8 Finanční struktura'!J24 -> 0 | K20: ='8 Finanční struktura'!K21+'8 Finanční struktura'!K24 -> 0 | L20: ='8 Finanční struktura'!L21+'8 Finanční struktura'!L24 -> 0 | M20: ='8 Finanční struktura'!M21+'8 Finanční struktura'!M24 -> 0 | N20: ='8 Finanční struktura'!N21+'8 Finanční struktura'!N24 -> 0 | O20: ='8 Finanční struktura'!O21+'8 Finanční struktura'!O24 -> 0 | P20: ='8 Finanční struktura'!P21+'8 Finanční struktura'!P24 -> 0 | Q20: ='8 Finanční struktura'!Q21+'8 Finanční struktura'!Q24 -> 0 | R20: ='8 Finanční struktura'!R21+'8 Finanční struktura'!R24 -> 0 | S20: ='8 Finanční struktura'!S21+'8 Finanční struktura'!S24 -> 0
C21: Celkové náklady | E21: =SUM(E19:E20) -> 0 | F21: 0 | G21: 0 | H21: 0 | I21: 0 | J21: 0 | K21: 0 | L21: 0 | M21: 0 | N21: 0 | O21: 0 | P21: 0 | Q21: 0 | R21: 0 | S21: 0
C22: Cash Flow | E22: =E18-E21 -> 0 | F22: 0 | G22: 0 | H22: 0 | I22: 0 | J22: 0 | K22: 0 | L22: 0 | M22: 0 | N22: 0 | O22: 0 | P22: 0 | Q22: 0 | R22: 0
C23: Diskontní sazba | D23: =D11 -> 0.04 | E23: =S11*1/(1+$D$11) -> 0.5552645027 | F23: =E23*1/(1+$D$11) -> 0.5339081757 | G23: =F23*1/(1+$D$11) -> 0.5133732459 | H23: 0.493628121 | I23: 0.474642424 | J23: 0.4563869462 | K23: 0.4388336021 | L23: 0.4219553867 | M23: 0.4057263333 | N23: 0.3901214743 | O23: 0.3751168023 | P23: 0.3606892329 | Q23: 0.3468165701 | R23: 0.3334774713 | S23: 0.3206514147
C24: Diskontované cash flow | E24: =E22*E23 -> 0 | F24: 0 | G24: 0 | H24: 0 | I24: 0 | J24: 0 | K24: 0 | L24: 0 | M24: 0 | N24: 0 | O24: 0 | P24: 0 | Q24: 0 | R24: 0
B26: Finanční vniřní výnosové procento kapitálu FRR/K** | E26: =ROUND(IRR((E10:S10,E22:S22),0.05),4) ->  | G26: =IF('8 Finanční struktura'!T11="OK","","CHYBA!") -> 
B27: Finanční čistá současná hodnota kapitálu FNPV/K (CZK) | E27: =SUM(E12:S12,E24:S24) -> 
B28: Finanční čistá současná hodnota kapitálu FNPV/K (EUR) | E28: =E27/'0 Úvod'!N19 -> 
B30: Komentáře
B32: * čistá úspora prov. nákladů po odečtení úspory dotace (dle listu 6)
B33: ** pokud se zobrazí "CHYBA", zkonrolujte list 8 Finanční struktura
